Department Family,Entity,Date,Expense Type,Expense Area,Supplier,Transaction Number,Amount,Item Description
BEIS,UKRI - AHRC,03/04/2018,Conferences & Seminars,Corporate Services,Unspecified,98156005,47,Conferences & Seminars
BEIS,UKRI - AHRC,03/04/2018,Legal & Professional Services,Communications,Tamasine McCaig T/A Mighty Oaks Digital,98155632,2400,Legal & Professional Services
BEIS,UKRI - AHRC,03/04/2018,Legal & Professional Services,Communications,Tamasine McCaig T/A Mighty Oaks Digital,98155634,2000,Legal & Professional Services
BEIS,UKRI - AHRC,03/04/2018,Legal & Professional Services,Communications,Tamasine McCaig T/A Mighty Oaks Digital,98155635,1200,Legal & Professional Services
BEIS,UKRI - AHRC,03/04/2018,Legal & Professional Services,Communications,Tamasine McCaig T/A Mighty Oaks Digital,98155636,2800,Legal & Professional Services
BEIS,UKRI - AHRC,03/04/2018,Staff Training,Communications,Tamasine McCaig T/A Mighty Oaks Digital,98155633,4200,Staff Training
BEIS,UKRI - AHRC,03/04/2018,T&S Overseas - Public Transport,"Languages,Literature & International Engagement",Unspecified,98156004,10,T&S Overseas - Public Transport
BEIS,UKRI - AHRC,03/04/2018,T&S Overseas - Public Transport,"Languages,Literature & International Engagement",Unspecified,98156004,81.88,T&S Overseas - Public Transport
BEIS,UKRI - AHRC,03/04/2018,T&S Overseas - Public Transport,"Languages,Literature & International Engagement",Unspecified,98156004,22.95,T&S Overseas - Public Transport
BEIS,UKRI - AHRC,03/04/2018,T&S Overseas - Subsistence,"Languages,Literature & International Engagement",Unspecified,98156004,10,T&S Overseas - Subsistence
BEIS,UKRI - AHRC,04/04/2018,Computer Software Licences,Business Process & Analysis,Tableau International U.C,98144060,13650.05,Computer Software Licences
BEIS,UKRI - AHRC,04/04/2018,Contract Staff,IS,JC Web Services Ltd,98157716,10200,Contract Staff
BEIS,UKRI - AHRC,04/04/2018,Hospitality,"Languages,Literature & International Engagement",British Academy,98155793,81,Hospitality
BEIS,UKRI - AHRC,04/04/2018,Hospitality,"Languages,Literature & International Engagement",British Academy,98155793,750,Hospitality
BEIS,UKRI - AHRC,04/04/2018,Hospitality,"Languages,Literature & International Engagement",British Academy,98155793,1662,Hospitality
BEIS,UKRI - AHRC,04/04/2018,Hospitality,"Languages,Literature & International Engagement",British Academy,98155799,-29.18,Hospitality
BEIS,UKRI - AHRC,04/04/2018,Hospitality,"Languages,Literature & International Engagement",British Academy,98155799,-750,Hospitality
BEIS,UKRI - AHRC,04/04/2018,Hospitality,"Languages,Literature & International Engagement",British Academy,98155799,-555.82,Hospitality
BEIS,UKRI - AHRC,04/04/2018,Removal Services,HR,Klaw Services Group,98153182,759.84,Removal Services
BEIS,UKRI - AHRC,04/04/2018,Staff Training,Business Process & Analysis,Tableau International U.C,98144060,7222.25,Staff Training
BEIS,UKRI - AHRC,05/04/2018,Data Storage & Recovery,Corporate Services,Iron Mountain (UK) PLC,98158425,155.14,Data Storage & Recovery
BEIS,UKRI - AHRC,05/04/2018,Recruitment Costs,Finance,Hays Specialist Recruitment Ltd,98083451,519.46,Recruitment Costs
BEIS,UKRI - AHRC,05/04/2018,SSC Service Charges,Finance,Hays Specialist Recruitment Ltd,98083451,933.74,SSC Service Charges
BEIS,UKRI - AHRC,05/04/2018,T&S Overseas - Public Transport,SMT,Unspecified,98158486,26.36,T&S Overseas - Public Transport
BEIS,UKRI - AHRC,05/04/2018,T&S Overseas - Subsistence,SMT,Unspecified,98158486,22.34,T&S Overseas - Subsistence
BEIS,UKRI - AHRC,05/04/2018,T&S Overseas - Subsistence,SMT,Unspecified,98158486,18.48,T&S Overseas - Subsistence
BEIS,UKRI - AHRC,05/04/2018,T&S Overseas - Subsistence,SMT,Unspecified,98158486,5.54,T&S Overseas - Subsistence
BEIS,UKRI - AHRC,05/04/2018,T&S UK - Public Transport,"Languages,Literature & International Engagement",Unspecified,98158484,2.4,T&S UK - Public Transport
BEIS,UKRI - AHRC,05/04/2018,T&S UK - Subsistence,"Languages,Literature & International Engagement",Unspecified,98158484,5.59,T&S UK - Subsistence
BEIS,UKRI - AHRC,05/04/2018,T&S UK - Subsistence,"Languages,Literature & International Engagement",Unspecified,98158484,11.55,T&S UK - Subsistence
BEIS,UKRI - AHRC,05/04/2018,T&S UK - Subsistence,Finance,Unspecified,98158485,2.99,T&S UK - Subsistence
BEIS,UKRI - AHRC,05/04/2018,UK - Professional Memberships & Subscriptions,Finance,Unspecified,98158485,278,UK - Professional Memberships & Subscriptions
BEIS,UKRI - AHRC,06/04/2018,Advertising & Promotion,Communications,Professional Images (UK) Ltd,98158556,299.99,Advertising & Promotion
BEIS,UKRI - AHRC,06/04/2018,Computing Consumables,IS,Academia Ltd,98159648,2891.52,Computing Consumables
BEIS,UKRI - AHRC,06/04/2018,Health & Safety (inc. Medicals & Opticians),Corporate Services,Sodexo Motivation Solutions U.K Ltd,98158782,268.62,Health & Safety (inc. Medicals & Opticians)
BEIS,UKRI - AHRC,06/04/2018,Marketing & PR,Communications,Itsdevelopmental Ltd,98158557,2560,Marketing & PR
BEIS,UKRI - AHRC,06/04/2018,Meetings & Catering,Creative Arts & Digital Humanities,Baxter Storey Ltd,98159652,9.1,Meetings & Catering
BEIS,UKRI - AHRC,06/04/2018,Meetings & Catering,Creative Arts & Digital Humanities,Baxter Storey Ltd,98159652,45.5,Meetings & Catering
BEIS,UKRI - AHRC,06/04/2018,Meetings & Catering,SMT,Baxter Storey Ltd,98159652,5.2,Meetings & Catering
BEIS,UKRI - AHRC,06/04/2018,Meetings & Catering,SMT,Baxter Storey Ltd,98159652,26,Meetings & Catering
BEIS,UKRI - AHRC,09/04/2018,Advertising & Promotion,Communications,Benjamin Ward Communications Ltd,98159423,2000,Advertising & Promotion
BEIS,UKRI - AHRC,09/04/2018,Contract Staff,PSU Project Office,Hays Specialist Recruitment Ltd,98160082,3027.78,Contract Staff
BEIS,UKRI - AHRC,09/04/2018,T&S UK - Other Charges,Communications,Unspecified,98160096,8.46,T&S UK - Other Charges
BEIS,UKRI - AHRC,10/04/2018,Agency Staff,Finance,Hays Specialist Recruitment Ltd,98162002,2138.21,Agency Staff
BEIS,UKRI - AHRC,10/04/2018,Contract Staff,PSU Project Office,Hays Specialist Recruitment Ltd,98162006,1816.67,Contract Staff
BEIS,UKRI - AHRC,10/04/2018,Contract Staff,Finance,Hays Specialist Recruitment Ltd,98162007,1453.2,Contract Staff
BEIS,UKRI - AHRC,10/04/2018,Fees (Including College Members),Industrial Strategy Challenge Fund (ISCF) - Creative Clusters,Non Employee Expenses Supplier,98161867,2000,Fees (Including College Members)
BEIS,UKRI - AHRC,10/04/2018,Fees (Including College Members),Industrial Strategy Challenge Fund (ISCF) - Creative Clusters,Non Employee Expenses Supplier,98161868,1000,Fees (Including College Members)
BEIS,UKRI - AHRC,10/04/2018,Health & Safety (inc. Medicals & Opticians),HR,Unspecified,98162328,25,Health & Safety (inc. Medicals & Opticians)
BEIS,UKRI - AHRC,10/04/2018,Non-staff travel and subsistance,"Histories,Culture & Heritage",Non Employee Expenses Supplier,98161865,43.6,Non-staff travel and subsistance
BEIS,UKRI - AHRC,10/04/2018,Non-staff travel and subsistance,"Histories,Culture & Heritage",Non Employee Expenses Supplier,98161866,130.8,Non-staff travel and subsistance
BEIS,UKRI - AHRC,10/04/2018,Non-staff travel and subsistance,Newton Programme,Non Employee Expenses Supplier,98161869,215.26,Non-staff travel and subsistance
BEIS,UKRI - AHRC,10/04/2018,Non-staff travel and subsistance,GCRF - Programme Delivery,Non Employee Expenses Supplier,98161870,167,Non-staff travel and subsistance
BEIS,UKRI - AHRC,10/04/2018,Non-staff travel and subsistance,GCRF - Programme Delivery,Non Employee Expenses Supplier,98161871,148.5,Non-staff travel and subsistance
BEIS,UKRI - AHRC,10/04/2018,Non-staff travel and subsistance,GCRF - Programme Delivery,Non Employee Expenses Supplier,98161872,17.5,Non-staff travel and subsistance
BEIS,UKRI - AHRC,10/04/2018,Non-staff travel and subsistance,"Histories,Culture & Heritage",Non Employee Expenses Supplier,98161873,99,Non-staff travel and subsistance
BEIS,UKRI - AHRC,10/04/2018,Non-staff travel and subsistance,"Histories,Culture & Heritage",Non Employee Expenses Supplier,98161874,141.43,Non-staff travel and subsistance
BEIS,UKRI - AHRC,10/04/2018,Non-staff travel and subsistance,"Histories,Culture & Heritage",Non Employee Expenses Supplier,98161875,90.75,Non-staff travel and subsistance
BEIS,UKRI - AHRC,10/04/2018,Non-staff travel and subsistance,"Histories,Culture & Heritage",Non Employee Expenses Supplier,98161876,405.87,Non-staff travel and subsistance
BEIS,UKRI - AHRC,10/04/2018,Non-staff travel and subsistance,"Histories,Culture & Heritage",Non Employee Expenses Supplier,98161877,90.31,Non-staff travel and subsistance
BEIS,UKRI - AHRC,10/04/2018,Non-staff travel and subsistance,Creative Arts & Digital Humanities,Non Employee Expenses Supplier,98161878,68.5,Non-staff travel and subsistance
BEIS,UKRI - AHRC,10/04/2018,Non-staff travel and subsistance,Creative Arts & Digital Humanities,Non Employee Expenses Supplier,98161879,26.4,Non-staff travel and subsistance
BEIS,UKRI - AHRC,10/04/2018,Non-staff travel and subsistance,"Languages,Literature & International Engagement",Non Employee Expenses Supplier,98161880,768.54,Non-staff travel and subsistance
BEIS,UKRI - AHRC,10/04/2018,Non-staff travel and subsistance,"Languages,Literature & International Engagement",Non Employee Expenses Supplier,98161881,126.89,Non-staff travel and subsistance
BEIS,UKRI - AHRC,10/04/2018,Non-staff travel and subsistance,Communications,Non Employee Expenses Supplier,98161882,104.5,Non-staff travel and subsistance
BEIS,UKRI - AHRC,10/04/2018,Non-staff travel and subsistance,"Languages,Literature & International Engagement",Non Employee Expenses Supplier,98161883,96,Non-staff travel and subsistance
BEIS,UKRI - AHRC,10/04/2018,Non-staff travel and subsistance,"Histories,Culture & Heritage",Non Employee Expenses Supplier,98161884,123.99,Non-staff travel and subsistance
BEIS,UKRI - AHRC,10/04/2018,Non-staff travel and subsistance,SMT,Non Employee Expenses Supplier,98161885,526.37,Non-staff travel and subsistance
BEIS,UKRI - AHRC,10/04/2018,Non-staff travel and subsistance,SMT,Non Employee Expenses Supplier,98161886,155.34,Non-staff travel and subsistance
BEIS,UKRI - AHRC,10/04/2018,Non-staff travel and subsistance,SMT,Non Employee Expenses Supplier,98161887,345.73,Non-staff travel and subsistance
BEIS,UKRI - AHRC,10/04/2018,Non-staff travel and subsistance,SMT,Non Employee Expenses Supplier,98161888,99.03,Non-staff travel and subsistance
BEIS,UKRI - AHRC,10/04/2018,Non-staff travel and subsistance,SMT,Non Employee Expenses Supplier,98161889,433.2,Non-staff travel and subsistance
BEIS,UKRI - AHRC,10/04/2018,Non-staff travel and subsistance,SMT,Non Employee Expenses Supplier,98161890,727.59,Non-staff travel and subsistance
BEIS,UKRI - AHRC,10/04/2018,Non-staff travel and subsistance,New Programme Development,Non Employee Expenses Supplier,98161891,47,Non-staff travel and subsistance
BEIS,UKRI - AHRC,10/04/2018,Non-staff travel and subsistance,Industrial Strategy Challenge Fund (ISCF) - Creative Clusters,Non Employee Expenses Supplier,98161892,401.55,Non-staff travel and subsistance
BEIS,UKRI - AHRC,10/04/2018,Non-staff travel and subsistance,Creative Arts & Digital Humanities,Non Employee Expenses Supplier,98161893,128.95,Non-staff travel and subsistance
BEIS,UKRI - AHRC,10/04/2018,Non-staff travel and subsistance,Creative Arts & Digital Humanities,Non Employee Expenses Supplier,98161894,31,Non-staff travel and subsistance
BEIS,UKRI - AHRC,10/04/2018,Non-staff travel and subsistance,Commissioned Research,Non Employee Expenses Supplier,98161895,56.5,Non-staff travel and subsistance
BEIS,UKRI - AHRC,10/04/2018,Non-staff travel and subsistance,Commissioned Research,Non Employee Expenses Supplier,98161896,37.65,Non-staff travel and subsistance
BEIS,UKRI - AHRC,10/04/2018,Non-staff travel and subsistance,Commissioned Research,Non Employee Expenses Supplier,98161897,17.05,Non-staff travel and subsistance
BEIS,UKRI - AHRC,10/04/2018,Non-staff travel and subsistance,Commissioned Research,Non Employee Expenses Supplier,98161898,9.75,Non-staff travel and subsistance
BEIS,UKRI - AHRC,10/04/2018,Non-staff travel and subsistance,Commissioned Research,Non Employee Expenses Supplier,98161899,170.4,Non-staff travel and subsistance
BEIS,UKRI - AHRC,10/04/2018,Non-staff travel and subsistance,Business Process & Analysis,Non Employee Expenses Supplier,98161900,58.7,Non-staff travel and subsistance
BEIS,UKRI - AHRC,10/04/2018,Non-staff travel and subsistance,Communications,Non Employee Expenses Supplier,98161901,138.15,Non-staff travel and subsistance
BEIS,UKRI - AHRC,10/04/2018,Non-staff travel and subsistance,Business Process & Analysis,Non Employee Expenses Supplier,98161902,32.2,Non-staff travel and subsistance
BEIS,UKRI - AHRC,10/04/2018,Non-staff travel and subsistance,New Programme Development,Non Employee Expenses Supplier,98161903,35.8,Non-staff travel and subsistance
BEIS,UKRI - AHRC,10/04/2018,Non-staff travel and subsistance,New Programme Development,Non Employee Expenses Supplier,98161904,29.45,Non-staff travel and subsistance
BEIS,UKRI - AHRC,10/04/2018,Non-staff travel and subsistance,Newton Programme,Non Employee Expenses Supplier,98161905,492,Non-staff travel and subsistance
BEIS,UKRI - AHRC,10/04/2018,Non-staff travel and subsistance,Creative Arts & Digital Humanities,Non Employee Expenses Supplier,98161906,212.5,Non-staff travel and subsistance
BEIS,UKRI - AHRC,10/04/2018,Non-staff travel and subsistance,Newton Programme,Non Employee Expenses Supplier,98161907,1464.31,Non-staff travel and subsistance
BEIS,UKRI - AHRC,10/04/2018,Non-staff travel and subsistance,"Histories,Culture & Heritage",Non Employee Expenses Supplier,98161908,127.93,Non-staff travel and subsistance
BEIS,UKRI - AHRC,10/04/2018,Non-staff travel and subsistance,Newton Programme,Non Employee Expenses Supplier,98161909,346.36,Non-staff travel and subsistance
BEIS,UKRI - AHRC,10/04/2018,Non-staff travel and subsistance,Creative Arts & Digital Humanities,Non Employee Expenses Supplier,98161910,81.4,Non-staff travel and subsistance
BEIS,UKRI - AHRC,10/04/2018,Non-staff travel and subsistance,"Histories,Culture & Heritage",Non Employee Expenses Supplier,98161911,138.05,Non-staff travel and subsistance
BEIS,UKRI - AHRC,10/04/2018,Non-staff travel and subsistance,"Histories,Culture & Heritage",Non Employee Expenses Supplier,98161912,40.1,Non-staff travel and subsistance
BEIS,UKRI - AHRC,10/04/2018,Recruitment Costs,Finance,Hays Specialist Recruitment Ltd,98162001,1453.2,Recruitment Costs
BEIS,UKRI - AHRC,11/04/2018,Agency Staff,IS,Capita Business Services Ltd,98162783,2550.24,Agency Staff
BEIS,UKRI - AHRC,11/04/2018,Contract Staff,PSU Project Office,Capita Business Services Ltd,98162785,6261.48,Contract Staff
BEIS,UKRI - AHRC,11/04/2018,Contract Staff,IS,Capita Business Services Ltd,98162786,2559.22,Contract Staff
BEIS,UKRI - AHRC,11/04/2018,Contract Staff,Finance,Hays Specialist Recruitment Ltd,98162831,1252.99,Contract Staff
BEIS,UKRI - AHRC,11/04/2018,Legal & Professional Services,IS,Automated Intelligence Ltd,98162930,6435,Legal & Professional Services
BEIS,UKRI - AHRC,11/04/2018,Recruitment Costs,HR,Onefix Recruitment Ltd,98160103,166.5,Recruitment Costs
BEIS,UKRI - AHRC,12/04/2018,Agency Staff,PSU Project Office,Capita Business Services Ltd,98141611,1076.7,Agency Staff
BEIS,UKRI - AHRC,12/04/2018,Agency Staff,PSU Project Office,Capita Business Services Ltd,98141611,3960,Agency Staff
BEIS,UKRI - AHRC,12/04/2018,Apprenticeship Levy,Corporate Services,HM Revenue & Customs,98164120,1325,Apprenticeship Levy
BEIS,UKRI - AHRC,12/04/2018,Computing Consumables,IS,Academia Ltd,98159647,1391.88,Computing Consumables
BEIS,UKRI - AHRC,12/04/2018,Corporate Events,SMT,Digital Catapult Services Ltd,98158365,231,Corporate Events
BEIS,UKRI - AHRC,12/04/2018,Legal & Professional Services,Industrial Strategy Challenge Fund (ISCF) - Creative Clusters,Lilley Associates Ltd,98163812,11250,Legal & Professional Services
BEIS,UKRI - AHRC,12/04/2018,Mobile Phone Costs,Corporate Services,West UC Ltd,98165049,642.14,Mobile Phone Costs
BEIS,UKRI - AHRC,12/04/2018,Recruitment Costs,PSU Project Office,Onefix Recruitment Ltd,98162384,150,Recruitment Costs
BEIS,UKRI - AHRC,12/04/2018,Student Loans,Balance Sheet,HM Revenue & Customs,98164119,4167,Student Loans
BEIS,UKRI - AHRC,13/04/2018,Agency Staff,IS,Capita Business Services Ltd,98164451,4080.38,Agency Staff
BEIS,UKRI - AHRC,13/04/2018,Agency Staff,Finance,Hays Specialist Recruitment Ltd,98164458,2138.21,Agency Staff
BEIS,UKRI - AHRC,13/04/2018,Contract Staff,PSU Project Office,Capita Business Services Ltd,98164449,5236.61,Contract Staff
BEIS,UKRI - AHRC,13/04/2018,Health & Safety (inc. Medicals & Opticians),Corporate Services,Swindon Occupational Medical Services Ltd,98165358,750,Health & Safety (inc. Medicals & Opticians)
BEIS,UKRI - AHRC,13/04/2018,Purchase of non capital equipment,IS,Premier Farnell UK Ltd T/A Farnell Onecall,98165530,21.33,Purchase of non capital equipment
BEIS,UKRI - AHRC,13/04/2018,Purchase of non capital equipment,IS,Premier Farnell UK Ltd T/A Farnell Onecall,98165530,4.39,Purchase of non capital equipment
BEIS,UKRI - AHRC,13/04/2018,Recruitment Costs,HR,Agenda Resource Management Ltd,98124314,151,Recruitment Costs
BEIS,UKRI - AHRC,13/04/2018,Recruitment Costs,Corporate Services,Agenda Resource Management Ltd,98164356,155.91,Recruitment Costs
BEIS,UKRI - AHRC,13/04/2018,T&S Overseas - Accommodation,"Histories,Culture & Heritage",Unspecified,98165432,635.22,T&S Overseas - Accommodation
BEIS,UKRI - AHRC,13/04/2018,T&S Overseas - Public Transport,"Histories,Culture & Heritage",Unspecified,98165431,75.59,T&S Overseas - Public Transport
BEIS,UKRI - AHRC,13/04/2018,T&S Overseas - Subsistence,"Histories,Culture & Heritage",Unspecified,98165431,20,T&S Overseas - Subsistence
BEIS,UKRI - AHRC,13/04/2018,T&S Overseas - Subsistence,"Histories,Culture & Heritage",Unspecified,98165431,13.5,T&S Overseas - Subsistence
BEIS,UKRI - AHRC,13/04/2018,T&S Overseas - Subsistence,"Histories,Culture & Heritage",Unspecified,98165431,73.45,T&S Overseas - Subsistence
BEIS,UKRI - AHRC,13/04/2018,T&S Overseas - Subsistence,"Histories,Culture & Heritage",Unspecified,98165431,31.16,T&S Overseas - Subsistence
BEIS,UKRI - AHRC,13/04/2018,T&S UK - Public Transport,SMT,Unspecified,98165433,35,T&S UK - Public Transport
BEIS,UKRI - AHRC,13/04/2018,T&S UK - Public Transport,SMT,Unspecified,98165434,43,T&S UK - Public Transport
BEIS,UKRI - AHRC,13/04/2018,Union Deductions,Balance Sheet,PCS Union,98164125,206.02,Union Deductions
BEIS,UKRI - AHRC,13/04/2018,Voluntary Deductions,Balance Sheet,Chargive,98164123,7,Voluntary Deductions
BEIS,UKRI - AHRC,13/04/2018,Voluntary Deductions,Balance Sheet,Civil Service Benevolent Fund,98164122,7.33,Voluntary Deductions
BEIS,UKRI - AHRC,16/04/2018,Contract Staff,Finance,Hays Specialist Recruitment Ltd,98166641,1453.2,Contract Staff
BEIS,UKRI - AHRC,16/04/2018,Nursery Deductions,Balance Sheet,EDENRED (UK GROUP) LTD,98166753,4189.22,Nursery Deductions
BEIS,UKRI - AHRC,17/04/2018,Books Professional Journals & Guides,Communications,Kate Langrish,98141802,2500,Books Professional Journals & Guides
BEIS,UKRI - AHRC,17/04/2018,Health & Safety (inc. Medicals & Opticians),Corporate Services,Abbey Business Equipment Ltd,98147194,1616.4,Health & Safety (inc. Medicals & Opticians)
BEIS,UKRI - AHRC,17/04/2018,Non-staff travel and subsistance,Newton Programme Delivery,Non Employee Expenses Supplier,98166871,143.6,Non-staff travel and subsistance
BEIS,UKRI - AHRC,17/04/2018,Non-staff travel and subsistance,"Histories,Culture & Heritage",Non Employee Expenses Supplier,98166872,11.94,Non-staff travel and subsistance
BEIS,UKRI - AHRC,17/04/2018,Non-staff travel and subsistance,SMT,Non Employee Expenses Supplier,98166873,165.5,Non-staff travel and subsistance
BEIS,UKRI - AHRC,17/04/2018,Non-staff travel and subsistance,Newton Programme,Non Employee Expenses Supplier,98166874,2412.78,Non-staff travel and subsistance
BEIS,UKRI - AHRC,17/04/2018,Other Staff Benefits,Corporate Services,EDENRED (UK GROUP) LTD,98166755,9.05,Other Staff Benefits
BEIS,UKRI - AHRC,17/04/2018,T&S UK - Public Transport,HR,Unspecified,98165435,15.5,T&S UK - Public Transport
BEIS,UKRI - AHRC,18/04/2018,Agency Staff,IS,Capita Business Services Ltd,98167527,2040.19,Agency Staff
BEIS,UKRI - AHRC,18/04/2018,Computing Consumables,Corporate Services,UK Shared Business Services Ltd,98148607,2016.55,Computing Consumables
BEIS,UKRI - AHRC,18/04/2018,Computing Consumables,Corporate Services,UK Shared Business Services Ltd,98148607,10000,Computing Consumables
BEIS,UKRI - AHRC,18/04/2018,Conferences & Seminars,Newton Programme,Medical Research Council,98143296,5600.68,Conferences & Seminars
BEIS,UKRI - AHRC,18/04/2018,Conferences & Seminars,Newton Programme,Medical Research Council,98143299,6628.56,Conferences & Seminars
BEIS,UKRI - AHRC,18/04/2018,Consultancy Services,Communications,Matthew Ford,98166500,3000,Consultancy Services
BEIS,UKRI - AHRC,18/04/2018,Contract Staff,IS,Automated Intelligence Ltd,98139408,2475,Contract Staff
BEIS,UKRI - AHRC,18/04/2018,Contract Staff,Corporate Services,Science & Technology Facilities Council,98138827,2222.16,Contract Staff
BEIS,UKRI - AHRC,18/04/2018,Contract Staff,Corporate Services,Science & Technology Facilities Council,98138827,8359.92,Contract Staff
BEIS,UKRI - AHRC,18/04/2018,Legal & Professional Services,IS,Automated Intelligence Ltd,98139408,3465,Legal & Professional Services
BEIS,UKRI - AHRC,18/04/2018,Legal & Professional Services,Corporate Services,Science & Technology Facilities Council,98073852,1781.26,Legal & Professional Services
BEIS,UKRI - AHRC,18/04/2018,Meetings & Catering,Corporate Services,Biotechnology and Biological Sciences Research Council (BBSRC),98143175,-6.38,Meetings & Catering
BEIS,UKRI - AHRC,18/04/2018,Meetings & Catering,Corporate Services,Biotechnology and Biological Sciences Research Council (BBSRC),98143197,2593.74,Meetings & Catering
BEIS,UKRI - AHRC,18/04/2018,Other Programme Costs,Brussels,Biotechnology and Biological Sciences Research Council (BBSRC),98075304,10000,Other Programme Costs
BEIS,UKRI - AHRC,18/04/2018,Other Programme Costs,Brussels,Biotechnology and Biological Sciences Research Council (BBSRC),98075304,3056.97,Other Programme Costs
BEIS,UKRI - AHRC,18/04/2018,Other Staff Benefits,HR,EDENRED (UK GROUP) LTD,98061447,840,Other Staff Benefits
BEIS,UKRI - AHRC,18/04/2018,Other Staff Benefits,HR,EDENRED (UK GROUP) LTD,98080338,250,Other Staff Benefits
BEIS,UKRI - AHRC,18/04/2018,Other Staff Benefits,HR,EDENRED (UK GROUP) LTD,98167743,350,Other Staff Benefits
BEIS,UKRI - AHRC,18/04/2018,Recharges JBOS,HR,Biotechnology and Biological Sciences Research Council (BBSRC),98100170,-74.16,Recharges JBOS
BEIS,UKRI - AHRC,18/04/2018,Recharges JBOS,Corporate Services,Biotechnology and Biological Sciences Research Council (BBSRC),98143174,-2.98,Recharges JBOS
BEIS,UKRI - AHRC,18/04/2018,Recharges JBOS,HR,Biotechnology and Biological Sciences Research Council (BBSRC),98143177,-180.41,Recharges JBOS
BEIS,UKRI - AHRC,18/04/2018,Recharges JBOS,Corporate Services,Biotechnology and Biological Sciences Research Council (BBSRC),98143193,32310.01,Recharges JBOS
BEIS,UKRI - AHRC,18/04/2018,Recharges JBOS,HR,Biotechnology and Biological Sciences Research Council (BBSRC),98143198,18204.1,Recharges JBOS
BEIS,UKRI - AHRC,18/04/2018,Recharges JRS,Corporate Services,Engineering & Physical Sciences Research Council,98141565,4334.73,Recharges JRS
BEIS,UKRI - AHRC,18/04/2018,Recruitment Costs,Corporate Services,UK Shared Business Services Ltd,98154866,54,Recruitment Costs
BEIS,UKRI - AHRC,18/04/2018,Research Consumables,Living with Environmental Change Programme,Natural Environment Research Council,98138825,3527.81,Research Consumables
BEIS,UKRI - AHRC,18/04/2018,Research Grant Expenditure,Urban Living,Economic & Social Research Council,98150740,6249.08,Research Grant Expenditure
BEIS,UKRI - AHRC,18/04/2018,Research Grant Expenditure,Digital Transformations,Economic & Social Research Council,98150758,11758.16,Research Grant Expenditure
BEIS,UKRI - AHRC,18/04/2018,Research Grant Expenditure,Digital Transformations,Economic & Social Research Council,98150763,5498.88,Research Grant Expenditure
BEIS,UKRI - AHRC,18/04/2018,Research Grant Expenditure,Digital Transformations,Economic & Social Research Council,98150788,11311.76,Research Grant Expenditure
BEIS,UKRI - AHRC,18/04/2018,Research Grant Expenditure,Digital Transformations,Economic & Social Research Council,98150791,5040.51,Research Grant Expenditure
BEIS,UKRI - AHRC,18/04/2018,Research Grant Expenditure,Digital Transformations,Economic & Social Research Council,98150803,7119.25,Research Grant Expenditure
BEIS,UKRI - AHRC,18/04/2018,Research Grant Expenditure,Digital Transformations,Economic & Social Research Council,98150808,8035.94,Research Grant Expenditure
BEIS,UKRI - AHRC,18/04/2018,Research Grant Expenditure,Digital Transformations,Economic & Social Research Council,98150813,9105.46,Research Grant Expenditure
BEIS,UKRI - AHRC,18/04/2018,Research Grant Expenditure,Urban Living,Economic & Social Research Council,98150814,3438.78,Research Grant Expenditure
BEIS,UKRI - AHRC,18/04/2018,Research Grant Expenditure,Urban Living,Economic & Social Research Council,98150824,5646.27,Research Grant Expenditure
BEIS,UKRI - AHRC,18/04/2018,Research Grant Expenditure,Urban Living,Economic & Social Research Council,98150831,7054.26,Research Grant Expenditure
BEIS,UKRI - AHRC,18/04/2018,Research Grant Expenditure,Urban Living,Economic & Social Research Council,98150839,7158.3,Research Grant Expenditure
BEIS,UKRI - AHRC,18/04/2018,Research Grant Expenditure,Urban Living,Economic & Social Research Council,98150843,3945.2,Research Grant Expenditure
BEIS,UKRI - AHRC,18/04/2018,Research Grant Expenditure,Urban Living,Economic & Social Research Council,98150888,2478.05,Research Grant Expenditure
BEIS,UKRI - AHRC,18/04/2018,Research Grant Expenditure,Urban Living,Economic & Social Research Council,98150894,3499.3,Research Grant Expenditure
BEIS,UKRI - AHRC,18/04/2018,Research Grant Expenditure,RCUK Global Challenges Research Fund (RCUK GCRF),Economic & Social Research Council,98150900,25228.6,Research Grant Expenditure
BEIS,UKRI - AHRC,18/04/2018,Research Grant Expenditure,RCUK Global Challenges Research Fund (RCUK GCRF),Economic & Social Research Council,98150915,21604.2,Research Grant Expenditure
BEIS,UKRI - AHRC,18/04/2018,Research Grant Expenditure,RCUK Global Challenges Research Fund (RCUK GCRF),Economic & Social Research Council,98150919,20793.2,Research Grant Expenditure
BEIS,UKRI - AHRC,18/04/2018,Research Grant Expenditure,RCUK Global Challenges Research Fund (RCUK GCRF),Economic & Social Research Council,98150925,12145.7,Research Grant Expenditure
BEIS,UKRI - AHRC,18/04/2018,Research Grant Expenditure,RCUK Global Challenges Research Fund (RCUK GCRF),Economic & Social Research Council,98150941,10190.7,Research Grant Expenditure
BEIS,UKRI - AHRC,18/04/2018,Research Grant Expenditure,RCUK Global Challenges Research Fund (RCUK GCRF),Economic & Social Research Council,98150948,12153.85,Research Grant Expenditure
BEIS,UKRI - AHRC,18/04/2018,Research Grant Expenditure,RCUK Global Challenges Research Fund (RCUK GCRF),Economic & Social Research Council,98150954,28449.8,Research Grant Expenditure
BEIS,UKRI - AHRC,18/04/2018,Research Grant Expenditure,Cross Council Responsive Mode Awards,Economic & Social Research Council,98150969,14086.98,Research Grant Expenditure
BEIS,UKRI - AHRC,18/04/2018,Research Grant Expenditure,Commissioned Research,Economic & Social Research Council,98150972,24495.22,Research Grant Expenditure
BEIS,UKRI - AHRC,18/04/2018,Research Grant Expenditure,Anti-microbial Resistance (AMR),Economic & Social Research Council,98150974,21612.54,Research Grant Expenditure
BEIS,UKRI - AHRC,18/04/2018,Research Grant Expenditure,Cross Council Responsive Mode Awards,Economic & Social Research Council,98150977,12500.39,Research Grant Expenditure
BEIS,UKRI - AHRC,18/04/2018,Research Grant Expenditure,Global Challenges Research Fund (GCRF),Economic & Social Research Council,98150979,13882.94,Research Grant Expenditure
BEIS,UKRI - AHRC,18/04/2018,Research Grant Expenditure,Global Challenges Research Fund (GCRF),Economic & Social Research Council,98150985,10617.84,Research Grant Expenditure
BEIS,UKRI - AHRC,18/04/2018,Research Grant Expenditure,Global Challenges Research Fund (GCRF),Economic & Social Research Council,98150988,14407.14,Research Grant Expenditure
BEIS,UKRI - AHRC,18/04/2018,Research Grant Expenditure,Global Challenges Research Fund (GCRF),Economic & Social Research Council,98150997,12813.84,Research Grant Expenditure
BEIS,UKRI - AHRC,18/04/2018,Research Grant Expenditure,Global Challenges Research Fund (GCRF),Economic & Social Research Council,98151010,15042.54,Research Grant Expenditure
BEIS,UKRI - AHRC,18/04/2018,Research Grant Expenditure,Global Challenges Research Fund (GCRF),Economic & Social Research Council,98151012,14053.53,Research Grant Expenditure
BEIS,UKRI - AHRC,18/04/2018,Research Grant Expenditure,Global Challenges Research Fund (GCRF),Economic & Social Research Council,98151014,13085.73,Research Grant Expenditure
BEIS,UKRI - AHRC,18/04/2018,Research Grant Expenditure,Global Challenges Research Fund (GCRF),Economic & Social Research Council,98151022,13120.58,Research Grant Expenditure
BEIS,UKRI - AHRC,18/04/2018,Research Grant Expenditure,Global Challenges Research Fund (GCRF),Economic & Social Research Council,98151029,13104.12,Research Grant Expenditure
BEIS,UKRI - AHRC,18/04/2018,Research Grant Expenditure,Global Challenges Research Fund (GCRF),Economic & Social Research Council,98151031,5662.88,Research Grant Expenditure
BEIS,UKRI - AHRC,18/04/2018,Research Grant Expenditure,Global Challenges Research Fund (GCRF),Economic & Social Research Council,98151044,13537.35,Research Grant Expenditure
BEIS,UKRI - AHRC,18/04/2018,Research Grant Expenditure,Global Uncertainties Programme,Economic & Social Research Council,98151053,4457.43,Research Grant Expenditure
BEIS,UKRI - AHRC,18/04/2018,Research Grant Expenditure,Cross Council Responsive Mode Awards,Economic & Social Research Council,98151057,28794.31,Research Grant Expenditure
BEIS,UKRI - AHRC,18/04/2018,Research Grant Expenditure,Global Uncertainties Programme,Economic & Social Research Council,98151058,4050.26,Research Grant Expenditure
BEIS,UKRI - AHRC,18/04/2018,Research Grant Expenditure,Cross Council Responsive Mode Awards,Economic & Social Research Council,98152571,41071.9,Research Grant Expenditure
BEIS,UKRI - AHRC,18/04/2018,Research Grant Expenditure,Global Uncertainties Programme,Economic & Social Research Council,98153832,4203.84,Research Grant Expenditure
BEIS,UKRI - AHRC,18/04/2018,Research Grant Expenditure,Global Uncertainties Programme,Economic & Social Research Council,98153835,4308.34,Research Grant Expenditure
BEIS,UKRI - AHRC,18/04/2018,Research Grant Expenditure,Global Uncertainties Programme,Economic & Social Research Council,98153836,3796.37,Research Grant Expenditure
BEIS,UKRI - AHRC,18/04/2018,Research Grant Expenditure,Global Uncertainties Programme,Economic & Social Research Council,98153838,5018.84,Research Grant Expenditure
BEIS,UKRI - AHRC,18/04/2018,Research Grant Expenditure,Design: Strategic Initiatives,Engineering & Physical Sciences Research Council,98152596,5333.99,Research Grant Expenditure
BEIS,UKRI - AHRC,18/04/2018,Research Grant Expenditure,New Dynamics of Aging,Engineering & Physical Sciences Research Council,98152597,20376.8,Research Grant Expenditure
BEIS,UKRI - AHRC,18/04/2018,Research Grant Expenditure,Digital Economy,Engineering & Physical Sciences Research Council,98152609,35354.39,Research Grant Expenditure
BEIS,UKRI - AHRC,18/04/2018,Research Grant Expenditure,Digital Economy,Engineering & Physical Sciences Research Council,98152614,17478.91,Research Grant Expenditure
BEIS,UKRI - AHRC,18/04/2018,Research Grant Expenditure,Digital Economy,Engineering & Physical Sciences Research Council,98152616,10401.09,Research Grant Expenditure
BEIS,UKRI - AHRC,18/04/2018,Research Grant Expenditure,Digital Economy,Engineering & Physical Sciences Research Council,98152619,20896.45,Research Grant Expenditure
BEIS,UKRI - AHRC,18/04/2018,Research Grant Expenditure,Digital Economy,Engineering & Physical Sciences Research Council,98152621,6153.69,Research Grant Expenditure
BEIS,UKRI - AHRC,18/04/2018,Research Grant Expenditure,Digital Economy,Engineering & Physical Sciences Research Council,98152623,13971.4,Research Grant Expenditure
BEIS,UKRI - AHRC,18/04/2018,Research Grant Expenditure,Digital Economy,Engineering & Physical Sciences Research Council,98152624,25475.5,Research Grant Expenditure
BEIS,UKRI - AHRC,18/04/2018,Research Grant Expenditure,Digital Economy,Engineering & Physical Sciences Research Council,98152626,25391.82,Research Grant Expenditure
BEIS,UKRI - AHRC,18/04/2018,Reward & Recognition Team Advances,Balance Sheet,Engineering & Physical Sciences Research Council,98154632,91.7,Reward & Recognition Team Advances
BEIS,UKRI - AHRC,18/04/2018,Staff Training,Corporate Services,UK Shared Business Services Ltd,98115266,219.17,Staff Training
BEIS,UKRI - AHRC,18/04/2018,Staff Training,Corporate Services,UK Shared Business Services Ltd,98115266,14219.57,Staff Training
BEIS,UKRI - AHRC,18/04/2018,Staff Training,Corporate Services,UK Shared Business Services Ltd,98154833,-666.41,Staff Training
BEIS,UKRI - AHRC,19/04/2018,Agency Staff,PSU Project Office,Capita Business Services Ltd,98167132,4200,Agency Staff
BEIS,UKRI - AHRC,19/04/2018,Agency Staff,PSU Project Office,Capita Business Services Ltd,98167132,-604.08,Agency Staff
BEIS,UKRI - AHRC,19/04/2018,Contract Staff,IS,Capita Business Services Ltd,98164447,1964.38,Contract Staff
BEIS,UKRI - AHRC,19/04/2018,Contract Staff,IS,Capita Business Services Ltd,98167533,2026.62,Contract Staff
BEIS,UKRI - AHRC,19/04/2018,T&S UK - Public Transport,Communications,Unspecified,98168269,13.4,T&S UK - Public Transport
BEIS,UKRI - AHRC,19/04/2018,T&S UK - Subsistence,Communications,Unspecified,98168269,2.5,T&S UK - Subsistence
BEIS,UKRI - AHRC,19/04/2018,T&S UK - Subsistence,Communications,Unspecified,98168269,48.2,T&S UK - Subsistence
BEIS,UKRI - AHRC,19/04/2018,T&S UK - Subsistence,Communications,Unspecified,98168269,7.8,T&S UK - Subsistence
BEIS,UKRI - AHRC,19/04/2018,T&S UK - Subsistence,Communications,Unspecified,98168269,10,T&S UK - Subsistence
BEIS,UKRI - AHRC,20/04/2018,Legal & Professional Services,Communications,Cheltenham Festivals,98169679,11940,Legal & Professional Services
BEIS,UKRI - AHRC,23/04/2018,Catering Contracts,HR,1st Biotech Ltd,98171059,536.34,Catering Contracts
BEIS,UKRI - AHRC,23/04/2018,Contract Staff,PSU Project Office,Hays Specialist Recruitment Ltd,98170760,3027.78,Contract Staff
BEIS,UKRI - AHRC,23/04/2018,Financial Services,Corporate Services,CCI Credit Management Ltd,98170247,3.72,Financial Services
BEIS,UKRI - AHRC,23/04/2018,Financial Services,Corporate Services,CCI Credit Management Ltd,98170959,3.72,Financial Services
BEIS,UKRI - AHRC,23/04/2018,Financial Services,Corporate Services,CCI Credit Management Ltd,98171040,3.72,Financial Services
BEIS,UKRI - AHRC,23/04/2018,Non-staff travel and subsistance,"Strategic Planning, Evidence & Inpact (SPEI)",Non Employee Expenses Supplier,98170287,423.44,Non-staff travel and subsistance
BEIS,UKRI - AHRC,23/04/2018,Non-staff travel and subsistance,"Languages,Literature & International Engagement",Non Employee Expenses Supplier,98170288,71.9,Non-staff travel and subsistance
BEIS,UKRI - AHRC,23/04/2018,Non-staff travel and subsistance,SMT,Non Employee Expenses Supplier,98170289,70,Non-staff travel and subsistance
BEIS,UKRI - AHRC,23/04/2018,Non-staff travel and subsistance,SMT,Non Employee Expenses Supplier,98170290,31.5,Non-staff travel and subsistance
BEIS,UKRI - AHRC,23/04/2018,Non-staff travel and subsistance,SMT,Non Employee Expenses Supplier,98170291,217.08,Non-staff travel and subsistance
BEIS,UKRI - AHRC,23/04/2018,Non-staff travel and subsistance,SMT,Non Employee Expenses Supplier,98170292,126.66,Non-staff travel and subsistance
BEIS,UKRI - AHRC,23/04/2018,Non-staff travel and subsistance,HERA JRP Project,Non Employee Expenses Supplier,98170293,708.34,Non-staff travel and subsistance
BEIS,UKRI - AHRC,24/04/2018,Conferences & Seminars,Communications,195 Piccadilly Ltd,98170840,5175,Conferences & Seminars
BEIS,UKRI - AHRC,24/04/2018,Training Awards - Postgraduates,Collabrative Doctoral Grants - Block Payment,Bangor University,98162531,4879.5,Training Awards - Postgraduates
BEIS,UKRI - AHRC,24/04/2018,Training Awards - Postgraduates,Collabrative Doctoral Grants - Block Payment,Birkbeck College,98161128,207,Training Awards - Postgraduates
BEIS,UKRI - AHRC,24/04/2018,Training Awards - Postgraduates,Collabrative Doctoral Grants - Block Payment,Birkbeck College,98162605,5374.5,Training Awards - Postgraduates
BEIS,UKRI - AHRC,24/04/2018,Training Awards - Postgraduates,Collabrative Doctoral Grants - Block Payment,Birkbeck College,98162635,5374.5,Training Awards - Postgraduates
BEIS,UKRI - AHRC,24/04/2018,Training Awards - Postgraduates,Collabrative Doctoral Grants - Block Payment,Birkbeck College,98162647,5374.5,Training Awards - Postgraduates
BEIS,UKRI - AHRC,24/04/2018,Training Awards - Postgraduates,Collabrative Doctoral Grants - Block Payment,Birkbeck College,98162661,5374.5,Training Awards - Postgraduates
BEIS,UKRI - AHRC,24/04/2018,Training Awards - Postgraduates,Collabrative Doctoral Grants - Block Payment,Birkbeck College,98162667,5374.5,Training Awards - Postgraduates
BEIS,UKRI - AHRC,24/04/2018,Training Awards - Postgraduates,Collabrative Doctoral Grants - Block Payment,Cardiff University,98162530,4879.5,Training Awards - Postgraduates
BEIS,UKRI - AHRC,24/04/2018,Training Awards - Postgraduates,Collabrative Doctoral Grants - Block Payment,Cardiff University,98162600,4874.5,Training Awards - Postgraduates
BEIS,UKRI - AHRC,24/04/2018,Training Awards - Postgraduates,Collabrative Doctoral Grants - Block Payment,Cardiff University,98162673,4874.5,Training Awards - Postgraduates
BEIS,UKRI - AHRC,24/04/2018,Training Awards - Postgraduates,Collabrative Doctoral Grants - Block Payment,"City, University of London",98162634,5374.5,Training Awards - Postgraduates
BEIS,UKRI - AHRC,24/04/2018,Training Awards - Postgraduates,Collabrative Doctoral Grants - Block Payment,Courtauld Institute of Art,98161088,787.5,Training Awards - Postgraduates
BEIS,UKRI - AHRC,24/04/2018,Training Awards - Postgraduates,BGP Award,Courtauld Institute of Art,98161093,-1098.79,Training Awards - Postgraduates
BEIS,UKRI - AHRC,24/04/2018,Training Awards - Postgraduates,Collabrative Doctoral Grants - Block Payment,Courtauld Institute of Art,98161140,808,Training Awards - Postgraduates
BEIS,UKRI - AHRC,24/04/2018,Training Awards - Postgraduates,Collabrative Doctoral Grants - Block Payment,Courtauld Institute of Art,98161148,-12258.3,Training Awards - Postgraduates
BEIS,UKRI - AHRC,24/04/2018,Training Awards - Postgraduates,Collabrative Doctoral Grants - Block Payment,Courtauld Institute of Art,98161149,60504,Training Awards - Postgraduates
BEIS,UKRI - AHRC,24/04/2018,Training Awards - Postgraduates,Collabrative Doctoral Grants - Block Payment,Courtauld Institute of Art,98162551,5379.5,Training Awards - Postgraduates
BEIS,UKRI - AHRC,24/04/2018,Training Awards - Postgraduates,Collabrative Doctoral Grants - Block Payment,Courtauld Institute of Art,98162566,5379.5,Training Awards - Postgraduates
BEIS,UKRI - AHRC,24/04/2018,Training Awards - Postgraduates,Collabrative Doctoral Grants - Block Payment,Courtauld Institute of Art,98162617,5374.5,Training Awards - Postgraduates
BEIS,UKRI - AHRC,24/04/2018,Training Awards - Postgraduates,Collabrative Doctoral Grants - Block Payment,Courtauld Institute of Art,98162670,5374.5,Training Awards - Postgraduates
BEIS,UKRI - AHRC,24/04/2018,Training Awards - Postgraduates,Collabrative Doctoral Grants - Block Payment,Coventry University,98162590,4874.5,Training Awards - Postgraduates
BEIS,UKRI - AHRC,24/04/2018,Training Awards - Postgraduates,BGP Award: Capacity Building,Glasgow School of Art,98161085,-465,Training Awards - Postgraduates
BEIS,UKRI - AHRC,24/04/2018,Training Awards - Postgraduates,Collabrative Doctoral Grants - Block Payment,Glasgow School of Art,98162678,4874.5,Training Awards - Postgraduates
BEIS,UKRI - AHRC,24/04/2018,Training Awards - Postgraduates,Collabrative Doctoral Grants - Block Payment,Guildhall School of Music & Drama,98162622,5374.5,Training Awards - Postgraduates
BEIS,UKRI - AHRC,24/04/2018,Training Awards - Postgraduates,Collabrative Doctoral Grants - Block Payment,Heriot Watt University,98162628,4874.5,Training Awards - Postgraduates
BEIS,UKRI - AHRC,24/04/2018,Training Awards - Postgraduates,Collabrative Doctoral Grants - Block Payment,London South Bank University,98162597,5374.5,Training Awards - Postgraduates
BEIS,UKRI - AHRC,24/04/2018,Training Awards - Postgraduates,BGP Award,Manchester Metropolitan University,98161092,-10509.89,Training Awards - Postgraduates
BEIS,UKRI - AHRC,24/04/2018,Training Awards - Postgraduates,Collabrative Doctoral Grants - Block Payment,Manchester Metropolitan University,98162528,4879.5,Training Awards - Postgraduates
BEIS,UKRI - AHRC,24/04/2018,Training Awards - Postgraduates,Collabrative Doctoral Grants - Block Payment,Manchester Metropolitan University,98162540,4879.5,Training Awards - Postgraduates
BEIS,UKRI - AHRC,24/04/2018,Training Awards - Postgraduates,Collabrative Doctoral Grants - Block Payment,Manchester Metropolitan University,98162615,4874.5,Training Awards - Postgraduates
BEIS,UKRI - AHRC,24/04/2018,Training Awards - Postgraduates,Collabrative Doctoral Grants - Block Payment,Northumbria University,98161120,-1023,Training Awards - Postgraduates
BEIS,UKRI - AHRC,24/04/2018,Training Awards - Postgraduates,BGP Award,Northumbria University,98162517,60047.14,Training Awards - Postgraduates
BEIS,UKRI - AHRC,24/04/2018,Training Awards - Postgraduates,Collabrative Doctoral Grants - Block Payment,Northumbria University,98162677,4874.5,Training Awards - Postgraduates
BEIS,UKRI - AHRC,24/04/2018,Training Awards - Postgraduates,BGP Award: Capacity Building,Nottingham Trent University,98161087,-6444,Training Awards - Postgraduates
BEIS,UKRI - AHRC,24/04/2018,Training Awards - Postgraduates,Collabrative Doctoral Grants - Block Payment,Nottingham Trent University,98162642,4874.5,Training Awards - Postgraduates
BEIS,UKRI - AHRC,24/04/2018,Training Awards - Postgraduates,Collabrative Doctoral Grants - Block Payment,Nottingham Trent University,98162644,4874.5,Training Awards - Postgraduates
BEIS,UKRI - AHRC,24/04/2018,Training Awards - Postgraduates,BGP Award: Capacity Building,Oxford Brookes University,98161083,-802,Training Awards - Postgraduates
BEIS,UKRI - AHRC,24/04/2018,Training Awards - Postgraduates,Collabrative Doctoral Grants - Block Payment,Oxford Brookes University,98162560,4879.5,Training Awards - Postgraduates
BEIS,UKRI - AHRC,24/04/2018,Training Awards - Postgraduates,BGP Award,Queen Mary University of London,98161090,-22316.5,Training Awards - Postgraduates
BEIS,UKRI - AHRC,24/04/2018,Training Awards - Postgraduates,Collabrative Doctoral Grants - Block Payment,Queen Mary University of London,98161111,-3739.5,Training Awards - Postgraduates
BEIS,UKRI - AHRC,24/04/2018,Training Awards - Postgraduates,Collabrative Doctoral Grants - Block Payment,Queen Mary University of London,98161143,808,Training Awards - Postgraduates
BEIS,UKRI - AHRC,24/04/2018,Training Awards - Postgraduates,Collabrative Doctoral Grants - Block Payment,Queen Mary University of London,98162534,5379.5,Training Awards - Postgraduates
BEIS,UKRI - AHRC,24/04/2018,Training Awards - Postgraduates,Collabrative Doctoral Grants - Block Payment,Queen Mary University of London,98162538,21518,Training Awards - Postgraduates
BEIS,UKRI - AHRC,24/04/2018,Training Awards - Postgraduates,Collabrative Doctoral Grants - Block Payment,Queen Mary University of London,98162547,5379.5,Training Awards - Postgraduates
BEIS,UKRI - AHRC,24/04/2018,Training Awards - Postgraduates,Collabrative Doctoral Grants - Block Payment,Queen Mary University of London,98162569,5379.5,Training Awards - Postgraduates
BEIS,UKRI - AHRC,24/04/2018,Training Awards - Postgraduates,Collabrative Doctoral Grants - Block Payment,Queen Mary University of London,98162599,5374.5,Training Awards - Postgraduates
BEIS,UKRI - AHRC,24/04/2018,Training Awards - Postgraduates,Collabrative Doctoral Grants - Block Payment,Queen Mary University of London,98162602,5374.5,Training Awards - Postgraduates
BEIS,UKRI - AHRC,24/04/2018,Training Awards - Postgraduates,Collabrative Doctoral Grants - Block Payment,Queen Mary University of London,98162631,5374.5,Training Awards - Postgraduates
BEIS,UKRI - AHRC,24/04/2018,Training Awards - Postgraduates,Collabrative Doctoral Grants - Block Payment,Queen Mary University of London,98162637,5374.5,Training Awards - Postgraduates
BEIS,UKRI - AHRC,24/04/2018,Training Awards - Postgraduates,BGP Award,"Royal Holloway, University of London",98161081,-49239.73,Training Awards - Postgraduates
BEIS,UKRI - AHRC,24/04/2018,Training Awards - Postgraduates,BGP Award,"Royal Holloway, University of London",98161091,-32231.14,Training Awards - Postgraduates
BEIS,UKRI - AHRC,24/04/2018,Training Awards - Postgraduates,Collabrative Doctoral Grants - Block Payment,"Royal Holloway, University of London",98161137,801,Training Awards - Postgraduates
BEIS,UKRI - AHRC,24/04/2018,Training Awards - Postgraduates,BGP Award,"Royal Holloway, University of London",98162507,14782.71,Training Awards - Postgraduates
BEIS,UKRI - AHRC,24/04/2018,Training Awards - Postgraduates,BGP Award,"Royal Holloway, University of London",98162507,669380.24,Training Awards - Postgraduates
BEIS,UKRI - AHRC,24/04/2018,Training Awards - Postgraduates,Collabrative Doctoral Grants - Block Payment,"Royal Holloway, University of London",98162571,5379.5,Training Awards - Postgraduates
BEIS,UKRI - AHRC,24/04/2018,Training Awards - Postgraduates,Collabrative Doctoral Grants - Block Payment,"Royal Holloway, University of London",98162601,5374.5,Training Awards - Postgraduates
BEIS,UKRI - AHRC,24/04/2018,Training Awards - Postgraduates,Collabrative Doctoral Grants - Block Payment,"Royal Holloway, University of London",98162603,5374.5,Training Awards - Postgraduates
BEIS,UKRI - AHRC,24/04/2018,Training Awards - Postgraduates,Collabrative Doctoral Grants - Block Payment,"Royal Holloway, University of London",98162643,5374.5,Training Awards - Postgraduates
BEIS,UKRI - AHRC,24/04/2018,Training Awards - Postgraduates,BGP Award,"Royal Holloway, University of London",98162690,72115.8,Training Awards - Postgraduates
BEIS,UKRI - AHRC,24/04/2018,Training Awards - Postgraduates,Collabrative Doctoral Grants - Block Payment,Royal Northern College of Music,98162537,4879.5,Training Awards - Postgraduates
BEIS,UKRI - AHRC,24/04/2018,Training Awards - Postgraduates,Collabrative Doctoral Grants - Block Payment,"SOAS, University of London",98162545,5379.5,Training Awards - Postgraduates
BEIS,UKRI - AHRC,24/04/2018,Training Awards - Postgraduates,Collabrative Doctoral Grants - Block Payment,"SOAS, University of London",98162548,5379.5,Training Awards - Postgraduates
BEIS,UKRI - AHRC,24/04/2018,Training Awards - Postgraduates,Collabrative Doctoral Grants - Block Payment,"SOAS, University of London",98162563,5379.5,Training Awards - Postgraduates
BEIS,UKRI - AHRC,24/04/2018,Training Awards - Postgraduates,Collabrative Doctoral Grants - Block Payment,"SOAS, University of London",98162638,5374.5,Training Awards - Postgraduates
BEIS,UKRI - AHRC,24/04/2018,Training Awards - Postgraduates,Collabrative Doctoral Grants - Block Payment,The University of Manchester,98161141,-1442,Training Awards - Postgraduates
BEIS,UKRI - AHRC,24/04/2018,Training Awards - Postgraduates,International Placement Scheme,The University of Manchester,98161144,4300,Training Awards - Postgraduates
BEIS,UKRI - AHRC,24/04/2018,Training Awards - Postgraduates,BGP Award,The University of Manchester,98162518,700670.25,Training Awards - Postgraduates
BEIS,UKRI - AHRC,24/04/2018,Training Awards - Postgraduates,Collabrative Doctoral Grants - Block Payment,The University of Manchester,98162623,4874.5,Training Awards - Postgraduates
BEIS,UKRI - AHRC,24/04/2018,Training Awards - Postgraduates,Collabrative Doctoral Grants - Block Payment,The University of Manchester,98162627,4874.5,Training Awards - Postgraduates
BEIS,UKRI - AHRC,24/04/2018,Training Awards - Postgraduates,Collabrative Doctoral Grants - Block Payment,The University of Manchester,98162672,4874.5,Training Awards - Postgraduates
BEIS,UKRI - AHRC,24/04/2018,Training Awards - Postgraduates,Collabrative Doctoral Grants - Block Payment,The University of Manchester,98162676,4874.5,Training Awards - Postgraduates
BEIS,UKRI - AHRC,24/04/2018,Training Awards - Postgraduates,BGP Award,The University of Manchester,98162687,66866,Training Awards - Postgraduates
BEIS,UKRI - AHRC,24/04/2018,Training Awards - Postgraduates,BGP Award,University College London,98161080,-8422.39,Training Awards - Postgraduates
BEIS,UKRI - AHRC,24/04/2018,Training Awards - Postgraduates,International Placement Scheme,University College London,98161146,2670,Training Awards - Postgraduates
BEIS,UKRI - AHRC,24/04/2018,Training Awards - Postgraduates,BGP Award,University College London,98162510,121545.51,Training Awards - Postgraduates
BEIS,UKRI - AHRC,24/04/2018,Training Awards - Postgraduates,BGP Award,University College London,98162511,3863.28,Training Awards - Postgraduates
BEIS,UKRI - AHRC,24/04/2018,Training Awards - Postgraduates,BGP Award,University College London,98162511,929004.3,Training Awards - Postgraduates
BEIS,UKRI - AHRC,24/04/2018,Training Awards - Postgraduates,Collabrative Doctoral Grants - Block Payment,University College London,98162558,5379.5,Training Awards - Postgraduates
BEIS,UKRI - AHRC,24/04/2018,Training Awards - Postgraduates,Collabrative Doctoral Grants - Block Payment,University College London,98162559,5379.5,Training Awards - Postgraduates
BEIS,UKRI - AHRC,24/04/2018,Training Awards - Postgraduates,Collabrative Doctoral Grants - Block Payment,University College London,98162588,5374.5,Training Awards - Postgraduates
BEIS,UKRI - AHRC,24/04/2018,Training Awards - Postgraduates,Collabrative Doctoral Grants - Block Payment,University College London,98162594,5374.5,Training Awards - Postgraduates
BEIS,UKRI - AHRC,24/04/2018,Training Awards - Postgraduates,Collabrative Doctoral Grants - Block Payment,University College London,98162625,5374.5,Training Awards - Postgraduates
BEIS,UKRI - AHRC,24/04/2018,Training Awards - Postgraduates,Collabrative Doctoral Grants - Block Payment,University College London,98162639,5374.5,Training Awards - Postgraduates
BEIS,UKRI - AHRC,24/04/2018,Training Awards - Postgraduates,Collabrative Doctoral Grants - Block Payment,University College London,98162660,5374.5,Training Awards - Postgraduates
BEIS,UKRI - AHRC,24/04/2018,Training Awards - Postgraduates,Collabrative Doctoral Grants - Block Payment,University of Bedfordshire,98162621,4874.5,Training Awards - Postgraduates
BEIS,UKRI - AHRC,24/04/2018,Training Awards - Postgraduates,Collabrative Doctoral Grants - Block Payment,University of Brighton,98162526,4879.5,Training Awards - Postgraduates
BEIS,UKRI - AHRC,24/04/2018,Training Awards - Postgraduates,Collabrative Doctoral Grants - Block Payment,University of Brighton,98162546,4879.5,Training Awards - Postgraduates
BEIS,UKRI - AHRC,24/04/2018,Training Awards - Postgraduates,Collabrative Doctoral Grants - Block Payment,University of Brighton,98162610,4874.5,Training Awards - Postgraduates
BEIS,UKRI - AHRC,24/04/2018,Training Awards - Postgraduates,Collabrative Doctoral Grants - Block Payment,University of Brighton,98162612,4874.5,Training Awards - Postgraduates
BEIS,UKRI - AHRC,24/04/2018,Training Awards - Postgraduates,BGP Award,University of Bristol GRANT,98161103,-40000,Training Awards - Postgraduates
BEIS,UKRI - AHRC,24/04/2018,Training Awards - Postgraduates,BGP Award,University of Bristol GRANT,98162515,700670.25,Training Awards - Postgraduates
BEIS,UKRI - AHRC,24/04/2018,Training Awards - Postgraduates,Collabrative Doctoral Grants - Block Payment,University of Bristol GRANT,98162556,4879.5,Training Awards - Postgraduates
BEIS,UKRI - AHRC,24/04/2018,Training Awards - Postgraduates,Collabrative Doctoral Grants - Block Payment,University of Bristol GRANT,98162619,4874.5,Training Awards - Postgraduates
BEIS,UKRI - AHRC,24/04/2018,Training Awards - Postgraduates,Collabrative Doctoral Grants - Block Payment,University of Bristol GRANT,98162636,4874.5,Training Awards - Postgraduates
BEIS,UKRI - AHRC,24/04/2018,Training Awards - Postgraduates,Collabrative Doctoral Grants - Block Payment,University of Bristol GRANT,98162649,4874.5,Training Awards - Postgraduates
BEIS,UKRI - AHRC,24/04/2018,Training Awards - Postgraduates,BGP Award,University of Cambridge,98161104,-124379.72,Training Awards - Postgraduates
BEIS,UKRI - AHRC,24/04/2018,Training Awards - Postgraduates,Collabrative Doctoral Grants - Block Payment,University of Cambridge,98161112,-135.3,Training Awards - Postgraduates
BEIS,UKRI - AHRC,24/04/2018,Training Awards - Postgraduates,Collabrative Doctoral Grants - Block Payment,University of Cambridge,98162506,4593.92,Training Awards - Postgraduates
BEIS,UKRI - AHRC,24/04/2018,Training Awards - Postgraduates,BGP Award,University of Cambridge,98162519,1446.81,Training Awards - Postgraduates
BEIS,UKRI - AHRC,24/04/2018,Training Awards - Postgraduates,BGP Award,University of Cambridge,98162519,700670.25,Training Awards - Postgraduates
BEIS,UKRI - AHRC,24/04/2018,Training Awards - Postgraduates,Collabrative Doctoral Grants - Block Payment,University of Cambridge,98162562,4879.5,Training Awards - Postgraduates
BEIS,UKRI - AHRC,24/04/2018,Training Awards - Postgraduates,Collabrative Doctoral Grants - Block Payment,University of Cambridge,98162606,4874.5,Training Awards - Postgraduates
BEIS,UKRI - AHRC,24/04/2018,Training Awards - Postgraduates,Collabrative Doctoral Grants - Block Payment,University of Cambridge,98162629,4874.5,Training Awards - Postgraduates
BEIS,UKRI - AHRC,24/04/2018,Training Awards - Postgraduates,Collabrative Doctoral Grants - Block Payment,University of Central Lancashire,98162582,9749,Training Awards - Postgraduates
BEIS,UKRI - AHRC,24/04/2018,Training Awards - Postgraduates,Collabrative Doctoral Grants - Block Payment,University of Central Lancashire,98162656,4874.5,Training Awards - Postgraduates
BEIS,UKRI - AHRC,24/04/2018,Training Awards - Postgraduates,Collabrative Doctoral Grants - Block Payment,University of Durham,98161145,808,Training Awards - Postgraduates
BEIS,UKRI - AHRC,24/04/2018,Training Awards - Postgraduates,Collabrative Doctoral Grants - Block Payment,University of Durham,98162561,4879.5,Training Awards - Postgraduates
BEIS,UKRI - AHRC,24/04/2018,Training Awards - Postgraduates,Collabrative Doctoral Grants - Block Payment,University of Durham,98162561,4879.5,Training Awards - Postgraduates
BEIS,UKRI - AHRC,24/04/2018,Training Awards - Postgraduates,Collabrative Doctoral Grants - Block Payment,University of Durham,98162595,4874.5,Training Awards - Postgraduates
BEIS,UKRI - AHRC,24/04/2018,Training Awards - Postgraduates,Collabrative Doctoral Grants - Block Payment,University of Durham,98162595,4874.5,Training Awards - Postgraduates
BEIS,UKRI - AHRC,24/04/2018,Training Awards - Postgraduates,Collabrative Doctoral Grants - Block Payment,University of Durham,98162614,4874.5,Training Awards - Postgraduates
BEIS,UKRI - AHRC,24/04/2018,Training Awards - Postgraduates,Collabrative Doctoral Grants - Block Payment,University of Durham,98162614,4874.5,Training Awards - Postgraduates
BEIS,UKRI - AHRC,24/04/2018,Training Awards - Postgraduates,Collabrative Doctoral Grants - Block Payment,University of Durham,98162616,4874.5,Training Awards - Postgraduates
BEIS,UKRI - AHRC,24/04/2018,Training Awards - Postgraduates,Collabrative Doctoral Grants - Block Payment,University of Durham,98162616,4874.5,Training Awards - Postgraduates
BEIS,UKRI - AHRC,24/04/2018,Training Awards - Postgraduates,Collabrative Doctoral Grants - Block Payment,University of Durham,98162650,4874.5,Training Awards - Postgraduates
BEIS,UKRI - AHRC,24/04/2018,Training Awards - Postgraduates,Collabrative Doctoral Grants - Block Payment,University of Durham,98162650,4874.5,Training Awards - Postgraduates
BEIS,UKRI - AHRC,24/04/2018,Training Awards - Postgraduates,International Placement Scheme,University of Durham,98162684,4470,Training Awards - Postgraduates
BEIS,UKRI - AHRC,24/04/2018,Training Awards - Postgraduates,BGP Award,University of Glasgow,98161105,-36205.28,Training Awards - Postgraduates
BEIS,UKRI - AHRC,24/04/2018,Training Awards - Postgraduates,Collabrative Doctoral Grants - Block Payment,University of Glasgow,98161113,7203.76,Training Awards - Postgraduates
BEIS,UKRI - AHRC,24/04/2018,Training Awards - Postgraduates,Collabrative Doctoral Grants - Block Payment,University of Glasgow,98161116,807.99,Training Awards - Postgraduates
BEIS,UKRI - AHRC,24/04/2018,Training Awards - Postgraduates,Collabrative Doctoral Grants - Block Payment,University of Glasgow,98161119,1015.98,Training Awards - Postgraduates
BEIS,UKRI - AHRC,24/04/2018,Training Awards - Postgraduates,Collabrative Doctoral Grants - Block Payment,University of Glasgow,98161136,653.13,Training Awards - Postgraduates
BEIS,UKRI - AHRC,24/04/2018,Training Awards - Postgraduates,BGP Award,University of Glasgow,98162513,700670.25,Training Awards - Postgraduates
BEIS,UKRI - AHRC,24/04/2018,Training Awards - Postgraduates,BGP Award,University of Glasgow,98162516,90106.8,Training Awards - Postgraduates
BEIS,UKRI - AHRC,24/04/2018,Training Awards - Postgraduates,Collabrative Doctoral Grants - Block Payment,University of Glasgow,98162524,4879.5,Training Awards - Postgraduates
BEIS,UKRI - AHRC,24/04/2018,Training Awards - Postgraduates,Collabrative Doctoral Grants - Block Payment,University of Glasgow,98162525,4879.5,Training Awards - Postgraduates
BEIS,UKRI - AHRC,24/04/2018,Training Awards - Postgraduates,Collabrative Doctoral Grants - Block Payment,University of Glasgow,98162544,4879.5,Training Awards - Postgraduates
BEIS,UKRI - AHRC,24/04/2018,Training Awards - Postgraduates,Collabrative Doctoral Grants - Block Payment,University of Glasgow,98162550,4879.5,Training Awards - Postgraduates
BEIS,UKRI - AHRC,24/04/2018,Training Awards - Postgraduates,Collabrative Doctoral Grants - Block Payment,University of Glasgow,98162553,4879.5,Training Awards - Postgraduates
BEIS,UKRI - AHRC,24/04/2018,Training Awards - Postgraduates,Collabrative Doctoral Grants - Block Payment,University of Glasgow,98162578,4879.5,Training Awards - Postgraduates
BEIS,UKRI - AHRC,24/04/2018,Training Awards - Postgraduates,Collabrative Doctoral Grants - Block Payment,University of Glasgow,98162584,4874.5,Training Awards - Postgraduates
BEIS,UKRI - AHRC,24/04/2018,Training Awards - Postgraduates,Collabrative Doctoral Grants - Block Payment,University of Glasgow,98162585,4874.5,Training Awards - Postgraduates
BEIS,UKRI - AHRC,24/04/2018,Training Awards - Postgraduates,Collabrative Doctoral Grants - Block Payment,University of Glasgow,98162624,4874.5,Training Awards - Postgraduates
BEIS,UKRI - AHRC,24/04/2018,Training Awards - Postgraduates,Collabrative Doctoral Grants - Block Payment,University of Glasgow,98162659,4874.5,Training Awards - Postgraduates
BEIS,UKRI - AHRC,24/04/2018,Training Awards - Postgraduates,BGP Award,University of Glasgow,98162685,66865.8,Training Awards - Postgraduates
BEIS,UKRI - AHRC,24/04/2018,Training Awards - Postgraduates,BGP Award: Capacity Building,University of Hull,98161082,1888.5,Training Awards - Postgraduates
BEIS,UKRI - AHRC,24/04/2018,Training Awards - Postgraduates,BGP Award,University of Hull,98162509,90106.8,Training Awards - Postgraduates
BEIS,UKRI - AHRC,24/04/2018,Training Awards - Postgraduates,BGP Award,University of Kent,98161106,-3195.99,Training Awards - Postgraduates
BEIS,UKRI - AHRC,24/04/2018,Training Awards - Postgraduates,Collabrative Doctoral Grants - Block Payment,University of Kent,98162529,4879.5,Training Awards - Postgraduates
BEIS,UKRI - AHRC,24/04/2018,Training Awards - Postgraduates,Collabrative Doctoral Grants - Block Payment,University of Kent,98162541,4879.51,Training Awards - Postgraduates
BEIS,UKRI - AHRC,24/04/2018,Training Awards - Postgraduates,Collabrative Doctoral Grants - Block Payment,University of Kent,98162608,4874.5,Training Awards - Postgraduates
BEIS,UKRI - AHRC,24/04/2018,Training Awards - Postgraduates,Collabrative Doctoral Grants - Block Payment,University of Kent,98162646,4874.5,Training Awards - Postgraduates
BEIS,UKRI - AHRC,24/04/2018,Training Awards - Postgraduates,BGP Award,University of Leeds,98161107,-0.22,Training Awards - Postgraduates
BEIS,UKRI - AHRC,24/04/2018,Training Awards - Postgraduates,Collabrative Doctoral Grants - Block Payment,University of Leeds,98161115,808,Training Awards - Postgraduates
BEIS,UKRI - AHRC,24/04/2018,Training Awards - Postgraduates,Collabrative Doctoral Grants - Block Payment,University of Leeds,98161122,808,Training Awards - Postgraduates
BEIS,UKRI - AHRC,24/04/2018,Training Awards - Postgraduates,Collabrative Doctoral Grants - Block Payment,University of Leeds,98161130,808,Training Awards - Postgraduates
BEIS,UKRI - AHRC,24/04/2018,Training Awards - Postgraduates,Collabrative Doctoral Grants - Block Payment,University of Leeds,98162565,4879.5,Training Awards - Postgraduates
BEIS,UKRI - AHRC,24/04/2018,Training Awards - Postgraduates,Collabrative Doctoral Grants - Block Payment,University of Leeds,98162565,4879.5,Training Awards - Postgraduates
BEIS,UKRI - AHRC,24/04/2018,Training Awards - Postgraduates,Collabrative Doctoral Grants - Block Payment,University of Leeds,98162611,4874.5,Training Awards - Postgraduates
BEIS,UKRI - AHRC,24/04/2018,Training Awards - Postgraduates,Collabrative Doctoral Grants - Block Payment,University of Leeds,98162611,4874.5,Training Awards - Postgraduates
BEIS,UKRI - AHRC,24/04/2018,Training Awards - Postgraduates,Collabrative Doctoral Grants - Block Payment,University of Leeds,98162613,4874.5,Training Awards - Postgraduates
BEIS,UKRI - AHRC,24/04/2018,Training Awards - Postgraduates,Collabrative Doctoral Grants - Block Payment,University of Leeds,98162613,4874.5,Training Awards - Postgraduates
BEIS,UKRI - AHRC,24/04/2018,Training Awards - Postgraduates,Collabrative Doctoral Grants - Block Payment,University of Leeds,98162633,4874.5,Training Awards - Postgraduates
BEIS,UKRI - AHRC,24/04/2018,Training Awards - Postgraduates,Collabrative Doctoral Grants - Block Payment,University of Leeds,98162633,4874.5,Training Awards - Postgraduates
BEIS,UKRI - AHRC,24/04/2018,Training Awards - Postgraduates,Collabrative Doctoral Grants - Block Payment,University of Leeds,98162651,4874.5,Training Awards - Postgraduates
BEIS,UKRI - AHRC,24/04/2018,Training Awards - Postgraduates,Collabrative Doctoral Grants - Block Payment,University of Leeds,98162651,4874.5,Training Awards - Postgraduates
BEIS,UKRI - AHRC,24/04/2018,Training Awards - Postgraduates,Collabrative Doctoral Grants - Block Payment,University of Leeds,98162653,4874.5,Training Awards - Postgraduates
BEIS,UKRI - AHRC,24/04/2018,Training Awards - Postgraduates,Collabrative Doctoral Grants - Block Payment,University of Leeds,98162653,4874.5,Training Awards - Postgraduates
BEIS,UKRI - AHRC,24/04/2018,Training Awards - Postgraduates,Collabrative Doctoral Grants - Block Payment,University of Leeds,98162665,4874.5,Training Awards - Postgraduates
BEIS,UKRI - AHRC,24/04/2018,Training Awards - Postgraduates,Collabrative Doctoral Grants - Block Payment,University of Leeds,98162665,4874.5,Training Awards - Postgraduates
BEIS,UKRI - AHRC,24/04/2018,Training Awards - Postgraduates,BGP Award,University of Leicester,98161108,-28747.46,Training Awards - Postgraduates
BEIS,UKRI - AHRC,24/04/2018,Training Awards - Postgraduates,Collabrative Doctoral Grants - Block Payment,University of Leicester,98161109,1745.18,Training Awards - Postgraduates
BEIS,UKRI - AHRC,24/04/2018,Training Awards - Postgraduates,Collabrative Doctoral Grants - Block Payment,University of Leicester,98161110,2978,Training Awards - Postgraduates
BEIS,UKRI - AHRC,24/04/2018,Training Awards - Postgraduates,Collabrative Doctoral Grants - Block Payment,University of Leicester,98161127,812.9,Training Awards - Postgraduates
BEIS,UKRI - AHRC,24/04/2018,Training Awards - Postgraduates,Collabrative Doctoral Grants - Block Payment,University of Leicester,98162542,4879.5,Training Awards - Postgraduates
BEIS,UKRI - AHRC,24/04/2018,Training Awards - Postgraduates,Collabrative Doctoral Grants - Block Payment,University of Leicester,98162552,4879.5,Training Awards - Postgraduates
BEIS,UKRI - AHRC,24/04/2018,Training Awards - Postgraduates,Collabrative Doctoral Grants - Block Payment,University of Leicester,98162572,4879.5,Training Awards - Postgraduates
BEIS,UKRI - AHRC,24/04/2018,Training Awards - Postgraduates,Collabrative Doctoral Grants - Block Payment,University of Leicester,98162575,4879.5,Training Awards - Postgraduates
BEIS,UKRI - AHRC,24/04/2018,Training Awards - Postgraduates,Collabrative Doctoral Grants - Block Payment,University of Leicester,98162626,4874.5,Training Awards - Postgraduates
BEIS,UKRI - AHRC,24/04/2018,Training Awards - Postgraduates,Collabrative Doctoral Grants - Block Payment,University of Leicester,98162652,4874.5,Training Awards - Postgraduates
BEIS,UKRI - AHRC,24/04/2018,Training Awards - Postgraduates,Collabrative Doctoral Grants - Block Payment,University of Leicester,98162655,4874.5,Training Awards - Postgraduates
BEIS,UKRI - AHRC,24/04/2018,Training Awards - Postgraduates,Collabrative Doctoral Grants - Block Payment,University of Leicester,98162664,4874.5,Training Awards - Postgraduates
BEIS,UKRI - AHRC,24/04/2018,Training Awards - Postgraduates,Collabrative Doctoral Grants - Block Payment,University of Leicester,98162666,4874.5,Training Awards - Postgraduates
BEIS,UKRI - AHRC,24/04/2018,Training Awards - Postgraduates,Collabrative Doctoral Grants - Block Payment,University of Lincoln,98162609,4874.5,Training Awards - Postgraduates
BEIS,UKRI - AHRC,24/04/2018,Training Awards - Postgraduates,Collabrative Doctoral Grants - Block Payment,University of Liverpool,98161133,208,Training Awards - Postgraduates
BEIS,UKRI - AHRC,24/04/2018,Training Awards - Postgraduates,BGP Award,University of Liverpool,98162505,402.3,Training Awards - Postgraduates
BEIS,UKRI - AHRC,24/04/2018,Training Awards - Postgraduates,Collabrative Doctoral Grants - Block Payment,University of Liverpool,98162539,14638.5,Training Awards - Postgraduates
BEIS,UKRI - AHRC,24/04/2018,Training Awards - Postgraduates,Collabrative Doctoral Grants - Block Payment,University of Liverpool,98162586,9749,Training Awards - Postgraduates
BEIS,UKRI - AHRC,24/04/2018,Training Awards - Postgraduates,Collabrative Doctoral Grants - Block Payment,University of Liverpool,98162591,9749,Training Awards - Postgraduates
BEIS,UKRI - AHRC,24/04/2018,Training Awards - Postgraduates,Collabrative Doctoral Grants - Block Payment,University of Liverpool,98162596,9749,Training Awards - Postgraduates
BEIS,UKRI - AHRC,24/04/2018,Training Awards - Postgraduates,International Placement Scheme,University of Liverpool,98162683,4470,Training Awards - Postgraduates
BEIS,UKRI - AHRC,24/04/2018,Training Awards - Postgraduates,BGP Award,University of London,98161094,-2306.46,Training Awards - Postgraduates
BEIS,UKRI - AHRC,24/04/2018,Training Awards - Postgraduates,Collabrative Doctoral Grants - Block Payment,University of London,98162663,5374.5,Training Awards - Postgraduates
BEIS,UKRI - AHRC,24/04/2018,Training Awards - Postgraduates,BGP Award,University of Newcastle Upon Tyne,98161095,-80338.84,Training Awards - Postgraduates
BEIS,UKRI - AHRC,24/04/2018,Training Awards - Postgraduates,Collabrative Doctoral Grants - Block Payment,University of Newcastle Upon Tyne,98161118,208,Training Awards - Postgraduates
BEIS,UKRI - AHRC,24/04/2018,Training Awards - Postgraduates,BGP Award,University of Newcastle Upon Tyne,98162514,550516.31,Training Awards - Postgraduates
BEIS,UKRI - AHRC,24/04/2018,Training Awards - Postgraduates,Collabrative Doctoral Grants - Block Payment,University of Newcastle Upon Tyne,98162532,14638.5,Training Awards - Postgraduates
BEIS,UKRI - AHRC,24/04/2018,Training Awards - Postgraduates,Collabrative Doctoral Grants - Block Payment,University of Newcastle Upon Tyne,98162555,4879.5,Training Awards - Postgraduates
BEIS,UKRI - AHRC,24/04/2018,Training Awards - Postgraduates,Collabrative Doctoral Grants - Block Payment,University of Newcastle Upon Tyne,98162620,4874.5,Training Awards - Postgraduates
BEIS,UKRI - AHRC,24/04/2018,Training Awards - Postgraduates,BGP Award,University of Newcastle Upon Tyne,98162686,66866,Training Awards - Postgraduates
BEIS,UKRI - AHRC,24/04/2018,Training Awards - Postgraduates,Collabrative Doctoral Grants - Block Payment,University of Northampton,98162630,4874.5,Training Awards - Postgraduates
BEIS,UKRI - AHRC,24/04/2018,Training Awards - Postgraduates,BGP Award,University of Nottingham,98161096,-32490.75,Training Awards - Postgraduates
BEIS,UKRI - AHRC,24/04/2018,Training Awards - Postgraduates,Collabrative Doctoral Grants - Block Payment,University of Nottingham,98161126,203,Training Awards - Postgraduates
BEIS,UKRI - AHRC,24/04/2018,Training Awards - Postgraduates,BGP Award,University of Nottingham,98162522,20960.91,Training Awards - Postgraduates
BEIS,UKRI - AHRC,24/04/2018,Training Awards - Postgraduates,BGP Award,University of Nottingham,98162522,718187.01,Training Awards - Postgraduates
BEIS,UKRI - AHRC,24/04/2018,Training Awards - Postgraduates,Collabrative Doctoral Grants - Block Payment,University of Nottingham,98162549,4879.5,Training Awards - Postgraduates
BEIS,UKRI - AHRC,24/04/2018,Training Awards - Postgraduates,Collabrative Doctoral Grants - Block Payment,University of Nottingham,98162568,4879.5,Training Awards - Postgraduates
BEIS,UKRI - AHRC,24/04/2018,Training Awards - Postgraduates,Collabrative Doctoral Grants - Block Payment,University of Nottingham,98162592,4874.5,Training Awards - Postgraduates
BEIS,UKRI - AHRC,24/04/2018,Training Awards - Postgraduates,Collabrative Doctoral Grants - Block Payment,University of Nottingham,98162598,4874.5,Training Awards - Postgraduates
BEIS,UKRI - AHRC,24/04/2018,Training Awards - Postgraduates,Collabrative Doctoral Grants - Block Payment,University of Nottingham,98162658,4874.5,Training Awards - Postgraduates
BEIS,UKRI - AHRC,24/04/2018,Training Awards - Postgraduates,International Placement Scheme,University of Nottingham,98162681,5670,Training Awards - Postgraduates
BEIS,UKRI - AHRC,24/04/2018,Training Awards - Postgraduates,International Placement Scheme,University of Nottingham,98162682,8070,Training Awards - Postgraduates
BEIS,UKRI - AHRC,24/04/2018,Training Awards - Postgraduates,BGP Award,University of Nottingham,98162689,51114.5,Training Awards - Postgraduates
BEIS,UKRI - AHRC,24/04/2018,Training Awards - Postgraduates,BGP Award,University of Oxford,98161097,-4334.57,Training Awards - Postgraduates
BEIS,UKRI - AHRC,24/04/2018,Training Awards - Postgraduates,Collabrative Doctoral Grants - Block Payment,University of Oxford,98161131,-697.5,Training Awards - Postgraduates
BEIS,UKRI - AHRC,24/04/2018,Training Awards - Postgraduates,BGP Award,University of Oxford,98162512,722.4,Training Awards - Postgraduates
BEIS,UKRI - AHRC,24/04/2018,Training Awards - Postgraduates,BGP Award,University of Oxford,98162512,700670.25,Training Awards - Postgraduates
BEIS,UKRI - AHRC,24/04/2018,Training Awards - Postgraduates,Collabrative Doctoral Grants - Block Payment,University of Oxford,98162554,4879.5,Training Awards - Postgraduates
BEIS,UKRI - AHRC,24/04/2018,Training Awards - Postgraduates,Collabrative Doctoral Grants - Block Payment,University of Oxford,98162567,4879.5,Training Awards - Postgraduates
BEIS,UKRI - AHRC,24/04/2018,Training Awards - Postgraduates,Collabrative Doctoral Grants - Block Payment,University of Oxford,98162641,4874.5,Training Awards - Postgraduates
BEIS,UKRI - AHRC,24/04/2018,Training Awards - Postgraduates,Collabrative Doctoral Grants - Block Payment,University of Oxford,98162662,4874.5,Training Awards - Postgraduates
BEIS,UKRI - AHRC,24/04/2018,Training Awards - Postgraduates,Collabrative Doctoral Grants - Block Payment,University of Reading,98161117,819,Training Awards - Postgraduates
BEIS,UKRI - AHRC,24/04/2018,Training Awards - Postgraduates,Collabrative Doctoral Grants - Block Payment,University of Reading,98161138,-16.99,Training Awards - Postgraduates
BEIS,UKRI - AHRC,24/04/2018,Training Awards - Postgraduates,BGP Award,University of Reading,98162520,107654.66,Training Awards - Postgraduates
BEIS,UKRI - AHRC,24/04/2018,Training Awards - Postgraduates,Collabrative Doctoral Grants - Block Payment,University of Reading,98162543,4879.5,Training Awards - Postgraduates
BEIS,UKRI - AHRC,24/04/2018,Training Awards - Postgraduates,Collabrative Doctoral Grants - Block Payment,University of Reading,98162618,4874.5,Training Awards - Postgraduates
BEIS,UKRI - AHRC,24/04/2018,Training Awards - Postgraduates,Collabrative Doctoral Grants - Block Payment,University of Reading,98162668,4874.5,Training Awards - Postgraduates
BEIS,UKRI - AHRC,24/04/2018,Training Awards - Postgraduates,Collabrative Doctoral Grants - Block Payment,University of Reading,98162674,4874.5,Training Awards - Postgraduates
BEIS,UKRI - AHRC,24/04/2018,Training Awards - Postgraduates,BGP Award,University of Sheffield,98161101,1224.42,Training Awards - Postgraduates
BEIS,UKRI - AHRC,24/04/2018,Training Awards - Postgraduates,Collabrative Doctoral Grants - Block Payment,University of Sheffield,98162535,14638.5,Training Awards - Postgraduates
BEIS,UKRI - AHRC,24/04/2018,Training Awards - Postgraduates,Collabrative Doctoral Grants - Block Payment,University of Sheffield,98162557,4879.5,Training Awards - Postgraduates
BEIS,UKRI - AHRC,24/04/2018,Training Awards - Postgraduates,Collabrative Doctoral Grants - Block Payment,University of Sheffield,98162576,4879.5,Training Awards - Postgraduates
BEIS,UKRI - AHRC,24/04/2018,Training Awards - Postgraduates,Collabrative Doctoral Grants - Block Payment,University of Sheffield,98162587,4874.5,Training Awards - Postgraduates
BEIS,UKRI - AHRC,24/04/2018,Training Awards - Postgraduates,Collabrative Doctoral Grants - Block Payment,University of Sheffield,98162645,4874.5,Training Awards - Postgraduates
BEIS,UKRI - AHRC,24/04/2018,Training Awards - Postgraduates,BGP Award,University of Southampton GRANT,98161098,-10.51,Training Awards - Postgraduates
BEIS,UKRI - AHRC,24/04/2018,Training Awards - Postgraduates,Collabrative Doctoral Grants - Block Payment,University of Southampton GRANT,98162577,4879.5,Training Awards - Postgraduates
BEIS,UKRI - AHRC,24/04/2018,Training Awards - Postgraduates,BGP Award,University of St Andrews,98161099,-986.07,Training Awards - Postgraduates
BEIS,UKRI - AHRC,24/04/2018,Training Awards - Postgraduates,Collabrative Doctoral Grants - Block Payment,University of St Andrews,98161121,208,Training Awards - Postgraduates
BEIS,UKRI - AHRC,24/04/2018,Training Awards - Postgraduates,Collabrative Doctoral Grants - Block Payment,University of St Andrews,98162583,4874.5,Training Awards - Postgraduates
BEIS,UKRI - AHRC,24/04/2018,Training Awards - Postgraduates,Collabrative Doctoral Grants - Block Payment,University of St Andrews,98162654,4874.5,Training Awards - Postgraduates
BEIS,UKRI - AHRC,24/04/2018,Training Awards - Postgraduates,Collabrative Doctoral Grants - Block Payment,University of Strathclyde,98161124,757,Training Awards - Postgraduates
BEIS,UKRI - AHRC,24/04/2018,Training Awards - Postgraduates,Collabrative Doctoral Grants - Block Payment,University of Strathclyde,98162570,4879.5,Training Awards - Postgraduates
BEIS,UKRI - AHRC,24/04/2018,Training Awards - Postgraduates,Collabrative Doctoral Grants - Block Payment,University of Strathclyde,98162579,4879.5,Training Awards - Postgraduates
BEIS,UKRI - AHRC,24/04/2018,Training Awards - Postgraduates,Collabrative Doctoral Grants - Block Payment,University of Strathclyde,98162607,4874.53,Training Awards - Postgraduates
BEIS,UKRI - AHRC,24/04/2018,Training Awards - Postgraduates,Collabrative Doctoral Grants - Block Payment,University of Strathclyde,98162640,4911,Training Awards - Postgraduates
BEIS,UKRI - AHRC,24/04/2018,Training Awards - Postgraduates,Collabrative Doctoral Grants - Block Payment,University of Sunderland,98162527,4879.5,Training Awards - Postgraduates
BEIS,UKRI - AHRC,24/04/2018,Training Awards - Postgraduates,Collabrative Doctoral Grants - Block Payment,University of Sussex,98161114,7822.25,Training Awards - Postgraduates
BEIS,UKRI - AHRC,24/04/2018,Training Awards - Postgraduates,International Placement Scheme,University of Sussex,98161147,3270,Training Awards - Postgraduates
BEIS,UKRI - AHRC,24/04/2018,Training Awards - Postgraduates,BGP Award,University of Sussex,98162521,6201.5,Training Awards - Postgraduates
BEIS,UKRI - AHRC,24/04/2018,Training Awards - Postgraduates,BGP Award,University of Sussex,98162521,837614.54,Training Awards - Postgraduates
BEIS,UKRI - AHRC,24/04/2018,Training Awards - Postgraduates,Collabrative Doctoral Grants - Block Payment,University of Sussex,98162657,4874.5,Training Awards - Postgraduates
BEIS,UKRI - AHRC,24/04/2018,Training Awards - Postgraduates,International Placement Scheme,University of Sussex,98162679,4470,Training Awards - Postgraduates
BEIS,UKRI - AHRC,24/04/2018,Training Awards - Postgraduates,Collabrative Doctoral Grants - Block Payment,University of the Highlands and Islands,98162564,4879.5,Training Awards - Postgraduates
BEIS,UKRI - AHRC,24/04/2018,Training Awards - Postgraduates,Collabrative Doctoral Grants - Block Payment,University of the Highlands and Islands,98162593,4874.5,Training Awards - Postgraduates
BEIS,UKRI - AHRC,24/04/2018,Training Awards - Postgraduates,BGP Award,University of the West of England,98162508,112597.41,Training Awards - Postgraduates
BEIS,UKRI - AHRC,24/04/2018,Training Awards - Postgraduates,BGP Award,University of the West of England,98162688,62536.2,Training Awards - Postgraduates
BEIS,UKRI - AHRC,24/04/2018,Training Awards - Postgraduates,Collabrative Doctoral Grants - Block Payment,University of Westminster,98162675,5473,Training Awards - Postgraduates
BEIS,UKRI - AHRC,24/04/2018,Training Awards - Postgraduates,Collabrative Doctoral Grants - Block Payment,University of Wolverhampton,98162648,4874.5,Training Awards - Postgraduates
BEIS,UKRI - AHRC,24/04/2018,Training Awards - Postgraduates,BGP Award,University of York,98161100,-7585.39,Training Awards - Postgraduates
BEIS,UKRI - AHRC,24/04/2018,Training Awards - Postgraduates,Collabrative Doctoral Grants - Block Payment,University of York,98161125,808,Training Awards - Postgraduates
BEIS,UKRI - AHRC,24/04/2018,Training Awards - Postgraduates,Collabrative Doctoral Grants - Block Payment,University of York,98161129,808,Training Awards - Postgraduates
BEIS,UKRI - AHRC,24/04/2018,Training Awards - Postgraduates,Collabrative Doctoral Grants - Block Payment,University of York,98161132,808,Training Awards - Postgraduates
BEIS,UKRI - AHRC,24/04/2018,Training Awards - Postgraduates,Collabrative Doctoral Grants - Block Payment,University of York,98161142,808,Training Awards - Postgraduates
BEIS,UKRI - AHRC,24/04/2018,Training Awards - Postgraduates,BGP Award,University of York,98162523,947362.84,Training Awards - Postgraduates
BEIS,UKRI - AHRC,24/04/2018,Training Awards - Postgraduates,Collabrative Doctoral Grants - Block Payment,University of York,98162533,9759,Training Awards - Postgraduates
BEIS,UKRI - AHRC,24/04/2018,Training Awards - Postgraduates,Collabrative Doctoral Grants - Block Payment,University of York,98162536,4879.5,Training Awards - Postgraduates
BEIS,UKRI - AHRC,24/04/2018,Training Awards - Postgraduates,Collabrative Doctoral Grants - Block Payment,University of York,98162573,4879.5,Training Awards - Postgraduates
BEIS,UKRI - AHRC,24/04/2018,Training Awards - Postgraduates,Collabrative Doctoral Grants - Block Payment,University of York,98162574,4879.5,Training Awards - Postgraduates
BEIS,UKRI - AHRC,24/04/2018,Training Awards - Postgraduates,Collabrative Doctoral Grants - Block Payment,University of York,98162580,4879.5,Training Awards - Postgraduates
BEIS,UKRI - AHRC,24/04/2018,Training Awards - Postgraduates,Collabrative Doctoral Grants - Block Payment,University of York,98162589,9749,Training Awards - Postgraduates
BEIS,UKRI - AHRC,24/04/2018,Training Awards - Postgraduates,Collabrative Doctoral Grants - Block Payment,University of York,98162604,4874.5,Training Awards - Postgraduates
BEIS,UKRI - AHRC,24/04/2018,Training Awards - Postgraduates,Collabrative Doctoral Grants - Block Payment,University of York,98162632,4874.5,Training Awards - Postgraduates
BEIS,UKRI - AHRC,24/04/2018,Training Awards - Postgraduates,Collabrative Doctoral Grants - Block Payment,University of York,98162669,4874.5,Training Awards - Postgraduates
BEIS,UKRI - AHRC,24/04/2018,Training Awards - Postgraduates,Collabrative Doctoral Grants - Block Payment,University of York,98162671,4874.5,Training Awards - Postgraduates
BEIS,UKRI - AHRC,24/04/2018,Training Awards - Postgraduates,International Placement Scheme,University of York,98162680,4470,Training Awards - Postgraduates
BEIS,UKRI - AHRC,24/04/2018,Training Awards - Postgraduates,Collabrative Doctoral Grants - Block Payment,Victoria and Albert Museum,98162581,21079.75,Training Awards - Postgraduates
BEIS,UKRI - AHRC,24/04/2018,Voluntary Deductions,Balance Sheet,Swindon Office Sports and Social Club,98164124,96,Voluntary Deductions
BEIS,UKRI - AHRC,25/04/2018,Advertising & Promotion,Communications,E & P Design Ltd,98172801,1950,Advertising & Promotion
BEIS,UKRI - AHRC,25/04/2018,Agency Staff,Finance,Hays Specialist Recruitment Ltd,98171823,2672.76,Agency Staff
BEIS,UKRI - AHRC,25/04/2018,Agency Staff,Finance,Hays Specialist Recruitment Ltd,98171832,2672.76,Agency Staff
BEIS,UKRI - AHRC,25/04/2018,UK - Professional Memberships & Subscriptions,HR,Unspecified,98159133,40,UK - Professional Memberships & Subscriptions
BEIS,UKRI - AHRC,26/04/2018,Catering Contracts,HR,Officedrop Ltd,98174272,144,Catering Contracts
BEIS,UKRI - AHRC,26/04/2018,Catering Contracts,HR,Officedrop Ltd,98174274,192,Catering Contracts
BEIS,UKRI - AHRC,26/04/2018,Conferences & Seminars,Industrial Strategy Challenge Fund (ISCF) - Creative Clusters,Calder Conference Ltd,98171717,1048.96,Conferences & Seminars
BEIS,UKRI - AHRC,26/04/2018,Health & Safety (inc. Medicals & Opticians),Corporate Services,AM Health & Safety Ltd,98172182,135,Health & Safety (inc. Medicals & Opticians)
BEIS,UKRI - AHRC,26/04/2018,Hospitality,"Languages,Literature & International Engagement",University of Glasgow,98173207,586.5,Hospitality
BEIS,UKRI - AHRC,26/04/2018,Hospitality,"Languages,Literature & International Engagement",University of Glasgow,98173207,0.26,Hospitality
BEIS,UKRI - AHRC,26/04/2018,Hospitality,"Languages,Literature & International Engagement",University of Glasgow,98173207,0.05,Hospitality
BEIS,UKRI - AHRC,26/04/2018,Purchase of non capital equipment,Corporate Services,Abbey Business Equipment Ltd,98173194,1660.8,Purchase of non capital equipment
BEIS,UKRI - AHRC,26/04/2018,Recruitment Costs,PSU Project Office,Warwick University Services Ltd,98173185,239,Recruitment Costs
BEIS,UKRI - AHRC,26/04/2018,T&S UK - Accommodation,Creative Arts & Digital Humanities,Unspecified,98173415,92.91,T&S UK - Accommodation
BEIS,UKRI - AHRC,26/04/2018,T&S UK - Other Charges,Creative Arts & Digital Humanities,Unspecified,98173415,12.93,T&S UK - Other Charges
BEIS,UKRI - AHRC,26/04/2018,T&S UK - Public Transport,Communications,Unspecified,98173414,16,T&S UK - Public Transport
BEIS,UKRI - AHRC,26/04/2018,T&S UK - Public Transport,Creative Arts & Digital Humanities,Unspecified,98173416,12,T&S UK - Public Transport
BEIS,UKRI - AHRC,26/04/2018,T&S UK - Public Transport,Creative Arts & Digital Humanities,Unspecified,98173416,62.62,T&S UK - Public Transport
BEIS,UKRI - AHRC,26/04/2018,T&S UK - Public Transport,Creative Arts & Digital Humanities,Unspecified,98173416,3.2,T&S UK - Public Transport
BEIS,UKRI - AHRC,26/04/2018,T&S UK - Public Transport,SMT,Unspecified,98173417,13.2,T&S UK - Public Transport
BEIS,UKRI - AHRC,26/04/2018,T&S UK - Subsistence,Communications,Unspecified,98173414,9.55,T&S UK - Subsistence
BEIS,UKRI - AHRC,26/04/2018,T&S UK - Subsistence,Creative Arts & Digital Humanities,Unspecified,98173415,2.4,T&S UK - Subsistence
BEIS,UKRI - AHRC,26/04/2018,T&S UK - Subsistence,Creative Arts & Digital Humanities,Unspecified,98173415,25,T&S UK - Subsistence
BEIS,UKRI - AHRC,26/04/2018,T&S UK - Subsistence,Creative Arts & Digital Humanities,Unspecified,98173415,13.89,T&S UK - Subsistence
BEIS,UKRI - AHRC,26/04/2018,T&S UK - Subsistence,Creative Arts & Digital Humanities,Unspecified,98173416,6.2,T&S UK - Subsistence
BEIS,UKRI - AHRC,26/04/2018,T&S UK - Subsistence,Creative Arts & Digital Humanities,Unspecified,98173416,20.6,T&S UK - Subsistence
BEIS,UKRI - AHRC,27/04/2018,Legal & Professional Services,Communications,Tamasine McCaig T/A Mighty Oaks Digital,98175086,-1200,Legal & Professional Services
BEIS,UKRI - AHRC,27/04/2018,Legal & Professional Services,Communications,Tamasine McCaig T/A Mighty Oaks Digital,98175086,-2800,Legal & Professional Services
BEIS,UKRI - AHRC,27/04/2018,Legal & Professional Services,Communications,Tamasine McCaig T/A Mighty Oaks Digital,98175086,-2400,Legal & Professional Services
BEIS,UKRI - AHRC,27/04/2018,Legal & Professional Services,Communications,Tamasine McCaig T/A Mighty Oaks Digital,98175086,-2000,Legal & Professional Services
BEIS,UKRI - AHRC,27/04/2018,Provisions ( Food etc),HR,Premier Farnell UK Ltd T/A Farnell Onecall,98174497,12.55,Provisions ( Food etc)
BEIS,UKRI - AHRC,27/04/2018,Staff Training,Communications,Tamasine McCaig T/A Mighty Oaks Digital,98175086,-4200,Staff Training
BEIS,UKRI - AHRC,27/04/2018,T&S UK - Mileage,PSU JRS,Unspecified,98174873,84.6,T&S UK - Mileage
BEIS,UKRI - AHRC,27/04/2018,T&S UK - Parking Tolls Congestion Charges,PSU JRS,Unspecified,98174873,12,T&S UK - Parking Tolls Congestion Charges
BEIS,UKRI - AHRC,27/04/2018,T&S UK - Subsistence,SMT,Unspecified,98174872,10.49,T&S UK - Subsistence
BEIS,UKRI - AHRC,27/04/2018,T&S UK - Subsistence,SMT,Unspecified,98174872,22.6,T&S UK - Subsistence
BEIS,UKRI - AHRC,27/04/2018,T&S UK - Subsistence,SMT,Unspecified,98174872,17.59,T&S UK - Subsistence
BEIS,UKRI - AHRC,27/04/2018,T&S UK - Subsistence,SMT,Unspecified,98174872,10,T&S UK - Subsistence
BEIS,UKRI - AHRC,27/04/2018,T&S UK - Subsistence,SMT,Unspecified,98174872,18.4,T&S UK - Subsistence
BEIS,UKRI - AHRC,30/04/2018,T&S UK - Public Transport,"Languages,Literature & International Engagement",Unspecified,98175419,10,T&S UK - Public Transport
BEIS,UKRI - AHRC,30/04/2018,T&S UK - Subsistence,"Languages,Literature & International Engagement",Unspecified,98175419,11.74,T&S UK - Subsistence
BEIS,UKRI - AHRC,30/04/2018,T&S UK - Subsistence,"Languages,Literature & International Engagement",Unspecified,98175419,10,T&S UK - Subsistence
BEIS,UKRI - BBSRC,03/04/2018,Cleaning Services,JBOS - Cleaning,Mitie Technical Facilities Management Ltd,98151571,4421.6,Cleaning Services
BEIS,UKRI - BBSRC,03/04/2018,Cleaning Services,JBOS - Cleaning,Mitie Technical Facilities Management Ltd,98153907,3995.59,Cleaning Services
BEIS,UKRI - BBSRC,03/04/2018,Cleaning Services,JBOS - Cleaning,Mitie Technical Facilities Management Ltd,98155754,331.2,Cleaning Services
BEIS,UKRI - BBSRC,03/04/2018,Corporate Events,FG - RCUK Assurance,Conference Partners (UK) Ltd,98155911,705,Conferences & Seminars
BEIS,UKRI - BBSRC,03/04/2018,Corporate Events,FG - RCUK Assurance,Conference Partners (UK) Ltd,98155913,705,Conferences & Seminars
BEIS,UKRI - BBSRC,03/04/2018,Corporate Events,FG - RCUK Assurance,Conference Partners (UK) Ltd,98155916,705,Conferences & Seminars
BEIS,UKRI - BBSRC,03/04/2018,Corporate Events,FG - RCUK Assurance,Conference Partners (UK) Ltd,98155923,705,Conferences & Seminars
BEIS,UKRI - BBSRC,03/04/2018,Corporate Events,FG - RCUK Assurance,Conference Partners (UK) Ltd,98155924,705,Conferences & Seminars
BEIS,UKRI - BBSRC,03/04/2018,General Building Maintenance,JBOS - Maintenance,C3 Marketing Ltd,98156562,255.6,Purchase of non capital equipment
BEIS,UKRI - BBSRC,03/04/2018,Non-Capital Building Construction,JBOS - Maintenance,C3 Marketing Ltd,98156563,1432.8,Purchase of non capital equipment
BEIS,UKRI - BBSRC,03/04/2018,Non-Capital Building Construction,JBOS - Maintenance,C3 Marketing Ltd,98156564,2833.56,Purchase of non capital equipment
BEIS,UKRI - BBSRC,03/04/2018,Non-Capital Building Construction,JBOS - Maintenance,Mitie Technical Facilities Management Ltd,98155700,449.4,Non-Capital Building Construction 
BEIS,UKRI - BBSRC,03/04/2018,Non-Capital Building Construction,JBOS - Maintenance,Mitie Technical Facilities Management Ltd,98155706,304529.16,Non-Capital Building Construction 
BEIS,UKRI - BBSRC,03/04/2018,Purchase of non capital equipment,JBOS - Restaurant,HG Merchandise Ltd T/A PG Branding,98155822,222.6,Purchase of non capital equipment
BEIS,UKRI - BBSRC,04/04/2018,Gas,FG - Estates,British Gas Trading Ltd,98157739,656.38,Gas
BEIS,UKRI - BBSRC,04/04/2018,Internal Audit,FG - Accounts & Business Planning,HM Treasury Group,98156819,7200,Internal Audit
BEIS,UKRI - BBSRC,04/04/2018,Internal Audit,FG - Accounts & Business Planning,HM Treasury Group,98156843,8502,Internal Audit
BEIS,UKRI - BBSRC,04/04/2018,Internal Audit,FG - Accounts & Business Planning,HM Treasury Group,98156859,7200,Internal Audit
BEIS,UKRI - BBSRC,04/04/2018,Internal Audit,FG - Accounts & Business Planning,HM Treasury Group,98157727,8502,Internal Audit
BEIS,UKRI - BBSRC,04/04/2018,Internal Audit,FG - Accounts & Business Planning,HM Treasury Group,98157732,7200,Internal Audit
BEIS,UKRI - BBSRC,04/04/2018,Legal & Professional Services,FG - Estates,Womble Bond Dickinson LLP,98156534,2388,Legal & Professional Services
BEIS,UKRI - BBSRC,04/04/2018,Other Programme Costs,Innovation and Skills Group,KNOWLEDGE TRANSFER NETWORK LTD,98106879,2845.27,Other Programme Costs
BEIS,UKRI - BBSRC,04/04/2018,Printing & Stationery,PDG - Director,Banner Group Ltd,98145998,3.68,Printing & Stationery
BEIS,UKRI - BBSRC,04/04/2018,Research Institutes - Capital Grants: Major Works,Estates - Projects,EMBL (European Molecular Biology Laboratory),98153088,80990.73,Research Institutes - Capital Grants: Major Works
BEIS,UKRI - BBSRC,04/04/2018,Research Institutes - Capital Grants: Minor Works,JIC,John Innes Centre,98144275,2231089.24,Research Institutes - Capital Grants: Minor Works
BEIS,UKRI - BBSRC,04/04/2018,Research Institutes - Capital Grants: Minor Works,JIC,John Innes Centre,98157706,62156.5,Research Institutes - Capital Grants: Minor Works
BEIS,UKRI - BBSRC,04/04/2018,T&S UK - Subsistence,RISD - UKRO,Unspecified,98157012,15,T&S UK - Subsistence
BEIS,UKRI - BBSRC,04/04/2018,T&S UK - Vehicle Hire,FG - Director,Enterprise Rent-A-Car UK Ltd,98156803,102.17,T&S UK - Vehicle Hire
BEIS,UKRI - BBSRC,04/04/2018,T&S UK - Vehicle Hire,FG - Estates,Enterprise Rent-A-Car UK Ltd,98156803,289.91,T&S UK - Vehicle Hire
BEIS,UKRI - BBSRC,04/04/2018,T&S UK - Vehicle Hire,Innovation and Skills Group,Enterprise Rent-A-Car UK Ltd,98156803,76.2,T&S UK - Vehicle Hire
BEIS,UKRI - BBSRC,05/04/2018,Health & Safety (inc. Medicals & Opticians),JBOS Health and Safety,Posturite Ltd,98157149,129.6,Health & Safety (inc. Medicals & Opticians)
BEIS,UKRI - BBSRC,05/04/2018,Health & Safety (inc. Medicals & Opticians),JBOS Health and Safety,Posturite Ltd,98157149,-4.32,Health & Safety (inc. Medicals & Opticians)
BEIS,UKRI - BBSRC,05/04/2018,Health & Safety (inc. Medicals & Opticians),JBOS Health and Safety,Posturite Ltd,98157149,-21.6,Health & Safety (inc. Medicals & Opticians)
BEIS,UKRI - BBSRC,05/04/2018,Non-Capital Building Construction,JBOS - Maintenance,C3 Marketing Ltd,98153890,240,Purchase of non capital equipment
BEIS,UKRI - BBSRC,05/04/2018,Other Programme Costs,Innovation and Skills Group,Horticulture Innovation Partnership Ltd,98158192,12760.56,Other Programme Costs
BEIS,UKRI - BBSRC,05/04/2018,Research Grant Expenditure,Innovation and Skills Group,Technology Strategy Board (Innovate UK),98157939,41115.72,Research Grant Expenditure
BEIS,UKRI - BBSRC,05/04/2018,Research Institutes - Capital Grants: Minor Works,Rothamsted Research,Rothamsted Research Ltd,98154025,23245.16,Research Institutes - Capital Grants: Minor Works
BEIS,UKRI - BBSRC,05/04/2018,Research Institutes - Capital Grants: Minor Works,Pirbright,The Pirbright Institute,98154739,27828.4,Research Institutes - Capital Grants: Minor Works
BEIS,UKRI - BBSRC,05/04/2018,Storage & Archiving Costs,PDG - JSS,Iron Mountain (UK) PLC,98157402,670.38,Storage & Archiving Costs
BEIS,UKRI - BBSRC,05/04/2018,Storage & Archiving Costs,CIMG - Information Management,Iron Mountain (UK) PLC,98158428,624.4,Storage & Archiving Costs
BEIS,UKRI - BBSRC,05/04/2018,T&S UK - Parking Tolls Congestion Charges,FG - Estates,Unspecified,98157425,22.4,T&S UK - Parking Tolls Congestion Charges
BEIS,UKRI - BBSRC,05/04/2018,T&S UK - Parking Tolls Congestion Charges,PDG - Director,Unspecified,98157426,15,T&S UK - Parking Tolls Congestion Charges
BEIS,UKRI - BBSRC,05/04/2018,T&S UK - Subsistence,FG - Estates,Unspecified,98157425,71.22,T&S UK - Subsistence
BEIS,UKRI - BBSRC,05/04/2018,T&S UK - Subsistence,FG - Estates,Unspecified,98157425,63.77,T&S UK - Subsistence
BEIS,UKRI - BBSRC,05/04/2018,T&S UK - Subsistence,FG - Estates,Unspecified,98157425,21.7,T&S UK - Subsistence
BEIS,UKRI - BBSRC,05/04/2018,T&S UK - Subsistence,Science Group,Unspecified,98157427,26.95,T&S UK - Subsistence
BEIS,UKRI - BBSRC,05/04/2018,T&S UK - Subsistence,Science Group,Unspecified,98157427,15,T&S UK - Subsistence
BEIS,UKRI - BBSRC,05/04/2018,T&S UK - Subsistence,Innovation and Skills Group,Unspecified,98157428,28.99,T&S UK - Subsistence
BEIS,UKRI - BBSRC,05/04/2018,T&S UK - Subsistence,Innovation and Skills Group,Unspecified,98157428,11.25,T&S UK - Subsistence
BEIS,UKRI - BBSRC,05/04/2018,T&S UK - Subsistence,Innovation and Skills Group,Unspecified,98157428,10,T&S UK - Subsistence
BEIS,UKRI - BBSRC,05/04/2018,T&S UK - Subsistence,Innovation and Skills Group,Unspecified,98157428,3.2,T&S UK - Subsistence
BEIS,UKRI - BBSRC,05/04/2018,T&S UK - Vehicle Hire,FG - Estates,Unspecified,98157425,226.17,T&S UK - Vehicle Hire
BEIS,UKRI - BBSRC,05/04/2018,T&S UK - Vehicle Hire,Innovation and Skills Group,Unspecified,98157428,11.58,T&S UK - Vehicle Hire
BEIS,UKRI - BBSRC,05/04/2018,Union Deductions,Balance Sheet,PCS Union,98158088,196.19,Union Deductions
BEIS,UKRI - BBSRC,05/04/2018,Voluntary Deductions,Balance Sheet,Civil Service Benevolent Fund,98158087,2,Voluntary Deductions
BEIS,UKRI - BBSRC,05/04/2018,Voluntary Deductions,Balance Sheet,Ramsden Fund,98158095,196.66,Voluntary Deductions
BEIS,UKRI - BBSRC,06/04/2018,Books Professional Journals & Guides,PDG - Director,PDP Companies Ltd,98158573,90,Books Professional Journals & Guides
BEIS,UKRI - BBSRC,06/04/2018,Catering Contracts,JBOS - Restaurant,Baxter Storey Ltd,98158714,1398.23,Catering Contracts
BEIS,UKRI - BBSRC,06/04/2018,Internal Audit,FG - Accounts & Business Planning,HM Treasury Group,98158570,76263,Internal Audit
BEIS,UKRI - BBSRC,06/04/2018,Internal Audit,FG - Accounts & Business Planning,HM Treasury Group,98158609,76263,Internal Audit
BEIS,UKRI - BBSRC,06/04/2018,International Awards - Non Capital,CE - IRU,University of St Andrews,98158684,181.97,International Awards - Non Capital
BEIS,UKRI - BBSRC,06/04/2018,Mechanical & Electrical Maintenance,JBOS - Maintenance,Mitie Technical Facilities Management Ltd,98149790,24951,Mechanical & Electrical Maintenance
BEIS,UKRI - BBSRC,06/04/2018,Meetings & Catering,CE - Chief Executive,Baxter Storey Ltd,98159650,12.35,Meetings & Catering
BEIS,UKRI - BBSRC,06/04/2018,Meetings & Catering,CE - Chief Executive,Baxter Storey Ltd,98159650,61.75,Meetings & Catering
BEIS,UKRI - BBSRC,06/04/2018,Meetings & Catering,FG - Director,Baxter Storey Ltd,98159650,1.92,Meetings & Catering
BEIS,UKRI - BBSRC,06/04/2018,Meetings & Catering,FG - Director,Baxter Storey Ltd,98159650,9.6,Meetings & Catering
BEIS,UKRI - BBSRC,06/04/2018,Meetings & Catering,Innovation and Skills Group,Baxter Storey Ltd,98159650,47.8,Meetings & Catering
BEIS,UKRI - BBSRC,06/04/2018,Meetings & Catering,Innovation and Skills Group,Baxter Storey Ltd,98159650,239,Meetings & Catering
BEIS,UKRI - BBSRC,06/04/2018,Meetings & Catering,PDG - Director,Baxter Storey Ltd,98159650,3.9,Meetings & Catering
BEIS,UKRI - BBSRC,06/04/2018,Meetings & Catering,PDG - Director,Baxter Storey Ltd,98159650,19.5,Meetings & Catering
BEIS,UKRI - BBSRC,06/04/2018,Meetings & Catering,Science Group,Baxter Storey Ltd,98159656,27.5,Meetings & Catering
BEIS,UKRI - BBSRC,06/04/2018,Meetings & Catering,Science Group,Baxter Storey Ltd,98159656,137.5,Meetings & Catering
BEIS,UKRI - BBSRC,06/04/2018,Other Programme Costs,Science Group,Calder Conference Ltd,98159611,108,Other Programme Costs
BEIS,UKRI - BBSRC,06/04/2018,Other Programme Costs,CE - CPS,Calder Conference Ltd,98159698,13367.51,Other Programme Costs
BEIS,UKRI - BBSRC,06/04/2018,Other Programme Costs,Science Group,The Pirbright Institute,98158586,7219,Other Programme Costs
BEIS,UKRI - BBSRC,06/04/2018,Printing & Stationery,CIMG - Director,Banner Group Ltd,98156377,460.45,Printing & Stationery
BEIS,UKRI - BBSRC,06/04/2018,Research Grant Expenditure,CE - IRU,Earlham Institute,98155848,66623.87,Research Grant Expenditure
BEIS,UKRI - BBSRC,06/04/2018,Research Institutes - Capital Grants: Major Works,Estates - Projects,Leaf Systems International Ltd,98157462,45848.93,Research Institutes - Capital Grants: Major Works
BEIS,UKRI - BBSRC,06/04/2018,Research Institutes - Capital Grants: Major Works,IFR,Quadram Institute Biosocience,98155879,50172.81,Research Institutes - Capital Grants: Major Works
BEIS,UKRI - BBSRC,06/04/2018,Research Institutes - Capital Grants: Major Works,Pirbright,The Pirbright Institute,98158571,66035.41,Research Institutes - Capital Grants: Major Works
BEIS,UKRI - BBSRC,06/04/2018,Research Institutes - Capital Grants: Minor Works,JIC,John Innes Centre,98141722,49594,Research Institutes - Capital Grants: Minor Works
BEIS,UKRI - BBSRC,06/04/2018,Security Services,JBOS - Maintenance,Mitie Technical Facilities Management Ltd,98149087,6183.3,Security Services
BEIS,UKRI - BBSRC,06/04/2018,Storage & Archiving Costs,PDG - JSS,Iron Mountain (UK) PLC,98159670,691.61,Storage & Archiving Costs
BEIS,UKRI - BBSRC,06/04/2018,T&S UK - Accommodation,RISD - UKRO,Unspecified,98159101,79,T&S UK - Accommodation
BEIS,UKRI - BBSRC,06/04/2018,T&S UK - Mileage,FG - Director,Unspecified,98159100,553.6,T&S UK - Mileage
BEIS,UKRI - BBSRC,06/04/2018,T&S UK - Other Charges,Science Group,Unspecified,98159107,10.2,T&S UK - Other Charges
BEIS,UKRI - BBSRC,06/04/2018,T&S UK - Other Charges,Innovation and Skills Group,Unspecified,98159110,130.5,T&S UK - Other Charges
BEIS,UKRI - BBSRC,06/04/2018,T&S UK - Parking Tolls Congestion Charges,Science Group,Unspecified,98159098,9.4,T&S UK - Parking Tolls Congestion Charges
BEIS,UKRI - BBSRC,06/04/2018,T&S UK - Public Transport,RISD - UKRO,Unspecified,98159096,30,T&S UK - Public Transport
BEIS,UKRI - BBSRC,06/04/2018,T&S UK - Public Transport,Science Group,Unspecified,98159098,158.85,T&S UK - Public Transport
BEIS,UKRI - BBSRC,06/04/2018,T&S UK - Public Transport,RISD - UKRO,Unspecified,98159101,8,T&S UK - Public Transport
BEIS,UKRI - BBSRC,06/04/2018,T&S UK - Public Transport,Science Group,Unspecified,98159107,31.7,T&S UK - Public Transport
BEIS,UKRI - BBSRC,06/04/2018,T&S UK - Public Transport,Science Group,Unspecified,98159107,9.2,T&S UK - Public Transport
BEIS,UKRI - BBSRC,06/04/2018,T&S UK - Public Transport,Innovation and Skills Group,Unspecified,98159110,16.8,T&S UK - Public Transport
BEIS,UKRI - BBSRC,06/04/2018,T&S UK - Public Transport,FG - RCUK Assurance,Unspecified,98159112,44.7,T&S UK - Public Transport
BEIS,UKRI - BBSRC,06/04/2018,T&S UK - Public Transport,RISD - UKRO,Unspecified,98159113,13.5,T&S UK - Public Transport
BEIS,UKRI - BBSRC,06/04/2018,T&S UK - Public Transport,RISD - UKRO,Unspecified,98159114,37.5,T&S UK - Public Transport
BEIS,UKRI - BBSRC,06/04/2018,T&S UK - Public Transport,RISD - UKRO,Unspecified,98159115,6.6,T&S UK - Public Transport
BEIS,UKRI - BBSRC,06/04/2018,T&S UK - Public Transport,RISD - UKRO,Unspecified,98159115,27,T&S UK - Public Transport
BEIS,UKRI - BBSRC,06/04/2018,T&S UK - Public Transport,CE - CPS,Unspecified,98159116,69.3,T&S UK - Public Transport
BEIS,UKRI - BBSRC,06/04/2018,T&S UK - Subsistence,RISD - UKRO,Unspecified,98159096,5,T&S UK - Subsistence
BEIS,UKRI - BBSRC,06/04/2018,T&S UK - Subsistence,RISD - UKRO,Unspecified,98159096,5,T&S UK - Subsistence
BEIS,UKRI - BBSRC,06/04/2018,T&S UK - Subsistence,FG - Director,Unspecified,98159100,35,T&S UK - Subsistence
BEIS,UKRI - BBSRC,06/04/2018,T&S UK - Subsistence,RISD - UKRO,Unspecified,98159101,101.07,T&S UK - Subsistence
BEIS,UKRI - BBSRC,06/04/2018,T&S UK - Subsistence,RISD - UKRO,Unspecified,98159101,12.45,T&S UK - Subsistence
BEIS,UKRI - BBSRC,06/04/2018,T&S UK - Subsistence,RISD - UKRO,Unspecified,98159101,60,T&S UK - Subsistence
BEIS,UKRI - BBSRC,06/04/2018,T&S UK - Subsistence,Science Group,Unspecified,98159107,13.73,T&S UK - Subsistence
BEIS,UKRI - BBSRC,06/04/2018,T&S UK - Subsistence,Science Group,Unspecified,98159107,13.2,T&S UK - Subsistence
BEIS,UKRI - BBSRC,06/04/2018,T&S UK - Subsistence,Science Group,Unspecified,98159107,50,T&S UK - Subsistence
BEIS,UKRI - BBSRC,06/04/2018,T&S UK - Subsistence,Science Group,Unspecified,98159107,29.48,T&S UK - Subsistence
BEIS,UKRI - BBSRC,06/04/2018,T&S UK - Subsistence,Innovation and Skills Group,Unspecified,98159110,7.45,T&S UK - Subsistence
BEIS,UKRI - BBSRC,06/04/2018,T&S UK - Subsistence,FG - RCUK Assurance,Unspecified,98159112,4,T&S UK - Subsistence
BEIS,UKRI - BBSRC,06/04/2018,T&S UK - Subsistence,RISD - UKRO,Unspecified,98159113,8.95,T&S UK - Subsistence
BEIS,UKRI - BBSRC,06/04/2018,T&S UK - Subsistence,RISD - UKRO,Unspecified,98159113,5.34,T&S UK - Subsistence
BEIS,UKRI - BBSRC,06/04/2018,T&S UK - Subsistence,RISD - UKRO,Unspecified,98159113,5,T&S UK - Subsistence
BEIS,UKRI - BBSRC,06/04/2018,T&S UK - Subsistence,RISD - UKRO,Unspecified,98159114,10.5,T&S UK - Subsistence
BEIS,UKRI - BBSRC,06/04/2018,T&S UK - Subsistence,RISD - UKRO,Unspecified,98159114,22.65,T&S UK - Subsistence
BEIS,UKRI - BBSRC,06/04/2018,T&S UK - Subsistence,RISD - UKRO,Unspecified,98159114,25,T&S UK - Subsistence
BEIS,UKRI - BBSRC,06/04/2018,T&S UK - Subsistence,RISD - UKRO,Unspecified,98159115,157.73,T&S UK - Subsistence
BEIS,UKRI - BBSRC,06/04/2018,T&S UK - Subsistence,RISD - UKRO,Unspecified,98159115,55,T&S UK - Subsistence
BEIS,UKRI - BBSRC,06/04/2018,T&S UK - Vehicle Hire,JBOS Health and Safety,Cross Street Cars,98159636,19.8,T&S UK - Vehicle Hire
BEIS,UKRI - BBSRC,09/04/2018,General Building Maintenance,JBOS - Restaurant,Baxter Storey Ltd,98159992,442.5,General Building Maintenance
BEIS,UKRI - BBSRC,09/04/2018,Health & Safety (inc. Medicals & Opticians),PDG - Director,Swindon Occupational Medical Services Ltd,98159896,600,Health & Safety (inc. Medicals & Opticians)
BEIS,UKRI - BBSRC,09/04/2018,Legal & Professional Services,FG - RCUK Assurance,KPMG LLP,98159416,7500,Legal & Professional Services
BEIS,UKRI - BBSRC,09/04/2018,Legal & Professional Services,CIMG - External Relations,Pye Tait Ltd T/A Pye Tait Consulting,98159829,14976,Legal & Professional Services
BEIS,UKRI - BBSRC,09/04/2018,Legal & Professional Services,CIMG - Information Management,The Copyright Licensing Agency Ltd,98159254,6217.04,Legal & Professional Services
BEIS,UKRI - BBSRC,09/04/2018,Legal & Professional Services,PDG - JSS,UK Atomic Energy Authority,98159888,1732.76,Legal & Professional Services
BEIS,UKRI - BBSRC,09/04/2018,Recruitment Costs,PDG - Director,Agenda Resource Management Ltd,98160078,155.91,Recruitment Costs
BEIS,UKRI - BBSRC,09/04/2018,Recruitment Costs,PDG - Director,Warwick University Services Ltd,98159351,286.8,Recruitment Costs
BEIS,UKRI - BBSRC,09/04/2018,Recruitment Costs,PDG - Director,Warwick University Services Ltd,98159353,286.8,Recruitment Costs
BEIS,UKRI - BBSRC,09/04/2018,Research Institutes - Capital Grants: Minor Works,JIC,John Innes Centre,98144405,44836.8,Research Institutes - Capital Grants: Minor Works
BEIS,UKRI - BBSRC,09/04/2018,T&S UK - Public Transport,CE - IRU,Unspecified,98155586,39.1,T&S UK - Public Transport
BEIS,UKRI - BBSRC,09/04/2018,T&S UK - Public Transport,CE - Chief Executive,Unspecified,98160088,26.6,T&S UK - Public Transport
BEIS,UKRI - BBSRC,09/04/2018,T&S UK - Subsistence,CE - Chief Executive,Unspecified,98160088,6.95,T&S UK - Subsistence
BEIS,UKRI - BBSRC,09/04/2018,T&S UK - Subsistence,CE - Chief Executive,Unspecified,98160088,6.43,T&S UK - Subsistence
BEIS,UKRI - BBSRC,09/04/2018,T&S UK - Subsistence,CE - Chief Executive,Unspecified,98160088,21.97,T&S UK - Subsistence
BEIS,UKRI - BBSRC,09/04/2018,T&S UK - Subsistence,CE - Chief Executive,Unspecified,98160090,3.05,T&S UK - Subsistence
BEIS,UKRI - BBSRC,09/04/2018,Training Awards - Postgraduates,FG - Accounts & Business Planning,Aberystwyth University,98152163,3719.54,Training Awards - Postgraduate
BEIS,UKRI - BBSRC,09/04/2018,Training Awards - Postgraduates,FG - Accounts & Business Planning,Aberystwyth University,98152177,5882.87,Training Awards - Postgraduate
BEIS,UKRI - BBSRC,09/04/2018,Training Awards - Postgraduates,FG - Accounts & Business Planning,Aberystwyth University,98152425,-8932.09,Training Awards - Postgraduate
BEIS,UKRI - BBSRC,09/04/2018,Training Awards - Postgraduates,FG - Accounts & Business Planning,Aberystwyth University,98152427,5283.54,Training Awards - Postgraduate
BEIS,UKRI - BBSRC,09/04/2018,Training Awards - Postgraduates,FG - Accounts & Business Planning,Aberystwyth University,98153396,5940.12,Training Awards - Postgraduate
BEIS,UKRI - BBSRC,09/04/2018,Training Awards - Postgraduates,FG - Accounts & Business Planning,Aberystwyth University,98153398,5940.12,Training Awards - Postgraduate
BEIS,UKRI - BBSRC,09/04/2018,Training Awards - Postgraduates,FG - Accounts & Business Planning,Aberystwyth University,98153447,5940.12,Training Awards - Postgraduate
BEIS,UKRI - BBSRC,09/04/2018,Training Awards - Postgraduates,FG - Accounts & Business Planning,Aberystwyth University,98153455,5940.12,Training Awards - Postgraduate
BEIS,UKRI - BBSRC,09/04/2018,Training Awards - Postgraduates,FG - Accounts & Business Planning,Aberystwyth University,98153457,5940.12,Training Awards - Postgraduate
BEIS,UKRI - BBSRC,09/04/2018,Training Awards - Postgraduates,FG - Accounts & Business Planning,Aston University,98152181,5882.87,Training Awards - Postgraduate
BEIS,UKRI - BBSRC,09/04/2018,Training Awards - Postgraduates,FG - Accounts & Business Planning,Aston University,98152301,5882.87,Training Awards - Postgraduate
BEIS,UKRI - BBSRC,09/04/2018,Training Awards - Postgraduates,FG - Accounts & Business Planning,Aston University,98152305,5882.87,Training Awards - Postgraduate
BEIS,UKRI - BBSRC,09/04/2018,Training Awards - Postgraduates,FG - Accounts & Business Planning,Aston University,98152308,5882.87,Training Awards - Postgraduate
BEIS,UKRI - BBSRC,09/04/2018,Training Awards - Postgraduates,FG - Accounts & Business Planning,Aston University,98152319,5882.87,Training Awards - Postgraduate
BEIS,UKRI - BBSRC,09/04/2018,Training Awards - Postgraduates,FG - Accounts & Business Planning,Aston University,98153410,5940.12,Training Awards - Postgraduate
BEIS,UKRI - BBSRC,09/04/2018,Training Awards - Postgraduates,FG - Accounts & Business Planning,Aston University,98153473,5940.12,Training Awards - Postgraduate
BEIS,UKRI - BBSRC,09/04/2018,Training Awards - Postgraduates,FG - Accounts & Business Planning,Babraham Institute,98152263,5882.87,Training Awards - Postgraduate
BEIS,UKRI - BBSRC,09/04/2018,Training Awards - Postgraduates,FG - Accounts & Business Planning,Babraham Institute,98152302,5882.87,Training Awards - Postgraduate
BEIS,UKRI - BBSRC,09/04/2018,Training Awards - Postgraduates,FG - Accounts & Business Planning,Babraham Institute,98152307,4622.26,Training Awards - Postgraduate
BEIS,UKRI - BBSRC,09/04/2018,Training Awards - Postgraduates,FG - Accounts & Business Planning,Babraham Institute,98152443,5845,Training Awards - Postgraduate
BEIS,UKRI - BBSRC,09/04/2018,Training Awards - Postgraduates,FG - Accounts & Business Planning,Babraham Institute,98152454,5845,Training Awards - Postgraduate
BEIS,UKRI - BBSRC,09/04/2018,Training Awards - Postgraduates,FG - Accounts & Business Planning,Babraham Institute,98153339,5882.87,Training Awards - Postgraduate
BEIS,UKRI - BBSRC,09/04/2018,Training Awards - Postgraduates,FG - Accounts & Business Planning,Babraham Institute,98153340,5882.87,Training Awards - Postgraduate
BEIS,UKRI - BBSRC,09/04/2018,Training Awards - Postgraduates,FG - Accounts & Business Planning,Babraham Institute,98153345,5882.87,Training Awards - Postgraduate
BEIS,UKRI - BBSRC,09/04/2018,Training Awards - Postgraduates,FG - Accounts & Business Planning,Babraham Institute,98153420,5940.12,Training Awards - Postgraduate
BEIS,UKRI - BBSRC,09/04/2018,Training Awards - Postgraduates,FG - Accounts & Business Planning,Babraham Institute,98153506,5940.12,Training Awards - Postgraduate
BEIS,UKRI - BBSRC,09/04/2018,Training Awards - Postgraduates,FG - Accounts & Business Planning,Babraham Institute,98153590,6043.5,Training Awards - Postgraduate
BEIS,UKRI - BBSRC,09/04/2018,Training Awards - Postgraduates,FG - Accounts & Business Planning,Brunel University London,98153634,6543.5,Training Awards - Postgraduate
BEIS,UKRI - BBSRC,09/04/2018,Training Awards - Postgraduates,FG - Accounts & Business Planning,Cambridge Crystallographic Data Centre,98153592,6043.5,Training Awards - Postgraduate
BEIS,UKRI - BBSRC,09/04/2018,Training Awards - Postgraduates,FG - Accounts & Business Planning,Cambridge Crystallographic Data Centre,98153592,6043.5,Training Awards - Postgraduate
BEIS,UKRI - BBSRC,09/04/2018,Training Awards - Postgraduates,FG - Accounts & Business Planning,Cardiff University,98152243,5882.87,Training Awards - Postgraduate
BEIS,UKRI - BBSRC,09/04/2018,Training Awards - Postgraduates,FG - Accounts & Business Planning,Cardiff University,98152321,5882.87,Training Awards - Postgraduate
BEIS,UKRI - BBSRC,09/04/2018,Training Awards - Postgraduates,FG - Accounts & Business Planning,Cardiff University,98153386,5940.12,Training Awards - Postgraduate
BEIS,UKRI - BBSRC,09/04/2018,Training Awards - Postgraduates,FG - Accounts & Business Planning,Cardiff University,98153502,5940.12,Training Awards - Postgraduate
BEIS,UKRI - BBSRC,09/04/2018,Training Awards - Postgraduates,FG - Accounts & Business Planning,Cardiff University,98153617,6043.5,Training Awards - Postgraduate
BEIS,UKRI - BBSRC,09/04/2018,Training Awards - Postgraduates,FG - Accounts & Business Planning,Cardiff University,98153650,6138.25,Training Awards - Postgraduate
BEIS,UKRI - BBSRC,09/04/2018,Training Awards - Postgraduates,FG - Accounts & Business Planning,Earlham Institute,98152273,5882.87,Training Awards - Postgraduate
BEIS,UKRI - BBSRC,09/04/2018,Training Awards - Postgraduates,FG - Accounts & Business Planning,Imperial College London,98152149,99975,Training Awards - Postgraduate
BEIS,UKRI - BBSRC,09/04/2018,Training Awards - Postgraduates,FG - Accounts & Business Planning,Imperial College London,98152164,6345,Training Awards - Postgraduate
BEIS,UKRI - BBSRC,09/04/2018,Training Awards - Postgraduates,FG - Accounts & Business Planning,Imperial College London,98152182,6382.87,Training Awards - Postgraduate
BEIS,UKRI - BBSRC,09/04/2018,Training Awards - Postgraduates,FG - Accounts & Business Planning,Imperial College London,98152232,6382.87,Training Awards - Postgraduate
BEIS,UKRI - BBSRC,09/04/2018,Training Awards - Postgraduates,FG - Accounts & Business Planning,Imperial College London,98152249,6382.87,Training Awards - Postgraduate
BEIS,UKRI - BBSRC,09/04/2018,Training Awards - Postgraduates,FG - Accounts & Business Planning,Imperial College London,98152402,-31233,Training Awards - Postgraduate
BEIS,UKRI - BBSRC,09/04/2018,Training Awards - Postgraduates,FG - Accounts & Business Planning,Imperial College London,98152446,6344.97,Training Awards - Postgraduate
BEIS,UKRI - BBSRC,09/04/2018,Training Awards - Postgraduates,FG - Accounts & Business Planning,Imperial College London,98152451,-1747,Training Awards - Postgraduate
BEIS,UKRI - BBSRC,09/04/2018,Training Awards - Postgraduates,FG - Accounts & Business Planning,Imperial College London,98152458,4030.71,Training Awards - Postgraduate
BEIS,UKRI - BBSRC,09/04/2018,Training Awards - Postgraduates,FG - Accounts & Business Planning,Imperial College London,98153344,6382.87,Training Awards - Postgraduate
BEIS,UKRI - BBSRC,09/04/2018,Training Awards - Postgraduates,FG - Accounts & Business Planning,Imperial College London,98153371,379214,Training Awards - Postgraduate
BEIS,UKRI - BBSRC,09/04/2018,Training Awards - Postgraduates,FG - Accounts & Business Planning,Imperial College London,98153434,6440.12,Training Awards - Postgraduate
BEIS,UKRI - BBSRC,09/04/2018,Training Awards - Postgraduates,FG - Accounts & Business Planning,Imperial College London,98153490,6440.12,Training Awards - Postgraduate
BEIS,UKRI - BBSRC,09/04/2018,Training Awards - Postgraduates,FG - Accounts & Business Planning,Imperial College London,98153515,6440.12,Training Awards - Postgraduate
BEIS,UKRI - BBSRC,09/04/2018,Training Awards - Postgraduates,FG - Accounts & Business Planning,Imperial College London,98153532,6440.12,Training Awards - Postgraduate
BEIS,UKRI - BBSRC,09/04/2018,Training Awards - Postgraduates,FG - Accounts & Business Planning,Imperial College London,98153533,6440.12,Training Awards - Postgraduate
BEIS,UKRI - BBSRC,09/04/2018,Training Awards - Postgraduates,FG - Accounts & Business Planning,Imperial College London,98153596,6543.5,Training Awards - Postgraduate
BEIS,UKRI - BBSRC,09/04/2018,Training Awards - Postgraduates,FG - Accounts & Business Planning,Imperial College London,98153599,6543.5,Training Awards - Postgraduate
BEIS,UKRI - BBSRC,09/04/2018,Training Awards - Postgraduates,FG - Accounts & Business Planning,Imperial College London,98153601,6543.5,Training Awards - Postgraduate
BEIS,UKRI - BBSRC,09/04/2018,Training Awards - Postgraduates,FG - Accounts & Business Planning,Imperial College London,98153618,6543.5,Training Awards - Postgraduate
BEIS,UKRI - BBSRC,09/04/2018,Training Awards - Postgraduates,FG - Accounts & Business Planning,Imperial College London,98153620,6543.5,Training Awards - Postgraduate
BEIS,UKRI - BBSRC,09/04/2018,Training Awards - Postgraduates,FG - Accounts & Business Planning,Imperial College London,98153665,6638.25,Training Awards - Postgraduate
BEIS,UKRI - BBSRC,09/04/2018,Training Awards - Postgraduates,FG - Accounts & Business Planning,Imperial College London,98153699,6638.25,Training Awards - Postgraduate
BEIS,UKRI - BBSRC,09/04/2018,Training Awards - Postgraduates,FG - Accounts & Business Planning,Imperial College London,98153699,6638.25,Training Awards - Postgraduate
BEIS,UKRI - BBSRC,09/04/2018,Training Awards - Postgraduates,FG - Accounts & Business Planning,Imperial College London,98153700,6638.25,Training Awards - Postgraduate
BEIS,UKRI - BBSRC,09/04/2018,Training Awards - Postgraduates,FG - Accounts & Business Planning,Imperial College London,98153700,6638.25,Training Awards - Postgraduate
BEIS,UKRI - BBSRC,09/04/2018,Training Awards - Postgraduates,FG - Accounts & Business Planning,Imperial College London,98153702,6638.25,Training Awards - Postgraduate
BEIS,UKRI - BBSRC,09/04/2018,Training Awards - Postgraduates,FG - Accounts & Business Planning,Imperial College London,98153707,6638.25,Training Awards - Postgraduate
BEIS,UKRI - BBSRC,09/04/2018,Training Awards - Postgraduates,FG - Accounts & Business Planning,Imperial College London,98153710,6638.25,Training Awards - Postgraduate
BEIS,UKRI - BBSRC,09/04/2018,Training Awards - Postgraduates,FG - Accounts & Business Planning,Imperial College London,98153710,6638.25,Training Awards - Postgraduate
BEIS,UKRI - BBSRC,09/04/2018,Training Awards - Postgraduates,FG - Accounts & Business Planning,Imperial College London,98153710,6638.25,Training Awards - Postgraduate
BEIS,UKRI - BBSRC,09/04/2018,Training Awards - Postgraduates,FG - Accounts & Business Planning,Imperial College London,98153711,6263.25,Training Awards - Postgraduate
BEIS,UKRI - BBSRC,09/04/2018,Training Awards - Postgraduates,FG - Accounts & Business Planning,Imperial College London,98153712,6638.25,Training Awards - Postgraduate
BEIS,UKRI - BBSRC,09/04/2018,Training Awards - Postgraduates,FG - Accounts & Business Planning,Imperial College London,98153713,6638.25,Training Awards - Postgraduate
BEIS,UKRI - BBSRC,09/04/2018,Training Awards - Postgraduates,FG - Accounts & Business Planning,Imperial College London,98153714,6638.25,Training Awards - Postgraduate
BEIS,UKRI - BBSRC,09/04/2018,Training Awards - Postgraduates,FG - Accounts & Business Planning,Imperial College London,98153714,6638.25,Training Awards - Postgraduate
BEIS,UKRI - BBSRC,09/04/2018,Training Awards - Postgraduates,FG - Accounts & Business Planning,Imperial College London,98153714,6638.25,Training Awards - Postgraduate
BEIS,UKRI - BBSRC,09/04/2018,Training Awards - Postgraduates,FG - Accounts & Business Planning,Imperial College London,98153715,6638.25,Training Awards - Postgraduate
BEIS,UKRI - BBSRC,09/04/2018,Training Awards - Postgraduates,FG - Accounts & Business Planning,Institute of Cancer Research,98153407,5940.12,Training Awards - Postgraduate
BEIS,UKRI - BBSRC,09/04/2018,Training Awards - Postgraduates,FG - Accounts & Business Planning,John Innes Centre,98152150,80145,Training Awards - Postgraduate
BEIS,UKRI - BBSRC,09/04/2018,Training Awards - Postgraduates,FG - Accounts & Business Planning,John Innes Centre,98152168,4286.34,Training Awards - Postgraduate
BEIS,UKRI - BBSRC,09/04/2018,Training Awards - Postgraduates,FG - Accounts & Business Planning,John Innes Centre,98152210,5882.87,Training Awards - Postgraduate
BEIS,UKRI - BBSRC,09/04/2018,Training Awards - Postgraduates,FG - Accounts & Business Planning,John Innes Centre,98152253,5882.87,Training Awards - Postgraduate
BEIS,UKRI - BBSRC,09/04/2018,Training Awards - Postgraduates,FG - Accounts & Business Planning,John Innes Centre,98152259,5882.87,Training Awards - Postgraduate
BEIS,UKRI - BBSRC,09/04/2018,Training Awards - Postgraduates,FG - Accounts & Business Planning,John Innes Centre,98152298,1810.11,Training Awards - Postgraduate
BEIS,UKRI - BBSRC,09/04/2018,Training Awards - Postgraduates,FG - Accounts & Business Planning,John Innes Centre,98152317,5882.87,Training Awards - Postgraduate
BEIS,UKRI - BBSRC,09/04/2018,Training Awards - Postgraduates,FG - Accounts & Business Planning,John Innes Centre,98152412,5845,Training Awards - Postgraduate
BEIS,UKRI - BBSRC,09/04/2018,Training Awards - Postgraduates,FG - Accounts & Business Planning,John Innes Centre,98152419,5845,Training Awards - Postgraduate
BEIS,UKRI - BBSRC,09/04/2018,Training Awards - Postgraduates,FG - Accounts & Business Planning,John Innes Centre,98153366,569594.75,Training Awards - Postgraduate
BEIS,UKRI - BBSRC,09/04/2018,Training Awards - Postgraduates,FG - Accounts & Business Planning,John Innes Centre,98153427,5940.12,Training Awards - Postgraduate
BEIS,UKRI - BBSRC,09/04/2018,Training Awards - Postgraduates,FG - Accounts & Business Planning,John Innes Centre,98153428,5940.12,Training Awards - Postgraduate
BEIS,UKRI - BBSRC,09/04/2018,Training Awards - Postgraduates,FG - Accounts & Business Planning,John Innes Centre,98153443,5940.12,Training Awards - Postgraduate
BEIS,UKRI - BBSRC,09/04/2018,Training Awards - Postgraduates,FG - Accounts & Business Planning,John Innes Centre,98153541,5940.12,Training Awards - Postgraduate
BEIS,UKRI - BBSRC,09/04/2018,Training Awards - Postgraduates,FG - Accounts & Business Planning,John Innes Centre,98153578,6043.5,Training Awards - Postgraduate
BEIS,UKRI - BBSRC,09/04/2018,Training Awards - Postgraduates,FG - Accounts & Business Planning,John Innes Centre,98153663,5596.53,Training Awards - Postgraduate
BEIS,UKRI - BBSRC,09/04/2018,Training Awards - Postgraduates,FG - Accounts & Business Planning,John Innes Centre,98153692,6138.25,Training Awards - Postgraduate
BEIS,UKRI - BBSRC,09/04/2018,Training Awards - Postgraduates,FG - Accounts & Business Planning,John Innes Centre,98153737,6138.25,Training Awards - Postgraduate
BEIS,UKRI - BBSRC,09/04/2018,Training Awards - Postgraduates,FG - Accounts & Business Planning,John Innes Centre,98153738,6138.25,Training Awards - Postgraduate
BEIS,UKRI - BBSRC,09/04/2018,Training Awards - Postgraduates,FG - Accounts & Business Planning,John Innes Centre,98153782,12500,Training Awards - Postgraduate
BEIS,UKRI - BBSRC,09/04/2018,Training Awards - Postgraduates,FG - Accounts & Business Planning,Keele University,98152314,5882.87,Training Awards - Postgraduate
BEIS,UKRI - BBSRC,09/04/2018,Training Awards - Postgraduates,FG - Accounts & Business Planning,King's College London,98152166,6345,Training Awards - Postgraduate
BEIS,UKRI - BBSRC,09/04/2018,Training Awards - Postgraduates,FG - Accounts & Business Planning,King's College London,98152174,6345,Training Awards - Postgraduate
BEIS,UKRI - BBSRC,09/04/2018,Training Awards - Postgraduates,FG - Accounts & Business Planning,King's College London,98152176,6382.87,Training Awards - Postgraduate
BEIS,UKRI - BBSRC,09/04/2018,Training Awards - Postgraduates,FG - Accounts & Business Planning,King's College London,98152178,6382.87,Training Awards - Postgraduate
BEIS,UKRI - BBSRC,09/04/2018,Training Awards - Postgraduates,FG - Accounts & Business Planning,King's College London,98152231,6382.87,Training Awards - Postgraduate
BEIS,UKRI - BBSRC,09/04/2018,Training Awards - Postgraduates,FG - Accounts & Business Planning,King's College London,98152268,6382.87,Training Awards - Postgraduate
BEIS,UKRI - BBSRC,09/04/2018,Training Awards - Postgraduates,FG - Accounts & Business Planning,King's College London,98152274,6382.87,Training Awards - Postgraduate
BEIS,UKRI - BBSRC,09/04/2018,Training Awards - Postgraduates,FG - Accounts & Business Planning,King's College London,98152275,6382.87,Training Awards - Postgraduate
BEIS,UKRI - BBSRC,09/04/2018,Training Awards - Postgraduates,FG - Accounts & Business Planning,King's College London,98152276,6382.87,Training Awards - Postgraduate
BEIS,UKRI - BBSRC,09/04/2018,Training Awards - Postgraduates,FG - Accounts & Business Planning,King's College London,98152286,6382.87,Training Awards - Postgraduate
BEIS,UKRI - BBSRC,09/04/2018,Training Awards - Postgraduates,FG - Accounts & Business Planning,King's College London,98152289,6382.87,Training Awards - Postgraduate
BEIS,UKRI - BBSRC,09/04/2018,Training Awards - Postgraduates,FG - Accounts & Business Planning,King's College London,98152290,6382.87,Training Awards - Postgraduate
BEIS,UKRI - BBSRC,09/04/2018,Training Awards - Postgraduates,FG - Accounts & Business Planning,King's College London,98152291,6382.87,Training Awards - Postgraduate
BEIS,UKRI - BBSRC,09/04/2018,Training Awards - Postgraduates,FG - Accounts & Business Planning,King's College London,98152325,6382.87,Training Awards - Postgraduate
BEIS,UKRI - BBSRC,09/04/2018,Training Awards - Postgraduates,FG - Accounts & Business Planning,King's College London,98152331,6382.87,Training Awards - Postgraduate
BEIS,UKRI - BBSRC,09/04/2018,Training Awards - Postgraduates,FG - Accounts & Business Planning,King's College London,98152414,5756,Training Awards - Postgraduate
BEIS,UKRI - BBSRC,09/04/2018,Training Awards - Postgraduates,FG - Accounts & Business Planning,King's College London,98152437,-2697.5,Training Awards - Postgraduate
BEIS,UKRI - BBSRC,09/04/2018,Training Awards - Postgraduates,FG - Accounts & Business Planning,King's College London,98152456,5203.03,Training Awards - Postgraduate
BEIS,UKRI - BBSRC,09/04/2018,Training Awards - Postgraduates,FG - Accounts & Business Planning,King's College London,98152459,-11919.23,Training Awards - Postgraduate
BEIS,UKRI - BBSRC,09/04/2018,Training Awards - Postgraduates,FG - Accounts & Business Planning,King's College London,98153341,6382.87,Training Awards - Postgraduate
BEIS,UKRI - BBSRC,09/04/2018,Training Awards - Postgraduates,FG - Accounts & Business Planning,King's College London,98153346,6382.87,Training Awards - Postgraduate
BEIS,UKRI - BBSRC,09/04/2018,Training Awards - Postgraduates,FG - Accounts & Business Planning,King's College London,98153350,6382.87,Training Awards - Postgraduate
BEIS,UKRI - BBSRC,09/04/2018,Training Awards - Postgraduates,FG - Accounts & Business Planning,King's College London,98153404,6440.12,Training Awards - Postgraduate
BEIS,UKRI - BBSRC,09/04/2018,Training Awards - Postgraduates,FG - Accounts & Business Planning,King's College London,98153406,6440.12,Training Awards - Postgraduate
BEIS,UKRI - BBSRC,09/04/2018,Training Awards - Postgraduates,FG - Accounts & Business Planning,King's College London,98153408,6440.12,Training Awards - Postgraduate
BEIS,UKRI - BBSRC,09/04/2018,Training Awards - Postgraduates,FG - Accounts & Business Planning,King's College London,98153417,5940.12,Training Awards - Postgraduate
BEIS,UKRI - BBSRC,09/04/2018,Training Awards - Postgraduates,FG - Accounts & Business Planning,King's College London,98153426,6440.12,Training Awards - Postgraduate
BEIS,UKRI - BBSRC,09/04/2018,Training Awards - Postgraduates,FG - Accounts & Business Planning,King's College London,98153437,6440.12,Training Awards - Postgraduate
BEIS,UKRI - BBSRC,09/04/2018,Training Awards - Postgraduates,FG - Accounts & Business Planning,King's College London,98153450,6440.12,Training Awards - Postgraduate
BEIS,UKRI - BBSRC,09/04/2018,Training Awards - Postgraduates,FG - Accounts & Business Planning,King's College London,98153452,6440.12,Training Awards - Postgraduate
BEIS,UKRI - BBSRC,09/04/2018,Training Awards - Postgraduates,FG - Accounts & Business Planning,King's College London,98153469,6440.12,Training Awards - Postgraduate
BEIS,UKRI - BBSRC,09/04/2018,Training Awards - Postgraduates,FG - Accounts & Business Planning,King's College London,98153477,9367.46,Training Awards - Postgraduate
BEIS,UKRI - BBSRC,09/04/2018,Training Awards - Postgraduates,FG - Accounts & Business Planning,King's College London,98153501,6440.12,Training Awards - Postgraduate
BEIS,UKRI - BBSRC,09/04/2018,Training Awards - Postgraduates,FG - Accounts & Business Planning,King's College London,98153585,6543.5,Training Awards - Postgraduate
BEIS,UKRI - BBSRC,09/04/2018,Training Awards - Postgraduates,FG - Accounts & Business Planning,King's College London,98153586,6543.5,Training Awards - Postgraduate
BEIS,UKRI - BBSRC,09/04/2018,Training Awards - Postgraduates,FG - Accounts & Business Planning,King's College London,98153593,6543.5,Training Awards - Postgraduate
BEIS,UKRI - BBSRC,09/04/2018,Training Awards - Postgraduates,FG - Accounts & Business Planning,King's College London,98153597,6543.5,Training Awards - Postgraduate
BEIS,UKRI - BBSRC,09/04/2018,Training Awards - Postgraduates,FG - Accounts & Business Planning,Kingston University,98152323,6382.87,Training Awards - Postgraduate
BEIS,UKRI - BBSRC,09/04/2018,Training Awards - Postgraduates,FG - Accounts & Business Planning,Kingston University,98152324,6382.87,Training Awards - Postgraduate
BEIS,UKRI - BBSRC,09/04/2018,Training Awards - Postgraduates,FG - Accounts & Business Planning,Lancaster University,98153460,5940.12,Training Awards - Postgraduate
BEIS,UKRI - BBSRC,09/04/2018,Training Awards - Postgraduates,FG - Accounts & Business Planning,Lancaster University,98153464,5940.12,Training Awards - Postgraduate
BEIS,UKRI - BBSRC,09/04/2018,Training Awards - Postgraduates,FG - Accounts & Business Planning,Lancaster University,98153465,4356.1,Training Awards - Postgraduate
BEIS,UKRI - BBSRC,09/04/2018,Training Awards - Postgraduates,FG - Accounts & Business Planning,Lancaster University,98153679,6138.25,Training Awards - Postgraduate
BEIS,UKRI - BBSRC,09/04/2018,Training Awards - Postgraduates,FG - Accounts & Business Planning,Lancaster University,98153679,6138.25,Training Awards - Postgraduate
BEIS,UKRI - BBSRC,09/04/2018,Training Awards - Postgraduates,FG - Accounts & Business Planning,Lancaster University,98153679,6138.25,Training Awards - Postgraduate
BEIS,UKRI - BBSRC,09/04/2018,Training Awards - Postgraduates,FG - Accounts & Business Planning,Liverpool John Moores University,98152200,5882.87,Training Awards - Postgraduate
BEIS,UKRI - BBSRC,09/04/2018,Training Awards - Postgraduates,FG - Accounts & Business Planning,Liverpool John Moores University,98152440,5845,Training Awards - Postgraduate
BEIS,UKRI - BBSRC,09/04/2018,Training Awards - Postgraduates,FG - Accounts & Business Planning,Liverpool John Moores University,98152463,869.37,Training Awards - Postgraduate
BEIS,UKRI - BBSRC,09/04/2018,Training Awards - Postgraduates,FG - Accounts & Business Planning,Liverpool John Moores University,98153568,6314.42,Training Awards - Postgraduate
BEIS,UKRI - BBSRC,09/04/2018,Training Awards - Postgraduates,FG - Accounts & Business Planning,Liverpool John Moores University,98153569,6043.5,Training Awards - Postgraduate
BEIS,UKRI - BBSRC,09/04/2018,Training Awards - Postgraduates,FG - Accounts & Business Planning,Liverpool John Moores University,98153598,6043.5,Training Awards - Postgraduate
BEIS,UKRI - BBSRC,09/04/2018,Training Awards - Postgraduates,FG - Accounts & Business Planning,Liverpool John Moores University,98153669,6138.25,Training Awards - Postgraduate
BEIS,UKRI - BBSRC,09/04/2018,Training Awards - Postgraduates,FG - Accounts & Business Planning,Liverpool John Moores University,98153669,6138.25,Training Awards - Postgraduate
BEIS,UKRI - BBSRC,09/04/2018,Training Awards - Postgraduates,FG - Accounts & Business Planning,Loughborough University,98152171,5845,Training Awards - Postgraduate
BEIS,UKRI - BBSRC,09/04/2018,Training Awards - Postgraduates,FG - Accounts & Business Planning,Loughborough University,98153616,6043.5,Training Awards - Postgraduate
BEIS,UKRI - BBSRC,09/04/2018,Training Awards - Postgraduates,FG - Accounts & Business Planning,National Institute For Agricultural Botany (NIAB),98153603,4910.35,Training Awards - Postgraduate
BEIS,UKRI - BBSRC,09/04/2018,Training Awards - Postgraduates,FG - Accounts & Business Planning,National Institute For Agricultural Botany (NIAB),98153664,6138.25,Training Awards - Postgraduate
BEIS,UKRI - BBSRC,09/04/2018,Training Awards - Postgraduates,FG - Accounts & Business Planning,National Institute For Agricultural Botany (NIAB),98153667,6138.25,Training Awards - Postgraduate
BEIS,UKRI - BBSRC,09/04/2018,Training Awards - Postgraduates,FG - Accounts & Business Planning,National Institute For Agricultural Botany (NIAB),98153697,6138.25,Training Awards - Postgraduate
BEIS,UKRI - BBSRC,09/04/2018,Training Awards - Postgraduates,FG - Accounts & Business Planning,National Institute For Agricultural Botany (NIAB),98153698,6138.25,Training Awards - Postgraduate
BEIS,UKRI - BBSRC,09/04/2018,Training Awards - Postgraduates,FG - Accounts & Business Planning,National Institute For Agricultural Botany (NIAB),98153777,6138.25,Training Awards - Postgraduate
BEIS,UKRI - BBSRC,09/04/2018,Training Awards - Postgraduates,FG - Accounts & Business Planning,Natural History Museum,98153637,3161.5,Training Awards - Postgraduate
BEIS,UKRI - BBSRC,09/04/2018,Training Awards - Postgraduates,FG - Accounts & Business Planning,Northumbria University,98152304,5882.87,Training Awards - Postgraduate
BEIS,UKRI - BBSRC,09/04/2018,Training Awards - Postgraduates,FG - Accounts & Business Planning,Oxford Brookes University,98152310,5042.48,Training Awards - Postgraduate
BEIS,UKRI - BBSRC,09/04/2018,Training Awards - Postgraduates,FG - Accounts & Business Planning,Oxford Brookes University,98153745,6138.25,Training Awards - Postgraduate
BEIS,UKRI - BBSRC,09/04/2018,Training Awards - Postgraduates,FG - Accounts & Business Planning,Oxford Brookes University,98153745,6138.25,Training Awards - Postgraduate
BEIS,UKRI - BBSRC,09/04/2018,Training Awards - Postgraduates,FG - Accounts & Business Planning,Quadram Institute Biosocience,98152212,4706.3,Training Awards - Postgraduate
BEIS,UKRI - BBSRC,09/04/2018,Training Awards - Postgraduates,FG - Accounts & Business Planning,Quadram Institute Biosocience,98152431,5845,Training Awards - Postgraduate
BEIS,UKRI - BBSRC,09/04/2018,Training Awards - Postgraduates,FG - Accounts & Business Planning,Quadram Institute Biosocience,98153746,6138.25,Training Awards - Postgraduate
BEIS,UKRI - BBSRC,09/04/2018,Training Awards - Postgraduates,FG - Accounts & Business Planning,Queen Mary University of London,98152185,6382.87,Training Awards - Postgraduate
BEIS,UKRI - BBSRC,09/04/2018,Training Awards - Postgraduates,FG - Accounts & Business Planning,Queen Mary University of London,98152260,6382.87,Training Awards - Postgraduate
BEIS,UKRI - BBSRC,09/04/2018,Training Awards - Postgraduates,FG - Accounts & Business Planning,Queen Mary University of London,98152332,6382.87,Training Awards - Postgraduate
BEIS,UKRI - BBSRC,09/04/2018,Training Awards - Postgraduates,FG - Accounts & Business Planning,Queen Mary University of London,98152409,6345,Training Awards - Postgraduate
BEIS,UKRI - BBSRC,09/04/2018,Training Awards - Postgraduates,FG - Accounts & Business Planning,Queen Mary University of London,98152438,6178,Training Awards - Postgraduate
BEIS,UKRI - BBSRC,09/04/2018,Training Awards - Postgraduates,FG - Accounts & Business Planning,Queen Mary University of London,98152444,3688.95,Training Awards - Postgraduate
BEIS,UKRI - BBSRC,09/04/2018,Training Awards - Postgraduates,FG - Accounts & Business Planning,Queen Mary University of London,98152447,6345,Training Awards - Postgraduate
BEIS,UKRI - BBSRC,09/04/2018,Training Awards - Postgraduates,FG - Accounts & Business Planning,Queen Mary University of London,98152457,6345,Training Awards - Postgraduate
BEIS,UKRI - BBSRC,09/04/2018,Training Awards - Postgraduates,FG - Accounts & Business Planning,Queen Mary University of London,98153348,6382.87,Training Awards - Postgraduate
BEIS,UKRI - BBSRC,09/04/2018,Training Awards - Postgraduates,FG - Accounts & Business Planning,Queen Mary University of London,98153472,6440.12,Training Awards - Postgraduate
BEIS,UKRI - BBSRC,09/04/2018,Training Awards - Postgraduates,FG - Accounts & Business Planning,Queen Mary University of London,98153516,6440.12,Training Awards - Postgraduate
BEIS,UKRI - BBSRC,09/04/2018,Training Awards - Postgraduates,FG - Accounts & Business Planning,Queen Mary University of London,98153574,6543.5,Training Awards - Postgraduate
BEIS,UKRI - BBSRC,09/04/2018,Training Awards - Postgraduates,FG - Accounts & Business Planning,Queen Mary University of London,98153576,6543.5,Training Awards - Postgraduate
BEIS,UKRI - BBSRC,09/04/2018,Training Awards - Postgraduates,FG - Accounts & Business Planning,Queen Mary University of London,98153671,6638.25,Training Awards - Postgraduate
BEIS,UKRI - BBSRC,09/04/2018,Training Awards - Postgraduates,FG - Accounts & Business Planning,Queen Mary University of London,98153683,6638.25,Training Awards - Postgraduate
BEIS,UKRI - BBSRC,09/04/2018,Training Awards - Postgraduates,FG - Accounts & Business Planning,Queen Mary University of London,98153735,6638.25,Training Awards - Postgraduate
BEIS,UKRI - BBSRC,09/04/2018,Training Awards - Postgraduates,FG - Accounts & Business Planning,Queen's University Belfast GRANT,98152299,5882.87,Training Awards - Postgraduate
BEIS,UKRI - BBSRC,09/04/2018,Training Awards - Postgraduates,FG - Accounts & Business Planning,Queen's University Belfast GRANT,98153334,5882.87,Training Awards - Postgraduate
BEIS,UKRI - BBSRC,09/04/2018,Training Awards - Postgraduates,FG - Accounts & Business Planning,Rothamsted Research Ltd,98153438,5940.12,Training Awards - Postgraduate
BEIS,UKRI - BBSRC,09/04/2018,Training Awards - Postgraduates,FG - Accounts & Business Planning,Rothamsted Research Ltd,98153529,5940.12,Training Awards - Postgraduate
BEIS,UKRI - BBSRC,09/04/2018,Training Awards - Postgraduates,FG - Accounts & Business Planning,"Royal Holloway, University of London",98152281,6382.87,Training Awards - Postgraduate
BEIS,UKRI - BBSRC,09/04/2018,Training Awards - Postgraduates,FG - Accounts & Business Planning,"Royal Holloway, University of London",98152287,6382.87,Training Awards - Postgraduate
BEIS,UKRI - BBSRC,09/04/2018,Training Awards - Postgraduates,FG - Accounts & Business Planning,"Royal Holloway, University of London",98153462,6440.12,Training Awards - Postgraduate
BEIS,UKRI - BBSRC,09/04/2018,Training Awards - Postgraduates,FG - Accounts & Business Planning,"Royal Holloway, University of London",98153467,6440.12,Training Awards - Postgraduate
BEIS,UKRI - BBSRC,09/04/2018,Training Awards - Postgraduates,FG - Accounts & Business Planning,"Royal Holloway, University of London",98153471,6440.12,Training Awards - Postgraduate
BEIS,UKRI - BBSRC,09/04/2018,Training Awards - Postgraduates,FG - Accounts & Business Planning,"Royal Holloway, University of London",98153510,6440.12,Training Awards - Postgraduate
BEIS,UKRI - BBSRC,09/04/2018,Training Awards - Postgraduates,FG - Accounts & Business Planning,"Royal Holloway, University of London",98153553,6440.12,Training Awards - Postgraduate
BEIS,UKRI - BBSRC,09/04/2018,Training Awards - Postgraduates,FG - Accounts & Business Planning,"Royal Holloway, University of London",98153594,6543.5,Training Awards - Postgraduate
BEIS,UKRI - BBSRC,09/04/2018,Training Awards - Postgraduates,FG - Accounts & Business Planning,"Royal Holloway, University of London",98153643,920.83,Training Awards - Postgraduate
BEIS,UKRI - BBSRC,09/04/2018,Training Awards - Postgraduates,FG - Accounts & Business Planning,"Royal Holloway, University of London",98153708,6638.25,Training Awards - Postgraduate
BEIS,UKRI - BBSRC,09/04/2018,Training Awards - Postgraduates,FG - Accounts & Business Planning,"Royal Holloway, University of London",98153708,6638.25,Training Awards - Postgraduate
BEIS,UKRI - BBSRC,09/04/2018,Training Awards - Postgraduates,FG - Accounts & Business Planning,"Royal Holloway, University of London",98153709,6638.25,Training Awards - Postgraduate
BEIS,UKRI - BBSRC,09/04/2018,Training Awards - Postgraduates,FG - Accounts & Business Planning,Royal Veterinary College,98152233,6382.87,Training Awards - Postgraduate
BEIS,UKRI - BBSRC,09/04/2018,Training Awards - Postgraduates,FG - Accounts & Business Planning,Royal Veterinary College,98152283,6382.87,Training Awards - Postgraduate
BEIS,UKRI - BBSRC,09/04/2018,Training Awards - Postgraduates,FG - Accounts & Business Planning,Royal Veterinary College,98153361,3904.16,Training Awards - Postgraduate
BEIS,UKRI - BBSRC,09/04/2018,Training Awards - Postgraduates,FG - Accounts & Business Planning,Royal Veterinary College,98153415,6440.12,Training Awards - Postgraduate
BEIS,UKRI - BBSRC,09/04/2018,Training Awards - Postgraduates,FG - Accounts & Business Planning,Royal Veterinary College,98153540,6440.12,Training Awards - Postgraduate
BEIS,UKRI - BBSRC,09/04/2018,Training Awards - Postgraduates,FG - Accounts & Business Planning,Royal Veterinary College,98153564,6543.5,Training Awards - Postgraduate
BEIS,UKRI - BBSRC,09/04/2018,Training Awards - Postgraduates,FG - Accounts & Business Planning,Royal Veterinary College,98153742,6638.25,Training Awards - Postgraduate
BEIS,UKRI - BBSRC,09/04/2018,Training Awards - Postgraduates,FG - Accounts & Business Planning,Royal Veterinary College,98153742,6638.25,Training Awards - Postgraduate
BEIS,UKRI - BBSRC,09/04/2018,Training Awards - Postgraduates,FG - Accounts & Business Planning,Royal Veterinary College,98153742,6638.25,Training Awards - Postgraduate
BEIS,UKRI - BBSRC,09/04/2018,Training Awards - Postgraduates,FG - Accounts & Business Planning,SRUC,98153358,5882.87,Training Awards - Postgraduate
BEIS,UKRI - BBSRC,09/04/2018,Training Awards - Postgraduates,FG - Accounts & Business Planning,SRUC,98153448,5940.12,Training Awards - Postgraduate
BEIS,UKRI - BBSRC,09/04/2018,Training Awards - Postgraduates,FG - Accounts & Business Planning,SRUC,98153524,5940.12,Training Awards - Postgraduate
BEIS,UKRI - BBSRC,09/04/2018,Training Awards - Postgraduates,FG - Accounts & Business Planning,Swansea University,98152455,5845,Training Awards - Postgraduate
BEIS,UKRI - BBSRC,09/04/2018,Training Awards - Postgraduates,FG - Accounts & Business Planning,Swansea University,98153494,5940.12,Training Awards - Postgraduate
BEIS,UKRI - BBSRC,09/04/2018,Training Awards - Postgraduates,FG - Accounts & Business Planning,Teesside University,98153363,2916.3,Training Awards - Postgraduate
BEIS,UKRI - BBSRC,09/04/2018,Training Awards - Postgraduates,FG - Accounts & Business Planning,The Francis Crick Institute,98152441,3361.76,Training Awards - Postgraduate
BEIS,UKRI - BBSRC,09/04/2018,Training Awards - Postgraduates,FG - Accounts & Business Planning,The Francis Crick Institute,98152448,3744,Training Awards - Postgraduate
BEIS,UKRI - BBSRC,09/04/2018,Training Awards - Postgraduates,FG - Accounts & Business Planning,The Francis Crick Institute,98152465,-19783.8,Training Awards - Postgraduate
BEIS,UKRI - BBSRC,09/04/2018,Training Awards - Postgraduates,FG - Accounts & Business Planning,The Francis Crick Institute,98153351,6382.87,Training Awards - Postgraduate
BEIS,UKRI - BBSRC,09/04/2018,Training Awards - Postgraduates,FG - Accounts & Business Planning,The Francis Crick Institute,98153509,6440.12,Training Awards - Postgraduate
BEIS,UKRI - BBSRC,09/04/2018,Training Awards - Postgraduates,FG - Accounts & Business Planning,The Francis Crick Institute,98153584,6543.5,Training Awards - Postgraduate
BEIS,UKRI - BBSRC,09/04/2018,Training Awards - Postgraduates,FG - Accounts & Business Planning,The Francis Crick Institute,98153587,6543.5,Training Awards - Postgraduate
BEIS,UKRI - BBSRC,09/04/2018,Training Awards - Postgraduates,FG - Accounts & Business Planning,The James Hutton Institute,98152196,11765.75,Training Awards - Postgraduate
BEIS,UKRI - BBSRC,09/04/2018,Training Awards - Postgraduates,FG - Accounts & Business Planning,The Pirbright Institute,98152195,4383.7,Training Awards - Postgraduate
BEIS,UKRI - BBSRC,09/04/2018,Training Awards - Postgraduates,FG - Accounts & Business Planning,The Pirbright Institute,98152396,5760.85,Training Awards - Postgraduate
BEIS,UKRI - BBSRC,09/04/2018,Training Awards - Postgraduates,FG - Accounts & Business Planning,The Pirbright Institute,98153384,5940.12,Training Awards - Postgraduate
BEIS,UKRI - BBSRC,09/04/2018,Training Awards - Postgraduates,FG - Accounts & Business Planning,The Pirbright Institute,98153444,5940.12,Training Awards - Postgraduate
BEIS,UKRI - BBSRC,09/04/2018,Training Awards - Postgraduates,FG - Accounts & Business Planning,The Pirbright Institute,98153451,5940.12,Training Awards - Postgraduate
BEIS,UKRI - BBSRC,09/04/2018,Training Awards - Postgraduates,FG - Accounts & Business Planning,The Pirbright Institute,98153731,6138.25,Training Awards - Postgraduate
BEIS,UKRI - BBSRC,09/04/2018,Training Awards - Postgraduates,FG - Accounts & Business Planning,The Pirbright Institute,98153776,6138.25,Training Awards - Postgraduate
BEIS,UKRI - BBSRC,09/04/2018,Training Awards - Postgraduates,FG - Accounts & Business Planning,The Pirbright Institute,98153785,12000,Training Awards - Postgraduate
BEIS,UKRI - BBSRC,09/04/2018,Training Awards - Postgraduates,FG - Accounts & Business Planning,The Pirbright Institute,98153785,12000,Training Awards - Postgraduate
BEIS,UKRI - BBSRC,09/04/2018,Training Awards - Postgraduates,FG - Accounts & Business Planning,The Scottish Association for Marine Science (SAMS Group),98152245,5882.87,Training Awards - Postgraduate
BEIS,UKRI - BBSRC,09/04/2018,Training Awards - Postgraduates,FG - Accounts & Business Planning,The University of Manchester,98152154,129465,Training Awards - Postgraduate
BEIS,UKRI - BBSRC,09/04/2018,Training Awards - Postgraduates,FG - Accounts & Business Planning,The University of Manchester,98152170,5845,Training Awards - Postgraduate
BEIS,UKRI - BBSRC,09/04/2018,Training Awards - Postgraduates,FG - Accounts & Business Planning,The University of Manchester,98152198,6007.87,Training Awards - Postgraduate
BEIS,UKRI - BBSRC,09/04/2018,Training Awards - Postgraduates,FG - Accounts & Business Planning,The University of Manchester,98152229,5882.87,Training Awards - Postgraduate
BEIS,UKRI - BBSRC,09/04/2018,Training Awards - Postgraduates,FG - Accounts & Business Planning,The University of Manchester,98152230,5882.87,Training Awards - Postgraduate
BEIS,UKRI - BBSRC,09/04/2018,Training Awards - Postgraduates,FG - Accounts & Business Planning,The University of Manchester,98152239,5882.87,Training Awards - Postgraduate
BEIS,UKRI - BBSRC,09/04/2018,Training Awards - Postgraduates,FG - Accounts & Business Planning,The University of Manchester,98152242,5882.87,Training Awards - Postgraduate
BEIS,UKRI - BBSRC,09/04/2018,Training Awards - Postgraduates,FG - Accounts & Business Planning,The University of Manchester,98152244,5882.87,Training Awards - Postgraduate
BEIS,UKRI - BBSRC,09/04/2018,Training Awards - Postgraduates,FG - Accounts & Business Planning,The University of Manchester,98152248,5882.87,Training Awards - Postgraduate
BEIS,UKRI - BBSRC,09/04/2018,Training Awards - Postgraduates,FG - Accounts & Business Planning,The University of Manchester,98152251,5882.87,Training Awards - Postgraduate
BEIS,UKRI - BBSRC,09/04/2018,Training Awards - Postgraduates,FG - Accounts & Business Planning,The University of Manchester,98152258,5882.87,Training Awards - Postgraduate
BEIS,UKRI - BBSRC,09/04/2018,Training Awards - Postgraduates,FG - Accounts & Business Planning,The University of Manchester,98152269,5882.87,Training Awards - Postgraduate
BEIS,UKRI - BBSRC,09/04/2018,Training Awards - Postgraduates,FG - Accounts & Business Planning,The University of Manchester,98152282,5882.87,Training Awards - Postgraduate
BEIS,UKRI - BBSRC,09/04/2018,Training Awards - Postgraduates,FG - Accounts & Business Planning,The University of Manchester,98152288,5882.87,Training Awards - Postgraduate
BEIS,UKRI - BBSRC,09/04/2018,Training Awards - Postgraduates,FG - Accounts & Business Planning,The University of Manchester,98152311,5882.87,Training Awards - Postgraduate
BEIS,UKRI - BBSRC,09/04/2018,Training Awards - Postgraduates,FG - Accounts & Business Planning,The University of Manchester,98152313,5882.87,Training Awards - Postgraduate
BEIS,UKRI - BBSRC,09/04/2018,Training Awards - Postgraduates,FG - Accounts & Business Planning,The University of Manchester,98152327,5882.87,Training Awards - Postgraduate
BEIS,UKRI - BBSRC,09/04/2018,Training Awards - Postgraduates,FG - Accounts & Business Planning,The University of Manchester,98152399,4905.24,Training Awards - Postgraduate
BEIS,UKRI - BBSRC,09/04/2018,Training Awards - Postgraduates,FG - Accounts & Business Planning,The University of Manchester,98152430,5845,Training Awards - Postgraduate
BEIS,UKRI - BBSRC,09/04/2018,Training Awards - Postgraduates,FG - Accounts & Business Planning,The University of Manchester,98152433,3846.68,Training Awards - Postgraduate
BEIS,UKRI - BBSRC,09/04/2018,Training Awards - Postgraduates,FG - Accounts & Business Planning,The University of Manchester,98152435,15418.84,Training Awards - Postgraduate
BEIS,UKRI - BBSRC,09/04/2018,Training Awards - Postgraduates,FG - Accounts & Business Planning,The University of Manchester,98152460,-18393.23,Training Awards - Postgraduate
BEIS,UKRI - BBSRC,09/04/2018,Training Awards - Postgraduates,FG - Accounts & Business Planning,The University of Manchester,98152461,5326.78,Training Awards - Postgraduate
BEIS,UKRI - BBSRC,09/04/2018,Training Awards - Postgraduates,FG - Accounts & Business Planning,The University of Manchester,98152464,-18263.48,Training Awards - Postgraduate
BEIS,UKRI - BBSRC,09/04/2018,Training Awards - Postgraduates,FG - Accounts & Business Planning,The University of Manchester,98153372,314145,Training Awards - Postgraduate
BEIS,UKRI - BBSRC,09/04/2018,Training Awards - Postgraduates,FG - Accounts & Business Planning,The University of Manchester,98153380,5940.12,Training Awards - Postgraduate
BEIS,UKRI - BBSRC,09/04/2018,Training Awards - Postgraduates,FG - Accounts & Business Planning,The University of Manchester,98153388,5940.12,Training Awards - Postgraduate
BEIS,UKRI - BBSRC,09/04/2018,Training Awards - Postgraduates,FG - Accounts & Business Planning,The University of Manchester,98153395,5940.12,Training Awards - Postgraduate
BEIS,UKRI - BBSRC,09/04/2018,Training Awards - Postgraduates,FG - Accounts & Business Planning,The University of Manchester,98153418,5940.12,Training Awards - Postgraduate
BEIS,UKRI - BBSRC,09/04/2018,Training Awards - Postgraduates,FG - Accounts & Business Planning,The University of Manchester,98153487,5940.12,Training Awards - Postgraduate
BEIS,UKRI - BBSRC,09/04/2018,Training Awards - Postgraduates,FG - Accounts & Business Planning,The University of Manchester,98153499,5940.12,Training Awards - Postgraduate
BEIS,UKRI - BBSRC,09/04/2018,Training Awards - Postgraduates,FG - Accounts & Business Planning,The University of Manchester,98153505,5940.12,Training Awards - Postgraduate
BEIS,UKRI - BBSRC,09/04/2018,Training Awards - Postgraduates,FG - Accounts & Business Planning,The University of Manchester,98153522,5940.12,Training Awards - Postgraduate
BEIS,UKRI - BBSRC,09/04/2018,Training Awards - Postgraduates,FG - Accounts & Business Planning,The University of Manchester,98153527,5940.12,Training Awards - Postgraduate
BEIS,UKRI - BBSRC,09/04/2018,Training Awards - Postgraduates,FG - Accounts & Business Planning,The University of Manchester,98153547,5940.12,Training Awards - Postgraduate
BEIS,UKRI - BBSRC,09/04/2018,Training Awards - Postgraduates,FG - Accounts & Business Planning,The University of Manchester,98153565,6043.5,Training Awards - Postgraduate
BEIS,UKRI - BBSRC,09/04/2018,Training Awards - Postgraduates,FG - Accounts & Business Planning,The University of Manchester,98153570,6043.5,Training Awards - Postgraduate
BEIS,UKRI - BBSRC,09/04/2018,Training Awards - Postgraduates,FG - Accounts & Business Planning,The University of Manchester,98153582,6043.5,Training Awards - Postgraduate
BEIS,UKRI - BBSRC,09/04/2018,Training Awards - Postgraduates,FG - Accounts & Business Planning,The University of Manchester,98153606,7558.33,Training Awards - Postgraduate
BEIS,UKRI - BBSRC,09/04/2018,Training Awards - Postgraduates,FG - Accounts & Business Planning,The University of Manchester,98153623,6043.5,Training Awards - Postgraduate
BEIS,UKRI - BBSRC,09/04/2018,Training Awards - Postgraduates,FG - Accounts & Business Planning,The University of Manchester,98153641,6510.51,Training Awards - Postgraduate
BEIS,UKRI - BBSRC,09/04/2018,Training Awards - Postgraduates,FG - Accounts & Business Planning,The University of Manchester,98153651,6138.25,Training Awards - Postgraduate
BEIS,UKRI - BBSRC,09/04/2018,Training Awards - Postgraduates,FG - Accounts & Business Planning,The University of Manchester,98153657,6138.25,Training Awards - Postgraduate
BEIS,UKRI - BBSRC,09/04/2018,Training Awards - Postgraduates,FG - Accounts & Business Planning,The University of Manchester,98153661,3069.13,Training Awards - Postgraduate
BEIS,UKRI - BBSRC,09/04/2018,Training Awards - Postgraduates,FG - Accounts & Business Planning,The University of Manchester,98153701,6138.25,Training Awards - Postgraduate
BEIS,UKRI - BBSRC,09/04/2018,Training Awards - Postgraduates,FG - Accounts & Business Planning,The University of Manchester,98153716,6138.25,Training Awards - Postgraduate
BEIS,UKRI - BBSRC,09/04/2018,Training Awards - Postgraduates,FG - Accounts & Business Planning,The University of Manchester,98153722,6138.25,Training Awards - Postgraduate
BEIS,UKRI - BBSRC,09/04/2018,Training Awards - Postgraduates,FG - Accounts & Business Planning,The University of Manchester,98153723,6138.25,Training Awards - Postgraduate
BEIS,UKRI - BBSRC,09/04/2018,Training Awards - Postgraduates,FG - Accounts & Business Planning,The University of Manchester,98153724,6138.25,Training Awards - Postgraduate
BEIS,UKRI - BBSRC,09/04/2018,Training Awards - Postgraduates,FG - Accounts & Business Planning,The University of Manchester,98153725,6138.25,Training Awards - Postgraduate
BEIS,UKRI - BBSRC,09/04/2018,Training Awards - Postgraduates,FG - Accounts & Business Planning,The University of Manchester,98153726,6138.25,Training Awards - Postgraduate
BEIS,UKRI - BBSRC,09/04/2018,Training Awards - Postgraduates,FG - Accounts & Business Planning,The University of Manchester,98153727,6138.25,Training Awards - Postgraduate
BEIS,UKRI - BBSRC,09/04/2018,Training Awards - Postgraduates,FG - Accounts & Business Planning,The University of Manchester,98153728,6138.25,Training Awards - Postgraduate
BEIS,UKRI - BBSRC,09/04/2018,Training Awards - Postgraduates,FG - Accounts & Business Planning,The University of Manchester,98153729,6138.25,Training Awards - Postgraduate
BEIS,UKRI - BBSRC,09/04/2018,Training Awards - Postgraduates,FG - Accounts & Business Planning,The University of Manchester,98153756,6138.25,Training Awards - Postgraduate
BEIS,UKRI - BBSRC,09/04/2018,Training Awards - Postgraduates,FG - Accounts & Business Planning,University College Chester,98153483,5940.12,Training Awards - Postgraduate
BEIS,UKRI - BBSRC,09/04/2018,Training Awards - Postgraduates,FG - Accounts & Business Planning,University College London,98152155,119970,Training Awards - Postgraduate
BEIS,UKRI - BBSRC,09/04/2018,Training Awards - Postgraduates,FG - Accounts & Business Planning,University College London,98152169,6345,Training Awards - Postgraduate
BEIS,UKRI - BBSRC,09/04/2018,Training Awards - Postgraduates,FG - Accounts & Business Planning,University College London,98152187,6382.87,Training Awards - Postgraduate
BEIS,UKRI - BBSRC,09/04/2018,Training Awards - Postgraduates,FG - Accounts & Business Planning,University College London,98152188,6382.87,Training Awards - Postgraduate
BEIS,UKRI - BBSRC,09/04/2018,Training Awards - Postgraduates,FG - Accounts & Business Planning,University College London,98152189,25731.5,Training Awards - Postgraduate
BEIS,UKRI - BBSRC,09/04/2018,Training Awards - Postgraduates,FG - Accounts & Business Planning,University College London,98152235,6382.87,Training Awards - Postgraduate
BEIS,UKRI - BBSRC,09/04/2018,Training Awards - Postgraduates,FG - Accounts & Business Planning,University College London,98152238,6382.87,Training Awards - Postgraduate
BEIS,UKRI - BBSRC,09/04/2018,Training Awards - Postgraduates,FG - Accounts & Business Planning,University College London,98152246,6382.87,Training Awards - Postgraduate
BEIS,UKRI - BBSRC,09/04/2018,Training Awards - Postgraduates,FG - Accounts & Business Planning,University College London,98152257,6382.87,Training Awards - Postgraduate
BEIS,UKRI - BBSRC,09/04/2018,Training Awards - Postgraduates,FG - Accounts & Business Planning,University College London,98152284,5744.6,Training Awards - Postgraduate
BEIS,UKRI - BBSRC,09/04/2018,Training Awards - Postgraduates,FG - Accounts & Business Planning,University College London,98152285,6382.87,Training Awards - Postgraduate
BEIS,UKRI - BBSRC,09/04/2018,Training Awards - Postgraduates,FG - Accounts & Business Planning,University College London,98152326,6382.87,Training Awards - Postgraduate
BEIS,UKRI - BBSRC,09/04/2018,Training Awards - Postgraduates,FG - Accounts & Business Planning,University College London,98152330,6382.87,Training Awards - Postgraduate
BEIS,UKRI - BBSRC,09/04/2018,Training Awards - Postgraduates,FG - Accounts & Business Planning,University College London,98152411,5845,Training Awards - Postgraduate
BEIS,UKRI - BBSRC,09/04/2018,Training Awards - Postgraduates,FG - Accounts & Business Planning,University College London,98152445,6345,Training Awards - Postgraduate
BEIS,UKRI - BBSRC,09/04/2018,Training Awards - Postgraduates,FG - Accounts & Business Planning,University College London,98153343,6382.87,Training Awards - Postgraduate
BEIS,UKRI - BBSRC,09/04/2018,Training Awards - Postgraduates,FG - Accounts & Business Planning,University College London,98153362,732336.5,Training Awards - Postgraduate
BEIS,UKRI - BBSRC,09/04/2018,Training Awards - Postgraduates,FG - Accounts & Business Planning,University College London,98153378,6440.12,Training Awards - Postgraduate
BEIS,UKRI - BBSRC,09/04/2018,Training Awards - Postgraduates,FG - Accounts & Business Planning,University College London,98153492,6440.12,Training Awards - Postgraduate
BEIS,UKRI - BBSRC,09/04/2018,Training Awards - Postgraduates,FG - Accounts & Business Planning,University College London,98153508,6440.12,Training Awards - Postgraduate
BEIS,UKRI - BBSRC,09/04/2018,Training Awards - Postgraduates,FG - Accounts & Business Planning,University College London,98153511,6440.12,Training Awards - Postgraduate
BEIS,UKRI - BBSRC,09/04/2018,Training Awards - Postgraduates,FG - Accounts & Business Planning,University College London,98153521,6440.12,Training Awards - Postgraduate
BEIS,UKRI - BBSRC,09/04/2018,Training Awards - Postgraduates,FG - Accounts & Business Planning,University College London,98153525,6440.12,Training Awards - Postgraduate
BEIS,UKRI - BBSRC,09/04/2018,Training Awards - Postgraduates,FG - Accounts & Business Planning,University College London,98153526,2000,Training Awards - Postgraduate
BEIS,UKRI - BBSRC,09/04/2018,Training Awards - Postgraduates,FG - Accounts & Business Planning,University College London,98153562,6543.5,Training Awards - Postgraduate
BEIS,UKRI - BBSRC,09/04/2018,Training Awards - Postgraduates,FG - Accounts & Business Planning,University College London,98153573,6543.5,Training Awards - Postgraduate
BEIS,UKRI - BBSRC,09/04/2018,Training Awards - Postgraduates,FG - Accounts & Business Planning,University College London,98153595,6543.5,Training Awards - Postgraduate
BEIS,UKRI - BBSRC,09/04/2018,Training Awards - Postgraduates,FG - Accounts & Business Planning,University College London,98153619,6543.5,Training Awards - Postgraduate
BEIS,UKRI - BBSRC,09/04/2018,Training Awards - Postgraduates,FG - Accounts & Business Planning,University College London,98153733,6638.25,Training Awards - Postgraduate
BEIS,UKRI - BBSRC,09/04/2018,Training Awards - Postgraduates,FG - Accounts & Business Planning,University College London,98153734,6638.25,Training Awards - Postgraduate
BEIS,UKRI - BBSRC,09/04/2018,Training Awards - Postgraduates,FG - Accounts & Business Planning,University College London,98153736,6638.25,Training Awards - Postgraduate
BEIS,UKRI - BBSRC,09/04/2018,Training Awards - Postgraduates,FG - Accounts & Business Planning,University College London,98153753,6638.25,Training Awards - Postgraduate
BEIS,UKRI - BBSRC,09/04/2018,Training Awards - Postgraduates,FG - Accounts & Business Planning,University College London,98153754,6638.25,Training Awards - Postgraduate
BEIS,UKRI - BBSRC,09/04/2018,Training Awards - Postgraduates,FG - Accounts & Business Planning,University College London,98153754,6638.25,Training Awards - Postgraduate
BEIS,UKRI - BBSRC,09/04/2018,Training Awards - Postgraduates,FG - Accounts & Business Planning,University College London,98153754,6638.25,Training Awards - Postgraduate
BEIS,UKRI - BBSRC,09/04/2018,Training Awards - Postgraduates,FG - Accounts & Business Planning,University College London,98153755,6638.25,Training Awards - Postgraduate
BEIS,UKRI - BBSRC,09/04/2018,Training Awards - Postgraduates,FG - Accounts & Business Planning,University of Aberdeen,98153338,5882.87,Training Awards - Postgraduate
BEIS,UKRI - BBSRC,09/04/2018,Training Awards - Postgraduates,FG - Accounts & Business Planning,University of Aberdeen,98153360,5882.87,Training Awards - Postgraduate
BEIS,UKRI - BBSRC,09/04/2018,Training Awards - Postgraduates,FG - Accounts & Business Planning,University of Aberdeen,98153421,5940.12,Training Awards - Postgraduate
BEIS,UKRI - BBSRC,09/04/2018,Training Awards - Postgraduates,FG - Accounts & Business Planning,University of Aberdeen,98153449,5940.12,Training Awards - Postgraduate
BEIS,UKRI - BBSRC,09/04/2018,Training Awards - Postgraduates,FG - Accounts & Business Planning,University of Aberdeen,98153475,5940.12,Training Awards - Postgraduate
BEIS,UKRI - BBSRC,09/04/2018,Training Awards - Postgraduates,FG - Accounts & Business Planning,University of Aberdeen,98153519,5940.12,Training Awards - Postgraduate
BEIS,UKRI - BBSRC,09/04/2018,Training Awards - Postgraduates,FG - Accounts & Business Planning,University of Aberdeen,98153691,6138.25,Training Awards - Postgraduate
BEIS,UKRI - BBSRC,09/04/2018,Training Awards - Postgraduates,FG - Accounts & Business Planning,University of Abertay Dundee,98153660,6138.25,Training Awards - Postgraduate
BEIS,UKRI - BBSRC,09/04/2018,Training Awards - Postgraduates,FG - Accounts & Business Planning,University of Abertay Dundee,98153660,6138.25,Training Awards - Postgraduate
BEIS,UKRI - BBSRC,09/04/2018,Training Awards - Postgraduates,FG - Accounts & Business Planning,University of Abertay Dundee,98153660,6138.25,Training Awards - Postgraduate
BEIS,UKRI - BBSRC,09/04/2018,Training Awards - Postgraduates,FG - Accounts & Business Planning,University of Bath,98152407,5845,Training Awards - Postgraduate
BEIS,UKRI - BBSRC,09/04/2018,Training Awards - Postgraduates,FG - Accounts & Business Planning,University of Bath,98152450,5845,Training Awards - Postgraduate
BEIS,UKRI - BBSRC,09/04/2018,Training Awards - Postgraduates,FG - Accounts & Business Planning,University of Bath,98153352,5882.87,Training Awards - Postgraduate
BEIS,UKRI - BBSRC,09/04/2018,Training Awards - Postgraduates,FG - Accounts & Business Planning,University of Bath,98153359,5882.87,Training Awards - Postgraduate
BEIS,UKRI - BBSRC,09/04/2018,Training Awards - Postgraduates,FG - Accounts & Business Planning,University of Bath,98153400,5940.12,Training Awards - Postgraduate
BEIS,UKRI - BBSRC,09/04/2018,Training Awards - Postgraduates,FG - Accounts & Business Planning,University of Bath,98153557,3333.33,Training Awards - Postgraduate
BEIS,UKRI - BBSRC,09/04/2018,Training Awards - Postgraduates,FG - Accounts & Business Planning,University of Bath,98153602,6043.5,Training Awards - Postgraduate
BEIS,UKRI - BBSRC,09/04/2018,Training Awards - Postgraduates,FG - Accounts & Business Planning,University of Bath,98153696,6138.25,Training Awards - Postgraduate
BEIS,UKRI - BBSRC,09/04/2018,Training Awards - Postgraduates,FG - Accounts & Business Planning,University of Bath,98153786,7966.13,Training Awards - Postgraduate
BEIS,UKRI - BBSRC,09/04/2018,Training Awards - Postgraduates,FG - Accounts & Business Planning,University of Bath,98153786,7966.13,Training Awards - Postgraduate
BEIS,UKRI - BBSRC,09/04/2018,Training Awards - Postgraduates,FG - Accounts & Business Planning,University of Bath,98153786,7966.13,Training Awards - Postgraduate
BEIS,UKRI - BBSRC,09/04/2018,Training Awards - Postgraduates,FG - Accounts & Business Planning,University of Birmingham GRANT,98152201,4977.81,Training Awards - Postgraduate
BEIS,UKRI - BBSRC,09/04/2018,Training Awards - Postgraduates,FG - Accounts & Business Planning,University of Birmingham GRANT,98152227,5882.87,Training Awards - Postgraduate
BEIS,UKRI - BBSRC,09/04/2018,Training Awards - Postgraduates,FG - Accounts & Business Planning,University of Birmingham GRANT,98152255,5882.87,Training Awards - Postgraduate
BEIS,UKRI - BBSRC,09/04/2018,Training Awards - Postgraduates,FG - Accounts & Business Planning,University of Birmingham GRANT,98152405,5838.84,Training Awards - Postgraduate
BEIS,UKRI - BBSRC,09/04/2018,Training Awards - Postgraduates,FG - Accounts & Business Planning,University of Birmingham GRANT,98152449,-101.08,Training Awards - Postgraduate
BEIS,UKRI - BBSRC,09/04/2018,Training Awards - Postgraduates,FG - Accounts & Business Planning,University of Birmingham GRANT,98153403,5940.12,Training Awards - Postgraduate
BEIS,UKRI - BBSRC,09/04/2018,Training Awards - Postgraduates,FG - Accounts & Business Planning,University of Birmingham GRANT,98153416,5940.12,Training Awards - Postgraduate
BEIS,UKRI - BBSRC,09/04/2018,Training Awards - Postgraduates,FG - Accounts & Business Planning,University of Birmingham GRANT,98153419,5940.12,Training Awards - Postgraduate
BEIS,UKRI - BBSRC,09/04/2018,Training Awards - Postgraduates,FG - Accounts & Business Planning,University of Birmingham GRANT,98153493,5940.12,Training Awards - Postgraduate
BEIS,UKRI - BBSRC,09/04/2018,Training Awards - Postgraduates,FG - Accounts & Business Planning,University of Birmingham GRANT,98153500,5940.12,Training Awards - Postgraduate
BEIS,UKRI - BBSRC,09/04/2018,Training Awards - Postgraduates,FG - Accounts & Business Planning,University of Birmingham GRANT,98153530,5940.12,Training Awards - Postgraduate
BEIS,UKRI - BBSRC,09/04/2018,Training Awards - Postgraduates,FG - Accounts & Business Planning,University of Birmingham GRANT,98153605,1931.25,Training Awards - Postgraduate
BEIS,UKRI - BBSRC,09/04/2018,Training Awards - Postgraduates,FG - Accounts & Business Planning,University of Birmingham GRANT,98153668,6138.25,Training Awards - Postgraduate
BEIS,UKRI - BBSRC,09/04/2018,Training Awards - Postgraduates,FG - Accounts & Business Planning,University of Birmingham GRANT,98153668,6138.25,Training Awards - Postgraduate
BEIS,UKRI - BBSRC,09/04/2018,Training Awards - Postgraduates,FG - Accounts & Business Planning,University of Birmingham GRANT,98153668,6138.25,Training Awards - Postgraduate
BEIS,UKRI - BBSRC,09/04/2018,Training Awards - Postgraduates,FG - Accounts & Business Planning,University of Birmingham GRANT,98153747,6138.25,Training Awards - Postgraduate
BEIS,UKRI - BBSRC,09/04/2018,Training Awards - Postgraduates,FG - Accounts & Business Planning,University of Birmingham GRANT,98153747,6138.25,Training Awards - Postgraduate
BEIS,UKRI - BBSRC,09/04/2018,Training Awards - Postgraduates,FG - Accounts & Business Planning,University of Birmingham GRANT,98153747,6138.25,Training Awards - Postgraduate
BEIS,UKRI - BBSRC,09/04/2018,Training Awards - Postgraduates,FG - Accounts & Business Planning,University of Birmingham GRANT,98153751,6138.25,Training Awards - Postgraduate
BEIS,UKRI - BBSRC,09/04/2018,Training Awards - Postgraduates,FG - Accounts & Business Planning,University of Birmingham GRANT,98153751,6138.25,Training Awards - Postgraduate
BEIS,UKRI - BBSRC,09/04/2018,Training Awards - Postgraduates,FG - Accounts & Business Planning,University of Birmingham GRANT,98153751,6138.25,Training Awards - Postgraduate
BEIS,UKRI - BBSRC,09/04/2018,Training Awards - Postgraduates,FG - Accounts & Business Planning,University of Bradford,98152179,5882.87,Training Awards - Postgraduate
BEIS,UKRI - BBSRC,09/04/2018,Training Awards - Postgraduates,FG - Accounts & Business Planning,University of Bristol GRANT,98152145,86310,Training Awards - Postgraduate
BEIS,UKRI - BBSRC,09/04/2018,Training Awards - Postgraduates,FG - Accounts & Business Planning,University of Bristol GRANT,98152214,5882.87,Training Awards - Postgraduate
BEIS,UKRI - BBSRC,09/04/2018,Training Awards - Postgraduates,FG - Accounts & Business Planning,University of Bristol GRANT,98152271,5882.87,Training Awards - Postgraduate
BEIS,UKRI - BBSRC,09/04/2018,Training Awards - Postgraduates,FG - Accounts & Business Planning,University of Bristol GRANT,98152452,5845,Training Awards - Postgraduate
BEIS,UKRI - BBSRC,09/04/2018,Training Awards - Postgraduates,FG - Accounts & Business Planning,University of Bristol GRANT,98153374,350214,Training Awards - Postgraduate
BEIS,UKRI - BBSRC,09/04/2018,Training Awards - Postgraduates,FG - Accounts & Business Planning,University of Bristol GRANT,98153377,5940.12,Training Awards - Postgraduate
BEIS,UKRI - BBSRC,09/04/2018,Training Awards - Postgraduates,FG - Accounts & Business Planning,University of Bristol GRANT,98153413,5940.12,Training Awards - Postgraduate
BEIS,UKRI - BBSRC,09/04/2018,Training Awards - Postgraduates,FG - Accounts & Business Planning,University of Bristol GRANT,98153556,4510.08,Training Awards - Postgraduate
BEIS,UKRI - BBSRC,09/04/2018,Training Awards - Postgraduates,FG - Accounts & Business Planning,University of Bristol GRANT,98153614,6043.5,Training Awards - Postgraduate
BEIS,UKRI - BBSRC,09/04/2018,Training Awards - Postgraduates,FG - Accounts & Business Planning,University of Bristol GRANT,98153638,11250,Training Awards - Postgraduate
BEIS,UKRI - BBSRC,09/04/2018,Training Awards - Postgraduates,FG - Accounts & Business Planning,University of Bristol GRANT,98153693,6138.25,Training Awards - Postgraduate
BEIS,UKRI - BBSRC,09/04/2018,Training Awards - Postgraduates,FG - Accounts & Business Planning,University of Bristol GRANT,98153695,6138.25,Training Awards - Postgraduate
BEIS,UKRI - BBSRC,09/04/2018,Training Awards - Postgraduates,FG - Accounts & Business Planning,University of Bristol GRANT,98153695,6138.25,Training Awards - Postgraduate
BEIS,UKRI - BBSRC,09/04/2018,Training Awards - Postgraduates,FG - Accounts & Business Planning,University of Bristol GRANT,98153695,6138.25,Training Awards - Postgraduate
BEIS,UKRI - BBSRC,09/04/2018,Training Awards - Postgraduates,FG - Accounts & Business Planning,University of Bristol GRANT,98153758,6138.25,Training Awards - Postgraduate
BEIS,UKRI - BBSRC,09/04/2018,Training Awards - Postgraduates,FG - Accounts & Business Planning,University of Cambridge,98152146,123300,Training Awards - Postgraduate
BEIS,UKRI - BBSRC,09/04/2018,Training Awards - Postgraduates,FG - Accounts & Business Planning,University of Cambridge,98152167,5845,Training Awards - Postgraduate
BEIS,UKRI - BBSRC,09/04/2018,Training Awards - Postgraduates,FG - Accounts & Business Planning,University of Cambridge,98152199,5882.87,Training Awards - Postgraduate
BEIS,UKRI - BBSRC,09/04/2018,Training Awards - Postgraduates,FG - Accounts & Business Planning,University of Cambridge,98152203,5392.64,Training Awards - Postgraduate
BEIS,UKRI - BBSRC,09/04/2018,Training Awards - Postgraduates,FG - Accounts & Business Planning,University of Cambridge,98152204,5882.87,Training Awards - Postgraduate
BEIS,UKRI - BBSRC,09/04/2018,Training Awards - Postgraduates,FG - Accounts & Business Planning,University of Cambridge,98152209,5882.87,Training Awards - Postgraduate
BEIS,UKRI - BBSRC,09/04/2018,Training Awards - Postgraduates,FG - Accounts & Business Planning,University of Cambridge,98152213,5882.87,Training Awards - Postgraduate
BEIS,UKRI - BBSRC,09/04/2018,Training Awards - Postgraduates,FG - Accounts & Business Planning,University of Cambridge,98152322,5882.87,Training Awards - Postgraduate
BEIS,UKRI - BBSRC,09/04/2018,Training Awards - Postgraduates,FG - Accounts & Business Planning,University of Cambridge,98152410,5845,Training Awards - Postgraduate
BEIS,UKRI - BBSRC,09/04/2018,Training Awards - Postgraduates,FG - Accounts & Business Planning,University of Cambridge,98153335,5882.87,Training Awards - Postgraduate
BEIS,UKRI - BBSRC,09/04/2018,Training Awards - Postgraduates,FG - Accounts & Business Planning,University of Cambridge,98153365,676336.5,Training Awards - Postgraduate
BEIS,UKRI - BBSRC,09/04/2018,Training Awards - Postgraduates,FG - Accounts & Business Planning,University of Cambridge,98153379,5940.12,Training Awards - Postgraduate
BEIS,UKRI - BBSRC,09/04/2018,Training Awards - Postgraduates,FG - Accounts & Business Planning,University of Cambridge,98153393,5940.12,Training Awards - Postgraduate
BEIS,UKRI - BBSRC,09/04/2018,Training Awards - Postgraduates,FG - Accounts & Business Planning,University of Cambridge,98153456,5940.12,Training Awards - Postgraduate
BEIS,UKRI - BBSRC,09/04/2018,Training Awards - Postgraduates,FG - Accounts & Business Planning,University of Cambridge,98153498,5940.12,Training Awards - Postgraduate
BEIS,UKRI - BBSRC,09/04/2018,Training Awards - Postgraduates,FG - Accounts & Business Planning,University of Cambridge,98153518,5940.12,Training Awards - Postgraduate
BEIS,UKRI - BBSRC,09/04/2018,Training Awards - Postgraduates,FG - Accounts & Business Planning,University of Cambridge,98153520,5940.12,Training Awards - Postgraduate
BEIS,UKRI - BBSRC,09/04/2018,Training Awards - Postgraduates,FG - Accounts & Business Planning,University of Cambridge,98153539,5940.12,Training Awards - Postgraduate
BEIS,UKRI - BBSRC,09/04/2018,Training Awards - Postgraduates,FG - Accounts & Business Planning,University of Cambridge,98153543,5940.12,Training Awards - Postgraduate
BEIS,UKRI - BBSRC,09/04/2018,Training Awards - Postgraduates,FG - Accounts & Business Planning,University of Cambridge,98153589,6043.5,Training Awards - Postgraduate
BEIS,UKRI - BBSRC,09/04/2018,Training Awards - Postgraduates,FG - Accounts & Business Planning,University of Cambridge,98153613,6043.5,Training Awards - Postgraduate
BEIS,UKRI - BBSRC,09/04/2018,Training Awards - Postgraduates,FG - Accounts & Business Planning,University of Cambridge,98153621,6043.5,Training Awards - Postgraduate
BEIS,UKRI - BBSRC,09/04/2018,Training Awards - Postgraduates,FG - Accounts & Business Planning,University of Cambridge,98153627,6043.5,Training Awards - Postgraduate
BEIS,UKRI - BBSRC,09/04/2018,Training Awards - Postgraduates,FG - Accounts & Business Planning,University of Cambridge,98153642,2332.42,Training Awards - Postgraduate
BEIS,UKRI - BBSRC,09/04/2018,Training Awards - Postgraduates,FG - Accounts & Business Planning,University of Cambridge,98153649,6043.5,Training Awards - Postgraduate
BEIS,UKRI - BBSRC,09/04/2018,Training Awards - Postgraduates,FG - Accounts & Business Planning,University of Cambridge,98153666,6138.25,Training Awards - Postgraduate
BEIS,UKRI - BBSRC,09/04/2018,Training Awards - Postgraduates,FG - Accounts & Business Planning,University of Cambridge,98153674,6138.25,Training Awards - Postgraduate
BEIS,UKRI - BBSRC,09/04/2018,Training Awards - Postgraduates,FG - Accounts & Business Planning,University of Cambridge,98153676,6138.25,Training Awards - Postgraduate
BEIS,UKRI - BBSRC,09/04/2018,Training Awards - Postgraduates,FG - Accounts & Business Planning,University of Cambridge,98153690,6138.25,Training Awards - Postgraduate
BEIS,UKRI - BBSRC,09/04/2018,Training Awards - Postgraduates,FG - Accounts & Business Planning,University of Cambridge,98153705,6138.25,Training Awards - Postgraduate
BEIS,UKRI - BBSRC,09/04/2018,Training Awards - Postgraduates,FG - Accounts & Business Planning,University of Cambridge,98153705,6138.25,Training Awards - Postgraduate
BEIS,UKRI - BBSRC,09/04/2018,Training Awards - Postgraduates,FG - Accounts & Business Planning,University of Dundee,98152279,5882.87,Training Awards - Postgraduate
BEIS,UKRI - BBSRC,09/04/2018,Training Awards - Postgraduates,FG - Accounts & Business Planning,University of Dundee,98152320,5882.87,Training Awards - Postgraduate
BEIS,UKRI - BBSRC,09/04/2018,Training Awards - Postgraduates,FG - Accounts & Business Planning,University of Dundee,98153390,5940.12,Training Awards - Postgraduate
BEIS,UKRI - BBSRC,09/04/2018,Training Awards - Postgraduates,FG - Accounts & Business Planning,University of Dundee,98153397,5940.12,Training Awards - Postgraduate
BEIS,UKRI - BBSRC,09/04/2018,Training Awards - Postgraduates,FG - Accounts & Business Planning,University of Dundee,98153423,5940.12,Training Awards - Postgraduate
BEIS,UKRI - BBSRC,09/04/2018,Training Awards - Postgraduates,FG - Accounts & Business Planning,University of Dundee,98153429,5940.12,Training Awards - Postgraduate
BEIS,UKRI - BBSRC,09/04/2018,Training Awards - Postgraduates,FG - Accounts & Business Planning,University of Dundee,98153546,5940.12,Training Awards - Postgraduate
BEIS,UKRI - BBSRC,09/04/2018,Training Awards - Postgraduates,FG - Accounts & Business Planning,University of Durham,98152159,5845,Training Awards - Postgraduate
BEIS,UKRI - BBSRC,09/04/2018,Training Awards - Postgraduates,FG - Accounts & Business Planning,University of Durham,98152211,5882.87,Training Awards - Postgraduate
BEIS,UKRI - BBSRC,09/04/2018,Training Awards - Postgraduates,FG - Accounts & Business Planning,University of Durham,98153414,5940.12,Training Awards - Postgraduate
BEIS,UKRI - BBSRC,09/04/2018,Training Awards - Postgraduates,FG - Accounts & Business Planning,University of Durham,98153430,5515.82,Training Awards - Postgraduate
BEIS,UKRI - BBSRC,09/04/2018,Training Awards - Postgraduates,FG - Accounts & Business Planning,University of Durham,98153761,6138.25,Training Awards - Postgraduate
BEIS,UKRI - BBSRC,09/04/2018,Training Awards - Postgraduates,FG - Accounts & Business Planning,University of Durham,98153765,6138.25,Training Awards - Postgraduate
BEIS,UKRI - BBSRC,09/04/2018,Training Awards - Postgraduates,FG - Accounts & Business Planning,University of East Anglia,98152165,5202.78,Training Awards - Postgraduate
BEIS,UKRI - BBSRC,09/04/2018,Training Awards - Postgraduates,FG - Accounts & Business Planning,University of East Anglia,98152267,5882.87,Training Awards - Postgraduate
BEIS,UKRI - BBSRC,09/04/2018,Training Awards - Postgraduates,FG - Accounts & Business Planning,University of East Anglia,98152280,5882.87,Training Awards - Postgraduate
BEIS,UKRI - BBSRC,09/04/2018,Training Awards - Postgraduates,FG - Accounts & Business Planning,University of East Anglia,98152297,5882.87,Training Awards - Postgraduate
BEIS,UKRI - BBSRC,09/04/2018,Training Awards - Postgraduates,FG - Accounts & Business Planning,University of East Anglia,98152417,4944.56,Training Awards - Postgraduate
BEIS,UKRI - BBSRC,09/04/2018,Training Awards - Postgraduates,FG - Accounts & Business Planning,University of East Anglia,98153425,5940.12,Training Awards - Postgraduate
BEIS,UKRI - BBSRC,09/04/2018,Training Awards - Postgraduates,FG - Accounts & Business Planning,University of East Anglia,98153454,5940.12,Training Awards - Postgraduate
BEIS,UKRI - BBSRC,09/04/2018,Training Awards - Postgraduates,FG - Accounts & Business Planning,University of East Anglia,98153542,5940.12,Training Awards - Postgraduate
BEIS,UKRI - BBSRC,09/04/2018,Training Awards - Postgraduates,FG - Accounts & Business Planning,University of East Anglia,98153739,6138.25,Training Awards - Postgraduate
BEIS,UKRI - BBSRC,09/04/2018,Training Awards - Postgraduates,FG - Accounts & Business Planning,University of East Anglia,98153744,6138.25,Training Awards - Postgraduate
BEIS,UKRI - BBSRC,09/04/2018,Training Awards - Postgraduates,FG - Accounts & Business Planning,University of Edinburgh,98152156,147960,Training Awards - Postgraduate
BEIS,UKRI - BBSRC,09/04/2018,Training Awards - Postgraduates,FG - Accounts & Business Planning,University of Edinburgh,98152161,5845,Training Awards - Postgraduate
BEIS,UKRI - BBSRC,09/04/2018,Training Awards - Postgraduates,FG - Accounts & Business Planning,University of Edinburgh,98152180,5882.87,Training Awards - Postgraduate
BEIS,UKRI - BBSRC,09/04/2018,Training Awards - Postgraduates,FG - Accounts & Business Planning,University of Edinburgh,98152192,6013.3,Training Awards - Postgraduate
BEIS,UKRI - BBSRC,09/04/2018,Training Awards - Postgraduates,FG - Accounts & Business Planning,University of Edinburgh,98152197,5882.87,Training Awards - Postgraduate
BEIS,UKRI - BBSRC,09/04/2018,Training Awards - Postgraduates,FG - Accounts & Business Planning,University of Edinburgh,98152206,5882.87,Training Awards - Postgraduate
BEIS,UKRI - BBSRC,09/04/2018,Training Awards - Postgraduates,FG - Accounts & Business Planning,University of Edinburgh,98152216,1470.73,Training Awards - Postgraduate
BEIS,UKRI - BBSRC,09/04/2018,Training Awards - Postgraduates,FG - Accounts & Business Planning,University of Edinburgh,98152241,5882.87,Training Awards - Postgraduate
BEIS,UKRI - BBSRC,09/04/2018,Training Awards - Postgraduates,FG - Accounts & Business Planning,University of Edinburgh,98152264,5882.87,Training Awards - Postgraduate
BEIS,UKRI - BBSRC,09/04/2018,Training Awards - Postgraduates,FG - Accounts & Business Planning,University of Edinburgh,98152295,5882.87,Training Awards - Postgraduate
BEIS,UKRI - BBSRC,09/04/2018,Training Awards - Postgraduates,FG - Accounts & Business Planning,University of Edinburgh,98152318,5882.87,Training Awards - Postgraduate
BEIS,UKRI - BBSRC,09/04/2018,Training Awards - Postgraduates,FG - Accounts & Business Planning,University of Edinburgh,98152418,-13445.33,Training Awards - Postgraduate
BEIS,UKRI - BBSRC,09/04/2018,Training Awards - Postgraduates,FG - Accounts & Business Planning,University of Edinburgh,98153337,5882.87,Training Awards - Postgraduate
BEIS,UKRI - BBSRC,09/04/2018,Training Awards - Postgraduates,FG - Accounts & Business Planning,University of Edinburgh,98153357,5882.87,Training Awards - Postgraduate
BEIS,UKRI - BBSRC,09/04/2018,Training Awards - Postgraduates,FG - Accounts & Business Planning,University of Edinburgh,98153373,332111.25,Training Awards - Postgraduate
BEIS,UKRI - BBSRC,09/04/2018,Training Awards - Postgraduates,FG - Accounts & Business Planning,University of Edinburgh,98153375,5940.12,Training Awards - Postgraduate
BEIS,UKRI - BBSRC,09/04/2018,Training Awards - Postgraduates,FG - Accounts & Business Planning,University of Edinburgh,98153381,5483.2,Training Awards - Postgraduate
BEIS,UKRI - BBSRC,09/04/2018,Training Awards - Postgraduates,FG - Accounts & Business Planning,University of Edinburgh,98153440,5940.12,Training Awards - Postgraduate
BEIS,UKRI - BBSRC,09/04/2018,Training Awards - Postgraduates,FG - Accounts & Business Planning,University of Edinburgh,98153461,5940.12,Training Awards - Postgraduate
BEIS,UKRI - BBSRC,09/04/2018,Training Awards - Postgraduates,FG - Accounts & Business Planning,University of Edinburgh,98153474,5940.12,Training Awards - Postgraduate
BEIS,UKRI - BBSRC,09/04/2018,Training Awards - Postgraduates,FG - Accounts & Business Planning,University of Edinburgh,98153485,5940.12,Training Awards - Postgraduate
BEIS,UKRI - BBSRC,09/04/2018,Training Awards - Postgraduates,FG - Accounts & Business Planning,University of Edinburgh,98153513,5940.12,Training Awards - Postgraduate
BEIS,UKRI - BBSRC,09/04/2018,Training Awards - Postgraduates,FG - Accounts & Business Planning,University of Edinburgh,98153588,6043.5,Training Awards - Postgraduate
BEIS,UKRI - BBSRC,09/04/2018,Training Awards - Postgraduates,FG - Accounts & Business Planning,University of Edinburgh,98153588,6043.5,Training Awards - Postgraduate
BEIS,UKRI - BBSRC,09/04/2018,Training Awards - Postgraduates,FG - Accounts & Business Planning,University of Edinburgh,98153608,3000,Training Awards - Postgraduate
BEIS,UKRI - BBSRC,09/04/2018,Training Awards - Postgraduates,FG - Accounts & Business Planning,University of Edinburgh,98153632,6043.5,Training Awards - Postgraduate
BEIS,UKRI - BBSRC,09/04/2018,Training Awards - Postgraduates,FG - Accounts & Business Planning,University of Edinburgh,98153633,6043.5,Training Awards - Postgraduate
BEIS,UKRI - BBSRC,09/04/2018,Training Awards - Postgraduates,FG - Accounts & Business Planning,University of Edinburgh,98153659,6138.25,Training Awards - Postgraduate
BEIS,UKRI - BBSRC,09/04/2018,Training Awards - Postgraduates,FG - Accounts & Business Planning,University of Edinburgh,98153659,6138.25,Training Awards - Postgraduate
BEIS,UKRI - BBSRC,09/04/2018,Training Awards - Postgraduates,FG - Accounts & Business Planning,University of Edinburgh,98153659,6138.25,Training Awards - Postgraduate
BEIS,UKRI - BBSRC,09/04/2018,Training Awards - Postgraduates,FG - Accounts & Business Planning,University of Edinburgh,98153688,6138.25,Training Awards - Postgraduate
BEIS,UKRI - BBSRC,09/04/2018,Training Awards - Postgraduates,FG - Accounts & Business Planning,University of Edinburgh,98153688,6138.25,Training Awards - Postgraduate
BEIS,UKRI - BBSRC,09/04/2018,Training Awards - Postgraduates,FG - Accounts & Business Planning,University of Edinburgh,98153688,6138.25,Training Awards - Postgraduate
BEIS,UKRI - BBSRC,09/04/2018,Training Awards - Postgraduates,FG - Accounts & Business Planning,University of Edinburgh,98153689,6138.25,Training Awards - Postgraduate
BEIS,UKRI - BBSRC,09/04/2018,Training Awards - Postgraduates,FG - Accounts & Business Planning,University of Edinburgh,98153689,6138.25,Training Awards - Postgraduate
BEIS,UKRI - BBSRC,09/04/2018,Training Awards - Postgraduates,FG - Accounts & Business Planning,University of Edinburgh,98153689,6138.25,Training Awards - Postgraduate
BEIS,UKRI - BBSRC,09/04/2018,Training Awards - Postgraduates,FG - Accounts & Business Planning,University of Edinburgh,98153704,6138.25,Training Awards - Postgraduate
BEIS,UKRI - BBSRC,09/04/2018,Training Awards - Postgraduates,FG - Accounts & Business Planning,University of Edinburgh,98153704,6138.25,Training Awards - Postgraduate
BEIS,UKRI - BBSRC,09/04/2018,Training Awards - Postgraduates,FG - Accounts & Business Planning,University of Edinburgh,98153704,6138.25,Training Awards - Postgraduate
BEIS,UKRI - BBSRC,09/04/2018,Training Awards - Postgraduates,FG - Accounts & Business Planning,University of Edinburgh,98153706,6138.25,Training Awards - Postgraduate
BEIS,UKRI - BBSRC,09/04/2018,Training Awards - Postgraduates,FG - Accounts & Business Planning,University of Edinburgh,98153748,6138.25,Training Awards - Postgraduate
BEIS,UKRI - BBSRC,09/04/2018,Training Awards - Postgraduates,FG - Accounts & Business Planning,University of Edinburgh,98153748,6138.25,Training Awards - Postgraduate
BEIS,UKRI - BBSRC,09/04/2018,Training Awards - Postgraduates,FG - Accounts & Business Planning,University of Edinburgh,98153748,6138.25,Training Awards - Postgraduate
BEIS,UKRI - BBSRC,09/04/2018,Training Awards - Postgraduates,FG - Accounts & Business Planning,University of Edinburgh,98153749,6138.25,Training Awards - Postgraduate
BEIS,UKRI - BBSRC,09/04/2018,Training Awards - Postgraduates,FG - Accounts & Business Planning,University of Edinburgh,98153750,6138.25,Training Awards - Postgraduate
BEIS,UKRI - BBSRC,09/04/2018,Training Awards - Postgraduates,FG - Accounts & Business Planning,University of Edinburgh,98153750,6138.25,Training Awards - Postgraduate
BEIS,UKRI - BBSRC,09/04/2018,Training Awards - Postgraduates,FG - Accounts & Business Planning,University of Edinburgh,98153750,6138.25,Training Awards - Postgraduate
BEIS,UKRI - BBSRC,09/04/2018,Training Awards - Postgraduates,FG - Accounts & Business Planning,University of Edinburgh,98153784,8333,Training Awards - Postgraduate
BEIS,UKRI - BBSRC,09/04/2018,Training Awards - Postgraduates,FG - Accounts & Business Planning,University of Essex,98153389,5940.12,Training Awards - Postgraduate
BEIS,UKRI - BBSRC,09/04/2018,Training Awards - Postgraduates,FG - Accounts & Business Planning,University of Essex,98153481,5940.12,Training Awards - Postgraduate
BEIS,UKRI - BBSRC,09/04/2018,Training Awards - Postgraduates,FG - Accounts & Business Planning,University of Essex,98153615,6043.5,Training Awards - Postgraduate
BEIS,UKRI - BBSRC,09/04/2018,Training Awards - Postgraduates,FG - Accounts & Business Planning,University of Exeter,98152266,5882.87,Training Awards - Postgraduate
BEIS,UKRI - BBSRC,09/04/2018,Training Awards - Postgraduates,FG - Accounts & Business Planning,University of Exeter,98153353,5882.87,Training Awards - Postgraduate
BEIS,UKRI - BBSRC,09/04/2018,Training Awards - Postgraduates,FG - Accounts & Business Planning,University of Exeter,98153468,5940.12,Training Awards - Postgraduate
BEIS,UKRI - BBSRC,09/04/2018,Training Awards - Postgraduates,FG - Accounts & Business Planning,University of Exeter,98153486,5940.12,Training Awards - Postgraduate
BEIS,UKRI - BBSRC,09/04/2018,Training Awards - Postgraduates,FG - Accounts & Business Planning,University of Exeter,98153528,5940.12,Training Awards - Postgraduate
BEIS,UKRI - BBSRC,09/04/2018,Training Awards - Postgraduates,FG - Accounts & Business Planning,University of Exeter,98153545,5940.12,Training Awards - Postgraduate
BEIS,UKRI - BBSRC,09/04/2018,Training Awards - Postgraduates,FG - Accounts & Business Planning,University of Exeter,98153560,5432.75,Training Awards - Postgraduate
BEIS,UKRI - BBSRC,09/04/2018,Training Awards - Postgraduates,FG - Accounts & Business Planning,University of Exeter,98153581,3874.76,Training Awards - Postgraduate
BEIS,UKRI - BBSRC,09/04/2018,Training Awards - Postgraduates,FG - Accounts & Business Planning,University of Exeter,98153610,3453.43,Training Awards - Postgraduate
BEIS,UKRI - BBSRC,09/04/2018,Training Awards - Postgraduates,FG - Accounts & Business Planning,University of Exeter,98153612,6043.5,Training Awards - Postgraduate
BEIS,UKRI - BBSRC,09/04/2018,Training Awards - Postgraduates,FG - Accounts & Business Planning,University of Exeter,98153658,6138.25,Training Awards - Postgraduate
BEIS,UKRI - BBSRC,09/04/2018,Training Awards - Postgraduates,FG - Accounts & Business Planning,University of Exeter,98153670,6138.25,Training Awards - Postgraduate
BEIS,UKRI - BBSRC,09/04/2018,Training Awards - Postgraduates,FG - Accounts & Business Planning,University of Exeter,98153675,6138.25,Training Awards - Postgraduate
BEIS,UKRI - BBSRC,09/04/2018,Training Awards - Postgraduates,FG - Accounts & Business Planning,University of Exeter,98153675,6138.25,Training Awards - Postgraduate
BEIS,UKRI - BBSRC,09/04/2018,Training Awards - Postgraduates,FG - Accounts & Business Planning,University of Glasgow,98152147,61650,Training Awards - Postgraduate
BEIS,UKRI - BBSRC,09/04/2018,Training Awards - Postgraduates,FG - Accounts & Business Planning,University of Glasgow,98153412,5940.12,Training Awards - Postgraduate
BEIS,UKRI - BBSRC,09/04/2018,Training Awards - Postgraduates,FG - Accounts & Business Planning,University of Glasgow,98153489,5940.12,Training Awards - Postgraduate
BEIS,UKRI - BBSRC,09/04/2018,Training Awards - Postgraduates,FG - Accounts & Business Planning,University of Glasgow,98153504,5940.12,Training Awards - Postgraduate
BEIS,UKRI - BBSRC,09/04/2018,Training Awards - Postgraduates,FG - Accounts & Business Planning,University of Glasgow,98153517,92926.87,Training Awards - Postgraduate
BEIS,UKRI - BBSRC,09/04/2018,Training Awards - Postgraduates,FG - Accounts & Business Planning,University of Glasgow,98153583,6043.5,Training Awards - Postgraduate
BEIS,UKRI - BBSRC,09/04/2018,Training Awards - Postgraduates,FG - Accounts & Business Planning,University of Glasgow,98153662,3069.13,Training Awards - Postgraduate
BEIS,UKRI - BBSRC,09/04/2018,Training Awards - Postgraduates,FG - Accounts & Business Planning,University of Glasgow,98153662,3069.13,Training Awards - Postgraduate
BEIS,UKRI - BBSRC,09/04/2018,Training Awards - Postgraduates,FG - Accounts & Business Planning,University of Glasgow,98153662,3069.13,Training Awards - Postgraduate
BEIS,UKRI - BBSRC,09/04/2018,Training Awards - Postgraduates,FG - Accounts & Business Planning,University of Glasgow,98153687,6138.25,Training Awards - Postgraduate
BEIS,UKRI - BBSRC,09/04/2018,Training Awards - Postgraduates,FG - Accounts & Business Planning,University of Glasgow,98153687,6138.25,Training Awards - Postgraduate
BEIS,UKRI - BBSRC,09/04/2018,Training Awards - Postgraduates,FG - Accounts & Business Planning,University of Glasgow,98153783,7799,Training Awards - Postgraduate
BEIS,UKRI - BBSRC,09/04/2018,Training Awards - Postgraduates,FG - Accounts & Business Planning,University of Hertfordshire,98152328,5882.87,Training Awards - Postgraduate
BEIS,UKRI - BBSRC,09/04/2018,Training Awards - Postgraduates,FG - Accounts & Business Planning,University of Hertfordshire,98153503,5940.12,Training Awards - Postgraduate
BEIS,UKRI - BBSRC,09/04/2018,Training Awards - Postgraduates,FG - Accounts & Business Planning,University of Kent,98152202,5882.87,Training Awards - Postgraduate
BEIS,UKRI - BBSRC,09/04/2018,Training Awards - Postgraduates,FG - Accounts & Business Planning,University of Kent,98152270,5882.87,Training Awards - Postgraduate
BEIS,UKRI - BBSRC,09/04/2018,Training Awards - Postgraduates,FG - Accounts & Business Planning,University of Kent,98153383,5940.12,Training Awards - Postgraduate
BEIS,UKRI - BBSRC,09/04/2018,Training Awards - Postgraduates,FG - Accounts & Business Planning,University of Kent,98153399,5940.12,Training Awards - Postgraduate
BEIS,UKRI - BBSRC,09/04/2018,Training Awards - Postgraduates,FG - Accounts & Business Planning,University of Kent,98153411,5940.12,Training Awards - Postgraduate
BEIS,UKRI - BBSRC,09/04/2018,Training Awards - Postgraduates,FG - Accounts & Business Planning,University of Kent,98153433,5940.12,Training Awards - Postgraduate
BEIS,UKRI - BBSRC,09/04/2018,Training Awards - Postgraduates,FG - Accounts & Business Planning,University of Kent,98153453,5940.12,Training Awards - Postgraduate
BEIS,UKRI - BBSRC,09/04/2018,Training Awards - Postgraduates,FG - Accounts & Business Planning,University of Kent,98153488,5940.12,Training Awards - Postgraduate
BEIS,UKRI - BBSRC,09/04/2018,Training Awards - Postgraduates,FG - Accounts & Business Planning,University of Leeds,98152152,123300,Training Awards - Postgraduate
BEIS,UKRI - BBSRC,09/04/2018,Training Awards - Postgraduates,FG - Accounts & Business Planning,University of Leeds,98152172,5845,Training Awards - Postgraduate
BEIS,UKRI - BBSRC,09/04/2018,Training Awards - Postgraduates,FG - Accounts & Business Planning,University of Leeds,98152184,5882.87,Training Awards - Postgraduate
BEIS,UKRI - BBSRC,09/04/2018,Training Awards - Postgraduates,FG - Accounts & Business Planning,University of Leeds,98152191,11765.75,Training Awards - Postgraduate
BEIS,UKRI - BBSRC,09/04/2018,Training Awards - Postgraduates,FG - Accounts & Business Planning,University of Leeds,98152219,5882.87,Training Awards - Postgraduate
BEIS,UKRI - BBSRC,09/04/2018,Training Awards - Postgraduates,FG - Accounts & Business Planning,University of Leeds,98152237,5882.87,Training Awards - Postgraduate
BEIS,UKRI - BBSRC,09/04/2018,Training Awards - Postgraduates,FG - Accounts & Business Planning,University of Leeds,98152296,5882.87,Training Awards - Postgraduate
BEIS,UKRI - BBSRC,09/04/2018,Training Awards - Postgraduates,FG - Accounts & Business Planning,University of Leeds,98152401,5235,Training Awards - Postgraduate
BEIS,UKRI - BBSRC,09/04/2018,Training Awards - Postgraduates,FG - Accounts & Business Planning,University of Leeds,98152403,5235,Training Awards - Postgraduate
BEIS,UKRI - BBSRC,09/04/2018,Training Awards - Postgraduates,FG - Accounts & Business Planning,University of Leeds,98152406,-1350.39,Training Awards - Postgraduate
BEIS,UKRI - BBSRC,09/04/2018,Training Awards - Postgraduates,FG - Accounts & Business Planning,University of Leeds,98152413,5235,Training Awards - Postgraduate
BEIS,UKRI - BBSRC,09/04/2018,Training Awards - Postgraduates,FG - Accounts & Business Planning,University of Leeds,98152421,5845,Training Awards - Postgraduate
BEIS,UKRI - BBSRC,09/04/2018,Training Awards - Postgraduates,FG - Accounts & Business Planning,University of Leeds,98152432,5235,Training Awards - Postgraduate
BEIS,UKRI - BBSRC,09/04/2018,Training Awards - Postgraduates,FG - Accounts & Business Planning,University of Leeds,98153336,5882.87,Training Awards - Postgraduate
BEIS,UKRI - BBSRC,09/04/2018,Training Awards - Postgraduates,FG - Accounts & Business Planning,University of Leeds,98153369,507286.5,Training Awards - Postgraduate
BEIS,UKRI - BBSRC,09/04/2018,Training Awards - Postgraduates,FG - Accounts & Business Planning,University of Leeds,98153496,5445.11,Training Awards - Postgraduate
BEIS,UKRI - BBSRC,09/04/2018,Training Awards - Postgraduates,FG - Accounts & Business Planning,University of Leeds,98153549,5483.2,Training Awards - Postgraduate
BEIS,UKRI - BBSRC,09/04/2018,Training Awards - Postgraduates,FG - Accounts & Business Planning,University of Leeds,98153554,5940.12,Training Awards - Postgraduate
BEIS,UKRI - BBSRC,09/04/2018,Training Awards - Postgraduates,FG - Accounts & Business Planning,University of Leeds,98153559,6013.1,Training Awards - Postgraduate
BEIS,UKRI - BBSRC,09/04/2018,Training Awards - Postgraduates,FG - Accounts & Business Planning,University of Leeds,98153639,6043.5,Training Awards - Postgraduate
BEIS,UKRI - BBSRC,09/04/2018,Training Awards - Postgraduates,FG - Accounts & Business Planning,University of Leeds,98153645,6276.51,Training Awards - Postgraduate
BEIS,UKRI - BBSRC,09/04/2018,Training Awards - Postgraduates,FG - Accounts & Business Planning,University of Leeds,98153684,6138.25,Training Awards - Postgraduate
BEIS,UKRI - BBSRC,09/04/2018,Training Awards - Postgraduates,FG - Accounts & Business Planning,University of Leeds,98153686,6138.25,Training Awards - Postgraduate
BEIS,UKRI - BBSRC,09/04/2018,Training Awards - Postgraduates,FG - Accounts & Business Planning,University of Leeds,98153740,6138.25,Training Awards - Postgraduate
BEIS,UKRI - BBSRC,09/04/2018,Training Awards - Postgraduates,FG - Accounts & Business Planning,University of Leeds,98153741,6138.25,Training Awards - Postgraduate
BEIS,UKRI - BBSRC,09/04/2018,Training Awards - Postgraduates,FG - Accounts & Business Planning,University of Leeds,98153766,6138.25,Training Awards - Postgraduate
BEIS,UKRI - BBSRC,09/04/2018,Training Awards - Postgraduates,FG - Accounts & Business Planning,University of Leicester,98152208,5882.87,Training Awards - Postgraduate
BEIS,UKRI - BBSRC,09/04/2018,Training Awards - Postgraduates,FG - Accounts & Business Planning,University of Leicester,98152226,5882.87,Training Awards - Postgraduate
BEIS,UKRI - BBSRC,09/04/2018,Training Awards - Postgraduates,FG - Accounts & Business Planning,University of Leicester,98152240,5882.87,Training Awards - Postgraduate
BEIS,UKRI - BBSRC,09/04/2018,Training Awards - Postgraduates,FG - Accounts & Business Planning,University of Leicester,98152316,5882.87,Training Awards - Postgraduate
BEIS,UKRI - BBSRC,09/04/2018,Training Awards - Postgraduates,FG - Accounts & Business Planning,University of Leicester,98153349,5882.87,Training Awards - Postgraduate
BEIS,UKRI - BBSRC,09/04/2018,Training Awards - Postgraduates,FG - Accounts & Business Planning,University of Leicester,98153391,5940.12,Training Awards - Postgraduate
BEIS,UKRI - BBSRC,09/04/2018,Training Awards - Postgraduates,FG - Accounts & Business Planning,University of Leicester,98153422,5940.12,Training Awards - Postgraduate
BEIS,UKRI - BBSRC,09/04/2018,Training Awards - Postgraduates,FG - Accounts & Business Planning,University of Leicester,98153479,5940.12,Training Awards - Postgraduate
